Workbook

Sheet Info
B11: Analýza klíčových slov
B12: pro web example.com
B13: Zpracovala Šárka Jakubcová, dne 23. 1. 2019
B15: ZÁLOŽKA | C15: POPIS
B16: Kompletní data | C16: Tento přehled obsahuje seznam všech frází, která jsme do analýzy zahrnuli. V tabulce naleznete průměrnou měsíční hledanost klíčových slov ve vyhledávačích Google a Seznam. Dále jejich konkurenčnost, relevanci, průměrnou cenu za proklik v PPC systémech a pozici, na které se web v současnosti zobrazuje na stránce s výsledky vyhledávání.
B17: Trendy hledanosti | C17: Přehledy Trendy hledanosti Google a Seznam obsahují objem vyhledávání jednotlivých klíčových slov v posledních 12 měsících.
B18: Kategorie | C18: Jednotlivá klíčová slova jsou rozřazena do klasifikačních kategorií. Tento přehled vám ukáže zobrazené metriky po kategoriích.
B21: Skrytá data:
B22: Chybí vstupní stránka | C22: 64700
B23: Pokryto vstupní stránkou | C23: =70000-64700 -> 5300

Sheet Kompletní data
B1: Klíčové slovo | C1: Hledanost Celkem | D1: Konkurence Průměr | E1: Relevance | F1: Hledanost Google | G1: Hledanost Seznam | H1: Konkurence Google | I1: Konkurence Seznam | J1: CPC Adwords | K1: CPC Sklik | L1: Pozice Google | M1: Pozice Seznam | N1: Google Vstupní stránka | O1: Seznam Vstupní stránky | P1: Ideální Vstupní stránka | Q1: Počet výsledků Google | R1: Počet výsledků Seznam | S1: Typ hodin | T1: Značka | U1: Strojek | V1: Styl | W1: Tvar/velikost | X1: Specifikace | Y1: Barva | Z1: Materiál
B2: hodiny | C2: =Tabulka15[[#This Row],[Hledanost Google]]+Tabulka15[[#This Row],[Hledanost Seznam]] -> 16349 | D2: =AVERAGE(Tabulka15[[#This Row],[Konkurence Google]],Tabulka15[[#This Row],[Konkurence Seznam]]) -> 14.377 | E2: 3 | F2: 14800 | G2: 1549 | H2: 18.778 | I2: 9.976 | J2: 7.93 | K2: 4.1843436 | L2: 100 | M2: 100 | N2: - | O2: - | P2: Neexistuje | Q2: 55200000 | R2: 552000000
B3: nástěnné hodiny | C3: =Tabulka15[[#This Row],[Hledanost Google]]+Tabulka15[[#This Row],[Hledanost Seznam]] -> 11960 | D3: =AVERAGE(Tabulka15[[#This Row],[Konkurence Google]],Tabulka15[[#This Row],[Konkurence Seznam]]) -> 14.1705 | E3: 5 | F3: 5400 | G3: 6560 | H3: 22.952 | I3: 5.389 | J3: 8.36 | K3: 7.0734845 | L3: 100 | M3: 100 | N3: - | O3: - | P3: Neexistuje | Q3: 1670000 | R3: 8975296 | S3: nástěnné
B4: hodinový strojek | C4: =Tabulka15[[#This Row],[Hledanost Google]]+Tabulka15[[#This Row],[Hledanost Seznam]] -> 1819 | D4: =AVERAGE(Tabulka15[[#This Row],[Konkurence Google]],Tabulka15[[#This Row],[Konkurence Seznam]]) -> 17.5125 | E4: 3 | F4: 880 | G4: 939 | H4: 31.713 | I4: 3.312 | J4: 3 | K4: 1.8166667 | L4: 100 | M4: 100 | N4: - | O4: - | P4: Neexistuje | Q4: 189000 | R4: 935083 | S4: hodinové strojky
B5: přesýpací hodiny | C5: =Tabulka15[[#This Row],[Hledanost Google]]+Tabulka15[[#This Row],[Hledanost Seznam]] -> 1552 | D5: =AVERAGE(Tabulka15[[#This Row],[Konkurence Google]],Tabulka15[[#This Row],[Konkurence Seznam]]) -> 9.0805 | E5: 1 | F5: 1300 | G5: 252 | H5: 12.137 | I5: 6.024 | J5: 5.14 | K5: 3.1682654 | L5: 100 | M5: 100 | N5: - | O5: - | P5: Neexistuje | Q5: 183000 | R5: 352613 | S5: přesýpací
B6: bentime | C6: =Tabulka15[[#This Row],[Hledanost Google]]+Tabulka15[[#This Row],[Hledanost Seznam]] -> 1447 | D6: =AVERAGE(Tabulka15[[#This Row],[Konkurence Google]],Tabulka15[[#This Row],[Konkurence Seznam]]) -> 20.47 | E6: 5 | F6: 1000 | G6: 447 | H6: 32.175 | I6: 8.765 | J6: 4.07 | K6: 4.3669232 | L6: 35 | M6: 50 | N6: https://www.example.cz/stranka | O6: https://www.example.cz/stranka | P6: https://www.example.cz/stranka | Q6: 385000 | R6: 356375 | T6: bentime
B7: stolní hodiny | C7: =Tabulka15[[#This Row],[Hledanost Google]]+Tabulka15[[#This Row],[Hledanost Seznam]] -> 1306 | D7: =AVERAGE(Tabulka15[[#This Row],[Konkurence Google]],Tabulka15[[#This Row],[Konkurence Seznam]]) -> 20.716 | E7: 5 | F7: 480 | G7: 826 | H7: 35.597 | I7: 5.835 | J7: 5.57 | K7: 2.63 | L7: 100 | M7: 54 | N7: - | O7: https://www.example.cz/stranka | P7: https://www.example.cz/stranka | Q7: 2380000 | R7: 13051287 | S7: stolní
B8: retro hodiny | C8: =Tabulka15[[#This Row],[Hledanost Google]]+Tabulka15[[#This Row],[Hledanost Seznam]] -> 704 | D8: =AVERAGE(Tabulka15[[#This Row],[Konkurence Google]],Tabulka15[[#This Row],[Konkurence Seznam]]) -> 6.2195 | E8: 5 | F8: 390 | G8: 314 | H8: 8.719 | I8: 3.72 | J8: 6.65 | K8: 3.1277777 | L8: 100 | M8: 100 | N8: - | O8: - | P8: Neexistuje | Q8: 585000 | R8: 5787822 | V8: retro
B9: starožitné hodiny | C9: =Tabulka15[[#This Row],[Hledanost Google]]+Tabulka15[[#This Row],[Hledanost Seznam]] -> 683 | D9: =AVERAGE(Tabulka15[[#This Row],[Konkurence Google]],Tabulka15[[#This Row],[Konkurence Seznam]]) -> 6.89 | E9: 2 | F9: 390 | G9: 293 | H9: 8.734 | I9: 5.046 | J9: 8.79 | K9: 1.9720653 | L9: 100 | M9: 100 | N9: - | O9: - | P9: Neexistuje | Q9: 492000 | R9: 506357 | V9: starožitné
B10: kukačkové hodiny | C10: =Tabulka15[[#This Row],[Hledanost Google]]+Tabulka15[[#This Row],[Hledanost Seznam]] -> 650 | D10: =AVERAGE(Tabulka15[[#This Row],[Konkurence Google]],Tabulka15[[#This Row],[Konkurence Seznam]]) -> 17.351 | E10: 5 | F10: 480 | G10: 170 | H10: 29.747 | I10: 4.955 | J10: 4.29 | K10: 1.5810527 | L10: 100 | M10: 100 | N10: - | O10: - | P10: Neexistuje | Q10: 118000 | R10: 35577 | S10: kukačky
B11: pendlovky | C11: =Tabulka15[[#This Row],[Hledanost Google]]+Tabulka15[[#This Row],[Hledanost Seznam]] -> 618 | D11: =AVERAGE(Tabulka15[[#This Row],[Konkurence Google]],Tabulka15[[#This Row],[Konkurence Seznam]]) -> 23.3445 | E11: 5 | F11: 320 | G11: 298 | H11: 39.071 | I11: 7.618 | J11: 4.07 | K11: 2.6470587 | L11: 30 | M11: 41 | N11: https://www.example.cz/stranka | O11: https://www.example.cz/stranka | P11: https://www.example.cz/stranka | Q11: 149000 | R11: 80910 | X11: pendlové
B12: andělská čísla na hodinách | C12: =Tabulka15[[#This Row],[Hledanost Google]]+Tabulka15[[#This Row],[Hledanost Seznam]] -> 576 | D12: =AVERAGE(Tabulka15[[#This Row],[Konkurence Google]],Tabulka15[[#This Row],[Konkurence Seznam]]) -> 6.555 | E12: 1 | F12: 170 | G12: 406 | H12: 11.189 | I12: 1.921 | J12: 12.43 | K12: 0 | L12: 100 | M12: 100 | N12: - | O12: - | P12: Neexistuje | Q12: 370000 | R12: 155226
B13: značky hodin | C13: =Tabulka15[[#This Row],[Hledanost Google]]+Tabulka15[[#This Row],[Hledanost Seznam]] -> 542 | D13: =AVERAGE(Tabulka15[[#This Row],[Konkurence Google]],Tabulka15[[#This Row],[Konkurence Seznam]]) -> 8.948 | E13: 5 | F13: 480 | G13: 62 | H13: 15.429 | I13: 2.467 | J13: 0 | K13: 0 | L13: 100 | M13: 42 | N13: - | O13: https://www.example.cz/stranka | P13: https://www.example.cz/stranka | Q13: 3320000 | R13: 18014315
B14: hodiny anglicky | C14: =Tabulka15[[#This Row],[Hledanost Google]]+Tabulka15[[#This Row],[Hledanost Seznam]] -> 541 | D14: =AVERAGE(Tabulka15[[#This Row],[Konkurence Google]],Tabulka15[[#This Row],[Konkurence Seznam]]) -> 8.131 | E14: 4 | F14: 480 | G14: 61 | H14: 12.502 | I14: 3.76 | J14: 29.8 | K14: 0 | L14: 100 | M14: 100 | N14: - | O14: - | P14: Neexistuje | Q14: 870000 | R14: 1577332 | V14: anglické
B15: význam čísel na hodinách | C15: =Tabulka15[[#This Row],[Hledanost Google]]+Tabulka15[[#This Row],[Hledanost Seznam]] -> 535 | D15: =AVERAGE(Tabulka15[[#This Row],[Konkurence Google]],Tabulka15[[#This Row],[Konkurence Seznam]]) -> 7.167 | E15: 2 | F15: 320 | G15: 215 | H15: 12.032 | I15: 2.302 | J15: 0 | K15: 0 | L15: 100 | M15: 100 | N15: - | O15: - | P15: Neexistuje | Q15: 695000 | R15: 1606445
B16: atomové hodiny | C16: =Tabulka15[[#This Row],[Hledanost Google]]+Tabulka15[[#This Row],[Hledanost Seznam]] -> 524 | D16: =AVERAGE(Tabulka15[[#This Row],[Konkurence Google]],Tabulka15[[#This Row],[Konkurence Seznam]]) -> 18.712 | E16: 2 | F16: 480 | G16: 44 | H16: 31.988 | I16: 5.436 | J16: 11.36 | K16: 2.9 | L16: 100 | M16: 100 | N16: - | O16: - | P16: Neexistuje | Q16: 176000 | R16: 372396
B17: repliky hodin | C17: =Tabulka15[[#This Row],[Hledanost Google]]+Tabulka15[[#This Row],[Hledanost Seznam]] -> 469 | D17: =AVERAGE(Tabulka15[[#This Row],[Konkurence Google]],Tabulka15[[#This Row],[Konkurence Seznam]]) -> 12.8 | E17: 1 | F17: 320 | G17: 149 | H17: 22.04 | I17: 3.56 | J17: 0 | K17: 0 | L17: 100 | M17: 100 | N17: - | O17: - | P17: Neexistuje | Q17: 163000 | R17: 618162 | X17: repliky
B18: hodiny do kuchyně | C18: =Tabulka15[[#This Row],[Hledanost Google]]+Tabulka15[[#This Row],[Hledanost Seznam]] -> 452 | D18: =AVERAGE(Tabulka15[[#This Row],[Konkurence Google]],Tabulka15[[#This Row],[Konkurence Seznam]]) -> 6.75 | E18: 5 | F18: 260 | G18: 192 | H18: 8.129 | I18: 5.371 | J18: 6.43 | K18: 3.6406152 | L18: 100 | M18: 100 | N18: - | O18: - | P18: Neexistuje | Q18: 641000 | R18: 14988897 | X18: kuchyňské
B19: hodiny s fotorámečky | C19: =Tabulka15[[#This Row],[Hledanost Google]]+Tabulka15[[#This Row],[Hledanost Seznam]] -> 418 | D19: =AVERAGE(Tabulka15[[#This Row],[Konkurence Google]],Tabulka15[[#This Row],[Konkurence Seznam]]) -> 17.0865 | E19: 2 | F19: 210 | G19: 208 | H19: 30.034 | I19: 4.139 | J19: 4.07 | K19: 3.4310345 | L19: 100 | M19: 100 | N19: - | O19: - | P19: Neexistuje | Q19: 609000 | R19: 3487063
B20: hodiny na stěnu | C20: =Tabulka15[[#This Row],[Hledanost Google]]+Tabulka15[[#This Row],[Hledanost Seznam]] -> 392 | D20: =AVERAGE(Tabulka15[[#This Row],[Konkurence Google]],Tabulka15[[#This Row],[Konkurence Seznam]]) -> 4.765 | E20: 5 | F20: 320 | G20: 72 | H20: 6.113 | I20: 3.417 | J20: 6.65 | K20: 3.906889 | L20: 100 | M20: 100 | N20: - | O20: - | P20: Neexistuje | Q20: 1170000 | R20: 10233680
B21: nástěnné hodiny do kuchyně | C21: =Tabulka15[[#This Row],[Hledanost Google]]+Tabulka15[[#This Row],[Hledanost Seznam]] -> 362 | D21: =AVERAGE(Tabulka15[[#This Row],[Konkurence Google]],Tabulka15[[#This Row],[Konkurence Seznam]]) -> 4.4445 | E21: 5 | F21: 170 | G21: 192 | H21: 5.275 | I21: 3.614 | J21: 9.65 | K21: 5.211772 | L21: 100 | M21: 100 | N21: - | O21: - | P21: Neexistuje | Q21: 189000 | R21: 4474309 | S21: nástěnné | X21: kuchyňské
B22: nástěnné hodiny řízené rádiovým signálem | C22: =Tabulka15[[#This Row],[Hledanost Google]]+Tabulka15[[#This Row],[Hledanost Seznam]] -> 308 | D22: =AVERAGE(Tabulka15[[#This Row],[Konkurence Google]],Tabulka15[[#This Row],[Konkurence Seznam]]) -> 3.618 | E22: 4 | F22: 90 | G22: 218 | H22: 4.496 | I22: 2.74 | J22: 9.43 | K22: 4.923421 | L22: 100 | M22: 100 | N22: - | O22: - | P22: Neexistuje | Q22: 242000 | R22: 32840 | S22: nástěnné | U22: řízené rádiem
B23: prodej hodin | C23: =Tabulka15[[#This Row],[Hledanost Google]]+Tabulka15[[#This Row],[Hledanost Seznam]] -> 305 | D23: =AVERAGE(Tabulka15[[#This Row],[Konkurence Google]],Tabulka15[[#This Row],[Konkurence Seznam]]) -> 10.2705 | E23: 5 | F23: 210 | G23: 95 | H23: 16.382 | I23: 4.159 | J23: 0 | K23: 0.6585714 | L23: 100 | M23: 40 | N23: - | O23: https://www.example.cz/stranka | P23: https://www.example.cz/stranka | Q23: 2830000 | R23: 9024671
B24: anglické hodiny | C24: =Tabulka15[[#This Row],[Hledanost Google]]+Tabulka15[[#This Row],[Hledanost Seznam]] -> 303 | D24: =AVERAGE(Tabulka15[[#This Row],[Konkurence Google]],Tabulka15[[#This Row],[Konkurence Seznam]]) -> 9.402 | E24: 4 | F24: 260 | G24: 43 | H24: 14.733 | I24: 4.071 | J24: 7.72 | K24: 1.18333336 | L24: 100 | M24: 100 | N24: - | O24: - | P24: Neexistuje | Q24: 2720000 | R24: 2074140 | V24: anglické
B25: kuchyňské hodiny nástěnné | C25: =Tabulka15[[#This Row],[Hledanost Google]]+Tabulka15[[#This Row],[Hledanost Seznam]] -> 302 | D25: =AVERAGE(Tabulka15[[#This Row],[Konkurence Google]],Tabulka15[[#This Row],[Konkurence Seznam]]) -> 2.915 | E25: 5 | F25: 50 | G25: 252 | H25: 4.073 | I25: 1.757 | J25: 17.58 | K25: 0 | L25: 100 | M25: 100 | N25: - | O25: - | P25: Neexistuje | Q25: 633000 | R25: 4953185 | S25: nástěnné | X25: kuchyňské
B26: designové nástěnné hodiny | C26: =Tabulka15[[#This Row],[Hledanost Google]]+Tabulka15[[#This Row],[Hledanost Seznam]] -> 298 | D26: =AVERAGE(Tabulka15[[#This Row],[Konkurence Google]],Tabulka15[[#This Row],[Konkurence Seznam]]) -> 13.483 | E26: 5 | F26: 140 | G26: 158 | H26: 23.238 | I26: 3.728 | J26: 8.36 | K26: 7.323077 | L26: 100 | M26: 100 | N26: - | O26: - | P26: Neexistuje | Q26: 387000 | R26: 2517958 | S26: nástěnné | V26: design
B27: hodiny odbily | C27: =Tabulka15[[#This Row],[Hledanost Google]]+Tabulka15[[#This Row],[Hledanost Seznam]] -> 292 | D27: =AVERAGE(Tabulka15[[#This Row],[Konkurence Google]],Tabulka15[[#This Row],[Konkurence Seznam]]) -> 10.881 | E27: 1 | F27: 210 | G27: 82 | H27: 16.702 | I27: 5.06 | J27: 0 | K27: 0 | L27: 100 | M27: 100 | N27: - | O27: - | P27: Neexistuje | Q27: 34900 | R27: 7430
B28: jvd hodiny | C28: =Tabulka15[[#This Row],[Hledanost Google]]+Tabulka15[[#This Row],[Hledanost Seznam]] -> 290 | D28: =AVERAGE(Tabulka15[[#This Row],[Konkurence Google]],Tabulka15[[#This Row],[Konkurence Seznam]]) -> 3.735 | E28: 5 | F28: 210 | G28: 80 | H28: 5.03 | I28: 2.44 | J28: 3.86 | K28: 3.8411765 | L28: 100 | M28: 100 | N28: - | O28: - | P28: Neexistuje | Q28: 195000 | R28: 683112 | T28: JVD
B29: hodinové strojky | C29: =Tabulka15[[#This Row],[Hledanost Google]]+Tabulka15[[#This Row],[Hledanost Seznam]] -> 285 | D29: =AVERAGE(Tabulka15[[#This Row],[Konkurence Google]],Tabulka15[[#This Row],[Konkurence Seznam]]) -> 16.067 | E29: 3 | F29: 210 | G29: 75 | H29: 26.21 | I29: 5.924 | J29: 3.86 | K29: 1.3390625 | L29: 100 | M29: 100 | N29: - | O29: - | P29: Neexistuje | Q29: 301000 | R29: 380449 | S29: hodinové strojky
B30: ikea hodiny | C30: =Tabulka15[[#This Row],[Hledanost Google]]+Tabulka15[[#This Row],[Hledanost Seznam]] -> 284 | D30: =AVERAGE(Tabulka15[[#This Row],[Konkurence Google]],Tabulka15[[#This Row],[Konkurence Seznam]]) -> 9.606 | E30: 1 | F30: 260 | G30: 24 | H30: 16.205 | I30: 3.007 | J30: 3.43 | K30: 1.05 | L30: 100 | M30: 100 | N30: - | O30: - | P30: Neexistuje | Q30: 563000 | R30: 994341 | T30: Ikea
B31: nástěnné hodiny velké | C31: =Tabulka15[[#This Row],[Hledanost Google]]+Tabulka15[[#This Row],[Hledanost Seznam]] -> 284 | D31: =AVERAGE(Tabulka15[[#This Row],[Konkurence Google]],Tabulka15[[#This Row],[Konkurence Seznam]]) -> 3.1855 | E31: 4 | F31: 260 | G31: 24 | H31: 4.669 | I31: 1.702 | J31: 6.43 | K31: 8.499 | L31: 100 | M31: 100 | N31: - | O31: - | P31: Neexistuje | Q31: 341000 | R31: 2523892 | S31: nástěnné | W31: velké
B32: hodiny s projekcí | C32: =Tabulka15[[#This Row],[Hledanost Google]]+Tabulka15[[#This Row],[Hledanost Seznam]] -> 273 | D32: =AVERAGE(Tabulka15[[#This Row],[Konkurence Google]],Tabulka15[[#This Row],[Konkurence Seznam]]) -> 4.5565 | E32: 2 | F32: 140 | G32: 133 | H32: 5.516 | I32: 3.597 | J32: 4.72 | K32: 0.65 | L32: 100 | M32: 100 | N32: - | O32: - | P32: Neexistuje | Q32: 400000 | R32: 368601
B33: dřevené hodiny | C33: =Tabulka15[[#This Row],[Hledanost Google]]+Tabulka15[[#This Row],[Hledanost Seznam]] -> 263 | D33: =AVERAGE(Tabulka15[[#This Row],[Konkurence Google]],Tabulka15[[#This Row],[Konkurence Seznam]]) -> 7.4635 | E33: 5 | F33: 260 | G33: 3 | H33: 10.532 | I33: 4.395 | J33: 8.36 | K33: 1.5 | L33: 100 | M33: 100 | N33: - | O33: - | P33: Neexistuje | Q33: 1200000 | R33: 12510638 | Z33: dřevo
B34: hodiny kukačky | C34: =Tabulka15[[#This Row],[Hledanost Google]]+Tabulka15[[#This Row],[Hledanost Seznam]] -> 263 | D34: =AVERAGE(Tabulka15[[#This Row],[Konkurence Google]],Tabulka15[[#This Row],[Konkurence Seznam]]) -> 5.4885 | E34: 5 | F34: 170 | G34: 93 | H34: 7.487 | I34: 3.49 | J34: 4.5 | K34: 2.8358334 | L34: 100 | M34: 100 | N34: - | O34: - | P34: Neexistuje | Q34: 506000 | R34: 243576 | S34: kukačky
B35: stojací hodiny | C35: =Tabulka15[[#This Row],[Hledanost Google]]+Tabulka15[[#This Row],[Hledanost Seznam]] -> 262 | D35: =AVERAGE(Tabulka15[[#This Row],[Konkurence Google]],Tabulka15[[#This Row],[Konkurence Seznam]]) -> 7.0335 | E35: 5 | F35: 140 | G35: 122 | H35: 9.412 | I35: 4.655 | J35: 5.57 | K35: 1.515 | L35: 27 | M35: 100 | N35: https://www.example.cz/stranka | O35: - | P35: https://www.example.cz/stranka | Q35: 401000 | R35: 2515596 | S35: stojací
B36: projekční hodiny | C36: =Tabulka15[[#This Row],[Hledanost Google]]+Tabulka15[[#This Row],[Hledanost Seznam]] -> 261 | D36: =AVERAGE(Tabulka15[[#This Row],[Konkurence Google]],Tabulka15[[#This Row],[Konkurence Seznam]]) -> 7.6095 | E36: 2 | F36: 140 | G36: 121 | H36: 9.3 | I36: 5.919 | J36: 5.14 | K36: 3.2885715 | L36: 100 | M36: 100 | N36: - | O36: - | P36: Neexistuje | Q36: 493000 | R36: 2779088
B37: venkovní hodiny -teploměr | C37: =Tabulka15[[#This Row],[Hledanost Google]]+Tabulka15[[#This Row],[Hledanost Seznam]] -> 260 | D37: =AVERAGE(Tabulka15[[#This Row],[Konkurence Google]],Tabulka15[[#This Row],[Konkurence Seznam]]) -> 6.7645 | E37: 1 | F37: 260 | G37: 0 | H37: 11.765 | I37: 1.764 | J37: 0 | K37: 0 | L37: 100 | M37: 100 | N37: - | O37: - | P37: Neexistuje | Q37: 1370000 | R37: 10091130 | S37: venkovní | X37: s teploměrem
B38: nástěnné hodiny jvd | C38: =Tabulka15[[#This Row],[Hledanost Google]]+Tabulka15[[#This Row],[Hledanost Seznam]] -> 243 | D38: =AVERAGE(Tabulka15[[#This Row],[Konkurence Google]],Tabulka15[[#This Row],[Konkurence Seznam]]) -> 7.0295 | E38: 5 | F38: 70 | G38: 173 | H38: 10.268 | I38: 3.791 | J38: 7.5 | K38: 4.717451 | L38: 100 | M38: 100 | N38: - | O38: - | P38: Neexistuje | Q38: 524000 | R38: 191459 | S38: nástěnné | T38: JVD
B39: rádiem řízené hodiny | C39: =Tabulka15[[#This Row],[Hledanost Google]]+Tabulka15[[#This Row],[Hledanost Seznam]] -> 234 | D39: =AVERAGE(Tabulka15[[#This Row],[Konkurence Google]],Tabulka15[[#This Row],[Konkurence Seznam]]) -> 4.0915 | E39: 4 | F39: 140 | G39: 94 | H39: 5.83 | I39: 2.353 | J39: 4.5 | K39: 2.3975 | L39: 100 | M39: 100 | N39: - | O39: - | P39: Neexistuje | Q39: 357000 | R39: 356896 | U39: řízené rádiem
B40: hodiny s fotkami | C40: =Tabulka15[[#This Row],[Hledanost Google]]+Tabulka15[[#This Row],[Hledanost Seznam]] -> 231 | D40: =AVERAGE(Tabulka15[[#This Row],[Konkurence Google]],Tabulka15[[#This Row],[Konkurence Seznam]]) -> 11.423 | E40: 1 | F40: 170 | G40: 61 | H40: 18.862 | I40: 3.984 | J40: 4.07 | K40: 2.016129 | L40: 100 | M40: 100 | N40: - | O40: - | P40: Neexistuje | Q40: 826000 | R40: 525628
B41: vodní hodiny | C41: =Tabulka15[[#This Row],[Hledanost Google]]+Tabulka15[[#This Row],[Hledanost Seznam]] -> 226 | D41: =AVERAGE(Tabulka15[[#This Row],[Konkurence Google]],Tabulka15[[#This Row],[Konkurence Seznam]]) -> 19.396 | E41: 1 | F41: 170 | G41: 56 | H41: 33.237 | I41: 5.555 | J41: 6.86 | K41: 3.4 | L41: 100 | M41: 100 | N41: - | O41: - | P41: Neexistuje | Q41: 3040000 | R41: 9236819
B42: svítící hodiny | C42: =Tabulka15[[#This Row],[Hledanost Google]]+Tabulka15[[#This Row],[Hledanost Seznam]] -> 225 | D42: =AVERAGE(Tabulka15[[#This Row],[Konkurence Google]],Tabulka15[[#This Row],[Konkurence Seznam]]) -> 13.074 | E42: 3 | F42: 140 | G42: 85 | H42: 22.289 | I42: 3.859 | J42: 4.29 | K42: 1.2642857 | L42: 100 | M42: 100 | N42: - | O42: - | P42: Neexistuje | Q42: 513000 | R42: 2985278 | X42: svítící
B43: strojek do hodin | C43: =Tabulka15[[#This Row],[Hledanost Google]]+Tabulka15[[#This Row],[Hledanost Seznam]] -> 220 | D43: =AVERAGE(Tabulka15[[#This Row],[Konkurence Google]],Tabulka15[[#This Row],[Konkurence Seznam]]) -> 9.1185 | E43: 3 | F43: 170 | G43: 50 | H43: 15.782 | I43: 2.455 | J43: 2.14 | K43: 0.48666668 | L43: 21 | M43: 100 | N43: https://www.example.cz/stranka | O43: - | P43: https://www.example.cz/stranka | Q43: 1120000 | R43: 4161681 | S43: hodinové strojky
B44: hodiny s fotorameckem | C44: =Tabulka15[[#This Row],[Hledanost Google]]+Tabulka15[[#This Row],[Hledanost Seznam]] -> 215 | D44: =AVERAGE(Tabulka15[[#This Row],[Konkurence Google]],Tabulka15[[#This Row],[Konkurence Seznam]]) -> 13.1355 | E44: 1 | F44: 210 | G44: 5 | H44: 20.95 | I44: 5.321 | J44: 0 | K44: 0 | L44: 100 | M44: 100 | N44: - | O44: - | P44: Neexistuje | Q44: 337000 | R44: 297588
B45: fotohodiny | C45: =Tabulka15[[#This Row],[Hledanost Google]]+Tabulka15[[#This Row],[Hledanost Seznam]] -> 211 | D45: =AVERAGE(Tabulka15[[#This Row],[Konkurence Google]],Tabulka15[[#This Row],[Konkurence Seznam]]) -> 18.0665 | E45: 1 | F45: 90 | G45: 121 | H45: 30.213 | I45: 5.92 | J45: 2.57 | K45: 3.8 | L45: 100 | M45: 100 | N45: - | O45: - | P45: Neexistuje | Q45: 83300 | R45: 29093
B46: nástěnné hodiny dřevěné | C46: =Tabulka15[[#This Row],[Hledanost Google]]+Tabulka15[[#This Row],[Hledanost Seznam]] -> 205 | D46: =AVERAGE(Tabulka15[[#This Row],[Konkurence Google]],Tabulka15[[#This Row],[Konkurence Seznam]]) -> 3.5645 | E46: 5 | F46: 70 | G46: 135 | H46: 5.163 | I46: 1.966 | J46: 6.86 | K46: 4.2429413 | L46: 100 | M46: 100 | N46: - | O46: - | P46: Neexistuje | Q46: 661000 | R46: 2990178 | S46: nástěnné | Z46: dřevo
B47: překlápěcí hodiny | C47: =Tabulka15[[#This Row],[Hledanost Google]]+Tabulka15[[#This Row],[Hledanost Seznam]] -> 205 | D47: =AVERAGE(Tabulka15[[#This Row],[Konkurence Google]],Tabulka15[[#This Row],[Konkurence Seznam]]) -> 7.11 | E47: 2 | F47: 140 | G47: 65 | H47: 9.012 | I47: 5.208 | J47: 4.93 | K47: 4.078125 | L47: 100 | M47: 100 | N47: - | O47: - | P47: Neexistuje | Q47: 384000 | R47: 30768 | X47: překlápěcí
B48: výprodej hodin | C48: =Tabulka15[[#This Row],[Hledanost Google]]+Tabulka15[[#This Row],[Hledanost Seznam]] -> 204 | D48: =AVERAGE(Tabulka15[[#This Row],[Konkurence Google]],Tabulka15[[#This Row],[Konkurence Seznam]]) -> 10.023 | E48: 4 | F48: 170 | G48: 34 | H48: 17.449 | I48: 2.597 | J48: 0 | K48: 0.8 | L48: 100 | M48: 100 | N48: - | O48: - | P48: Neexistuje | Q48: 1020000 | R48: 9352779 | X48: výprodej
B49: moderní hodiny | C49: =Tabulka15[[#This Row],[Hledanost Google]]+Tabulka15[[#This Row],[Hledanost Seznam]] -> 197 | D49: =AVERAGE(Tabulka15[[#This Row],[Konkurence Google]],Tabulka15[[#This Row],[Konkurence Seznam]]) -> 15.2575 | E49: 5 | F49: 140 | G49: 57 | H49: 25.913 | I49: 4.602 | J49: 6.22 | K49: 5.0727274 | L49: 100 | M49: 100 | N49: - | O49: - | P49: Neexistuje | Q49: 976000 | R49: 12322321
B50: velké hodiny | C50: =Tabulka15[[#This Row],[Hledanost Google]]+Tabulka15[[#This Row],[Hledanost Seznam]] -> 194 | D50: =AVERAGE(Tabulka15[[#This Row],[Konkurence Google]],Tabulka15[[#This Row],[Konkurence Seznam]]) -> 11.9415 | E50: 4 | F50: 110 | G50: 84 | H50: 21.599 | I50: 2.284 | J50: 6 | K50: 2.82 | L50: 100 | M50: 100 | N50: - | O50: - | P50: Neexistuje | Q50: 2480000 | R50: 32873424 | W50: velké
B51: hodiny na motorku | C51: =Tabulka15[[#This Row],[Hledanost Google]]+Tabulka15[[#This Row],[Hledanost Seznam]] -> 192 | D51: =AVERAGE(Tabulka15[[#This Row],[Konkurence Google]],Tabulka15[[#This Row],[Konkurence Seznam]]) -> 10.382 | E51: 1 | F51: 90 | G51: 102 | H51: 16.84 | I51: 3.924 | J51: 3.22 | K51: 1.5 | L51: 100 | M51: 100 | N51: - | O51: - | P51: Neexistuje | Q51: 1100000 | R51: 4840921
B52: keramické hodiny | C52: =Tabulka15[[#This Row],[Hledanost Google]]+Tabulka15[[#This Row],[Hledanost Seznam]] -> 186 | D52: =AVERAGE(Tabulka15[[#This Row],[Konkurence Google]],Tabulka15[[#This Row],[Konkurence Seznam]]) -> 17.8385 | E52: 5 | F52: 70 | G52: 116 | H52: 31.149 | I52: 4.528 | J52: 4.29 | K52: 1.65 | L52: 100 | M52: 100 | N52: - | O52: - | P52: Neexistuje | Q52: 658000 | R52: 4131587 | Z52: keramika
B53: hodiny v angličtině | C53: =Tabulka15[[#This Row],[Hledanost Google]]+Tabulka15[[#This Row],[Hledanost Seznam]] -> 183 | D53: =AVERAGE(Tabulka15[[#This Row],[Konkurence Google]],Tabulka15[[#This Row],[Konkurence Seznam]]) -> 7.645 | E53: 2 | F53: 140 | G53: 43 | H53: 12.5 | I53: 2.79 | J53: 17.36 | K53: 0 | L53: 100 | M53: 100 | N53: - | O53: - | P53: Neexistuje | Q53: 778000 | R53: 4030111 | V53: anglické
B54: hodiny s teploměrem | C54: =Tabulka15[[#This Row],[Hledanost Google]]+Tabulka15[[#This Row],[Hledanost Seznam]] -> 172 | D54: =AVERAGE(Tabulka15[[#This Row],[Konkurence Google]],Tabulka15[[#This Row],[Konkurence Seznam]]) -> 15.7695 | E54: 4 | F54: 50 | G54: 122 | H54: 28.701 | I54: 2.838 | J54: 5.79 | K54: 2.0333333 | L54: 100 | M54: 100 | N54: - | O54: - | P54: Neexistuje | Q54: 894000 | R54: 6517883 | X54: s teploměrem
B55: kovové nástěnné hodiny | C55: =Tabulka15[[#This Row],[Hledanost Google]]+Tabulka15[[#This Row],[Hledanost Seznam]] -> 171 | D55: =AVERAGE(Tabulka15[[#This Row],[Konkurence Google]],Tabulka15[[#This Row],[Konkurence Seznam]]) -> 13.042 | E55: 5 | F55: 20 | G55: 151 | H55: 23.435 | I55: 2.649 | J55: 6.22 | K55: 5.346667 | L55: 100 | M55: 100 | N55: - | O55: - | P55: Neexistuje | Q55: 463000 | R55: 2497337 | S55: nástěnné | Z55: kov
B56: nástěnné hodiny retro | C56: =Tabulka15[[#This Row],[Hledanost Google]]+Tabulka15[[#This Row],[Hledanost Seznam]] -> 169 | D56: =AVERAGE(Tabulka15[[#This Row],[Konkurence Google]],Tabulka15[[#This Row],[Konkurence Seznam]]) -> 3.8105 | E56: 5 | F56: 110 | G56: 59 | H56: 5.283 | I56: 2.338 | J56: 7.07 | K56: 5.462857 | L56: 100 | M56: 100 | N56: - | O56: - | P56: Neexistuje | Q56: 302000 | R56: 1138748 | S56: nástěnné | V56: retro
B57: hodiny s kyvadlem | C57: =Tabulka15[[#This Row],[Hledanost Google]]+Tabulka15[[#This Row],[Hledanost Seznam]] -> 165 | D57: =AVERAGE(Tabulka15[[#This Row],[Konkurence Google]],Tabulka15[[#This Row],[Konkurence Seznam]]) -> 16.0935 | E57: 5 | F57: 50 | G57: 115 | H57: 27.094 | I57: 5.093 | J57: 4.93 | K57: 1.4118182 | L57: 100 | M57: 100 | N57: - | O57: - | P57: Neexistuje | Q57: 465000 | R57: 45640 | U57: kyvadlový
B58: levné nástěnné hodiny | C58: =Tabulka15[[#This Row],[Hledanost Google]]+Tabulka15[[#This Row],[Hledanost Seznam]] -> 163 | D58: =AVERAGE(Tabulka15[[#This Row],[Konkurence Google]],Tabulka15[[#This Row],[Konkurence Seznam]]) -> 4.3495 | E58: 5 | F58: 140 | G58: 23 | H58: 5.494 | I58: 3.205 | J58: 6.86 | K58: 4.2778378 | L58: 100 | M58: 100 | N58: - | O58: - | P58: Neexistuje | Q58: 245000 | R58: 921376 | S58: nástěnné
B59: přesípací hodiny | C59: =Tabulka15[[#This Row],[Hledanost Google]]+Tabulka15[[#This Row],[Hledanost Seznam]] -> 161 | D59: =AVERAGE(Tabulka15[[#This Row],[Konkurence Google]],Tabulka15[[#This Row],[Konkurence Seznam]]) -> 11.133 | E59: 1 | F59: 110 | G59: 51 | H59: 20.007 | I59: 2.259 | J59: 6.22 | K59: 0.6375 | L59: 100 | M59: 100 | N59: - | O59: - | P59: Neexistuje | Q59: 42500 | R59: 304670 | S59: přesýpací
B60: hodiny karlsson | C60: =Tabulka15[[#This Row],[Hledanost Google]]+Tabulka15[[#This Row],[Hledanost Seznam]] -> 158 | D60: =AVERAGE(Tabulka15[[#This Row],[Konkurence Google]],Tabulka15[[#This Row],[Konkurence Seznam]]) -> 7.5705 | E60: 5 | F60: 110 | G60: 48 | H60: 10.892 | I60: 4.249 | J60: 10.29 | K60: 3.9133334 | L60: 100 | M60: 100 | N60: - | O60: - | P60: Neexistuje | Q60: 585000 | R60: 361340 | T60: Karlsson
B61: vinylové hodiny | C61: =Tabulka15[[#This Row],[Hledanost Google]]+Tabulka15[[#This Row],[Hledanost Seznam]] -> 156 | D61: =AVERAGE(Tabulka15[[#This Row],[Konkurence Google]],Tabulka15[[#This Row],[Konkurence Seznam]]) -> 18.6215 | E61: 3 | F61: 110 | G61: 46 | H61: 33.181 | I61: 4.062 | J61: 6 | K61: 1.7727272 | L61: 100 | M61: 100 | N61: - | O61: - | P61: Neexistuje | Q61: 499000 | R61: 1157941
B62: vintage hodiny | C62: =Tabulka15[[#This Row],[Hledanost Google]]+Tabulka15[[#This Row],[Hledanost Seznam]] -> 152 | D62: =AVERAGE(Tabulka15[[#This Row],[Konkurence Google]],Tabulka15[[#This Row],[Konkurence Seznam]]) -> 11.925 | E62: 5 | F62: 90 | G62: 62 | H62: 20.686 | I62: 3.164 | J62: 10.5 | K62: 3.1666666 | L62: 100 | M62: 100 | N62: - | O62: - | P62: Neexistuje | Q62: 607000 | R62: 2476160 | V62: vintage
B63: selské hodiny | C63: =Tabulka15[[#This Row],[Hledanost Google]]+Tabulka15[[#This Row],[Hledanost Seznam]] -> 150 | D63: =AVERAGE(Tabulka15[[#This Row],[Konkurence Google]],Tabulka15[[#This Row],[Konkurence Seznam]]) -> 13.549 | E63: 3 | F63: 110 | G63: 40 | H63: 22.674 | I63: 4.424 | J63: 4.72 | K63: 1.283871 | L63: 100 | M63: 100 | N63: - | O63: - | P63: Neexistuje | Q63: 311000 | R63: 267159
B64: dcf hodiny | C64: =Tabulka15[[#This Row],[Hledanost Google]]+Tabulka15[[#This Row],[Hledanost Seznam]] -> 148 | D64: =AVERAGE(Tabulka15[[#This Row],[Konkurence Google]],Tabulka15[[#This Row],[Konkurence Seznam]]) -> 15.8225 | E64: 2 | F64: 90 | G64: 58 | H64: 28.433 | I64: 3.212 | J64: 4.5 | K64: 4.0666666 | L64: 100 | M64: 100 | N64: - | O64: - | P64: Neexistuje | Q64: 138000 | R64: 202283 | T64: DCF
B65: hodiny provence | C65: =Tabulka15[[#This Row],[Hledanost Google]]+Tabulka15[[#This Row],[Hledanost Seznam]] -> 144 | D65: =AVERAGE(Tabulka15[[#This Row],[Konkurence Google]],Tabulka15[[#This Row],[Konkurence Seznam]]) -> 13.256 | E65: 4 | F65: 70 | G65: 74 | H65: 23.468 | I65: 3.044 | J65: 6.22 | K65: 1.7266667 | L65: 100 | M65: 100 | N65: - | O65: - | P65: Neexistuje | Q65: 421000 | R65: 1691097 | V65: provence
B66: křtící hodiny | C66: =Tabulka15[[#This Row],[Hledanost Google]]+Tabulka15[[#This Row],[Hledanost Seznam]] -> 144 | D66: =AVERAGE(Tabulka15[[#This Row],[Konkurence Google]],Tabulka15[[#This Row],[Konkurence Seznam]]) -> 19.1095 | E66: 1 | F66: 90 | G66: 54 | H66: 32.325 | I66: 5.894 | J66: 3.43 | K66: 3.0473685 | L66: 100 | M66: 100 | N66: - | O66: - | P66: Neexistuje | Q66: 19900 | R66: 12851
B67: hodiny levandule | C67: =Tabulka15[[#This Row],[Hledanost Google]]+Tabulka15[[#This Row],[Hledanost Seznam]] -> 140 | D67: =AVERAGE(Tabulka15[[#This Row],[Konkurence Google]],Tabulka15[[#This Row],[Konkurence Seznam]]) -> 15.208 | E67: 3 | F67: 50 | G67: 90 | H67: 26.319 | I67: 4.097 | J67: 4.07 | K67: 4.325 | L67: 100 | M67: 100 | N67: - | O67: - | P67: Neexistuje | Q67: 536000 | R67: 1120409
B68: hodiny s fotkou | C68: =Tabulka15[[#This Row],[Hledanost Google]]+Tabulka15[[#This Row],[Hledanost Seznam]] -> 140 | D68: =AVERAGE(Tabulka15[[#This Row],[Konkurence Google]],Tabulka15[[#This Row],[Konkurence Seznam]]) -> 10.1955 | E68: 3 | F68: 90 | G68: 50 | H68: 17.014 | I68: 3.377 | J68: 6.43 | K68: 1.7727272 | L68: 100 | M68: 100 | N68: - | O68: - | P68: Neexistuje | Q68: 680000 | R68: 525628
B69: kovové hodiny | C69: =Tabulka15[[#This Row],[Hledanost Google]]+Tabulka15[[#This Row],[Hledanost Seznam]] -> 140 | D69: =AVERAGE(Tabulka15[[#This Row],[Konkurence Google]],Tabulka15[[#This Row],[Konkurence Seznam]]) -> 19.202 | E69: 5 | F69: 70 | G69: 70 | H69: 33.12 | I69: 5.284 | J69: 7.29 | K69: 3.2975 | L69: 100 | M69: 100 | N69: - | O69: - | P69: Neexistuje | Q69: 882000 | R69: 8344727 | Z69: kov
B70: designové hodiny na zeď | C70: =Tabulka15[[#This Row],[Hledanost Google]]+Tabulka15[[#This Row],[Hledanost Seznam]] -> 137 | D70: =AVERAGE(Tabulka15[[#This Row],[Konkurence Google]],Tabulka15[[#This Row],[Konkurence Seznam]]) -> 8.4075 | E70: 5 | F70: 90 | G70: 47 | H70: 13.307 | I70: 3.508 | J70: 5.79 | K70: 3.3 | L70: 100 | M70: 100 | N70: - | O70: - | P70: Neexistuje | Q70: 315000 | R70: 1283338 | S70: na zeď | V70: design
B71: hodinové ručičky | C71: =Tabulka15[[#This Row],[Hledanost Google]]+Tabulka15[[#This Row],[Hledanost Seznam]] -> 135 | D71: =AVERAGE(Tabulka15[[#This Row],[Konkurence Google]],Tabulka15[[#This Row],[Konkurence Seznam]]) -> 15.376 | E71: 3 | F71: 70 | G71: 65 | H71: 26.718 | I71: 4.034 | J71: 4.29 | K71: 0.25 | L71: 100 | M71: 43 | N71: - | O71: https://www.example.cz/stranka | P71: https://www.example.cz/stranka | Q71: 284000 | R71: 362642
B72: hodiny pendlovky | C72: =Tabulka15[[#This Row],[Hledanost Google]]+Tabulka15[[#This Row],[Hledanost Seznam]] -> 135 | D72: =AVERAGE(Tabulka15[[#This Row],[Konkurence Google]],Tabulka15[[#This Row],[Konkurence Seznam]]) -> 13.377 | E72: 5 | F72: 50 | G72: 85 | H72: 22.251 | I72: 4.503 | J72: 3.43 | K72: 2.9860345 | L72: 100 | M72: 38 | N72: - | O72: https://www.example.cz/stranka | P72: https://www.example.cz/stranka | Q72: 52300 | R72: 77270 | X72: pendlové
B73: hodinový strojek s ručičkami | C73: =Tabulka15[[#This Row],[Hledanost Google]]+Tabulka15[[#This Row],[Hledanost Seznam]] -> 128 | D73: =AVERAGE(Tabulka15[[#This Row],[Konkurence Google]],Tabulka15[[#This Row],[Konkurence Seznam]]) -> 7.3075 | E73: 3 | F73: 40 | G73: 88 | H73: 12.75 | I73: 1.865 | J73: 3 | K73: 2.5890323 | L73: 100 | M73: 100 | N73: - | O73: - | P73: Neexistuje | Q73: 295000 | R73: 139230 | S73: hodinové strojky
B74: krbové hodiny | C74: =Tabulka15[[#This Row],[Hledanost Google]]+Tabulka15[[#This Row],[Hledanost Seznam]] -> 126 | D74: =AVERAGE(Tabulka15[[#This Row],[Konkurence Google]],Tabulka15[[#This Row],[Konkurence Seznam]]) -> 20.0015 | E74: 3 | F74: 70 | G74: 56 | H74: 34.8 | I74: 5.203 | J74: 4.29 | K74: 2.6642856 | L74: 100 | M74: 100 | N74: - | O74: - | P74: Neexistuje | Q74: 372000 | R74: 2162938
B75: venkovní hodiny s teploměrem | C75: =Tabulka15[[#This Row],[Hledanost Google]]+Tabulka15[[#This Row],[Hledanost Seznam]] -> 125 | D75: =AVERAGE(Tabulka15[[#This Row],[Konkurence Google]],Tabulka15[[#This Row],[Konkurence Seznam]]) -> 7.8045 | E75: 1 | F75: 40 | G75: 85 | H75: 13.152 | I75: 2.457 | J75: 8.15 | K75: 3.3935483 | L75: 100 | M75: 100 | N75: - | O75: - | P75: Neexistuje | Q75: 335000 | R75: 2420940 | S75: venkovní | X75: s teploměrem
B76: druhy hodin | C76: =Tabulka15[[#This Row],[Hledanost Google]]+Tabulka15[[#This Row],[Hledanost Seznam]] -> 124 | D76: =AVERAGE(Tabulka15[[#This Row],[Konkurence Google]],Tabulka15[[#This Row],[Konkurence Seznam]]) -> 10.4895 | E76: 3 | F76: 90 | G76: 34 | H76: 18.333 | I76: 2.646 | J76: 3.64 | K76: 0.7 | L76: 100 | M76: 100 | N76: - | O76: - | P76: Neexistuje | Q76: 2270000 | R76: 14586085
B77: nástěnné hodiny řízené rádiem | C77: =Tabulka15[[#This Row],[Hledanost Google]]+Tabulka15[[#This Row],[Hledanost Seznam]] -> 124 | D77: =AVERAGE(Tabulka15[[#This Row],[Konkurence Google]],Tabulka15[[#This Row],[Konkurence Seznam]]) -> 2.6655 | E77: 4 | F77: 90 | G77: 34 | H77: 3.53 | I77: 1.801 | J77: 7.72 | K77: 4.8477777 | L77: 100 | M77: 100 | N77: - | O77: - | P77: Neexistuje | Q77: 407000 | R77: 207315 | S77: nástěnné | U77: řízené rádiem
B78: nástěnné hodiny s kyvadlem | C78: =Tabulka15[[#This Row],[Hledanost Google]]+Tabulka15[[#This Row],[Hledanost Seznam]] -> 121 | D78: =AVERAGE(Tabulka15[[#This Row],[Konkurence Google]],Tabulka15[[#This Row],[Konkurence Seznam]]) -> 12.401 | E78: 5 | F78: 40 | G78: 81 | H78: 22.125 | I78: 2.677 | J78: 6.43 | K78: 3.3290625 | L78: 100 | M78: 100 | N78: - | O78: - | P78: Neexistuje | Q78: 453000 | R78: 20149 | S78: nástěnné | U78: kyvadlový
B79: tiché nástěnné hodiny | C79: =Tabulka15[[#This Row],[Hledanost Google]]+Tabulka15[[#This Row],[Hledanost Seznam]] -> 121 | D79: =AVERAGE(Tabulka15[[#This Row],[Konkurence Google]],Tabulka15[[#This Row],[Konkurence Seznam]]) -> 9.1725 | E79: 4 | F79: 40 | G79: 81 | H79: 15.067 | I79: 3.278 | J79: 5.57 | K79: 4.0194287 | L79: 100 | M79: 100 | N79: - | O79: - | P79: Neexistuje | Q79: 73100 | R79: 75335 | S79: nástěnné | X79: tiché
B80: ručičkové hodiny | C80: =Tabulka15[[#This Row],[Hledanost Google]]+Tabulka15[[#This Row],[Hledanost Seznam]] -> 119 | D80: =AVERAGE(Tabulka15[[#This Row],[Konkurence Google]],Tabulka15[[#This Row],[Konkurence Seznam]]) -> 5.399 | E80: 5 | F80: 110 | G80: 9 | H80: 7.12 | I80: 3.678 | J80: 9.22 | K80: 3.2 | L80: 100 | M80: 100 | N80: - | O80: - | P80: Neexistuje | Q80: 425000 | R80: 837461 | Z80: kov
B81: nástěnné hodiny červené | C81: =Tabulka15[[#This Row],[Hledanost Google]]+Tabulka15[[#This Row],[Hledanost Seznam]] -> 116 | D81: =AVERAGE(Tabulka15[[#This Row],[Konkurence Google]],Tabulka15[[#This Row],[Konkurence Seznam]]) -> 10.5825 | E81: 3 | F81: 30 | G81: 86 | H81: 17.106 | I81: 4.059 | J81: 8.15 | K81: 6.38 | L81: 100 | M81: 100 | N81: - | O81: - | P81: Neexistuje | Q81: 288000 | R81: 1592870 | S81: nástěnné | Y81: červené
B82: hodiny s tichým chodem | C82: =Tabulka15[[#This Row],[Hledanost Google]]+Tabulka15[[#This Row],[Hledanost Seznam]] -> 115 | D82: =AVERAGE(Tabulka15[[#This Row],[Konkurence Google]],Tabulka15[[#This Row],[Konkurence Seznam]]) -> 10.8 | E82: 4 | F82: 70 | G82: 45 | H82: 17.503 | I82: 4.097 | J82: 4.29 | K82: 1.8733333 | L82: 100 | M82: 100 | N82: - | O82: - | P82: Neexistuje | Q82: 720000 | R82: 116401 | X82: tiché
B83: hodiny prim | C83: =Tabulka15[[#This Row],[Hledanost Google]]+Tabulka15[[#This Row],[Hledanost Seznam]] -> 112 | D83: =AVERAGE(Tabulka15[[#This Row],[Konkurence Google]],Tabulka15[[#This Row],[Konkurence Seznam]]) -> 16.452 | E83: 5 | F83: 90 | G83: 22 | H83: 27.703 | I83: 5.201 | J83: 3.22 | K83: 2.1 | L83: 100 | M83: 100 | N83: - | O83: - | P83: Neexistuje | Q83: 383000 | R83: 4082026 | T83: Prim
B84: lihýřové hodiny | C84: =Tabulka15[[#This Row],[Hledanost Google]]+Tabulka15[[#This Row],[Hledanost Seznam]] -> 111 | D84: =AVERAGE(Tabulka15[[#This Row],[Konkurence Google]],Tabulka15[[#This Row],[Konkurence Seznam]]) -> 14.1895 | E84: 1 | F84: 50 | G84: 61 | H84: 23.53 | I84: 4.849 | J84: 7.07 | K84: 0.2 | L84: 100 | M84: 100 | N84: - | O84: - | P84: Neexistuje | Q84: 347000 | R84: 2126 | S84: lihýřové
B85: hodiny z gramofonové desky | C85: =Tabulka15[[#This Row],[Hledanost Google]]+Tabulka15[[#This Row],[Hledanost Seznam]] -> 110 | D85: =AVERAGE(Tabulka15[[#This Row],[Konkurence Google]],Tabulka15[[#This Row],[Konkurence Seznam]]) -> 8.421 | E85: 3 | F85: 50 | G85: 60 | H85: 14.524 | I85: 2.318 | J85: 4.5 | K85: 0.71111115 | L85: 100 | M85: 100 | N85: - | O85: - | P85: Neexistuje | Q85: 347000 | R85: 129900
B86: nástěnné hodiny ikea | C86: =Tabulka15[[#This Row],[Hledanost Google]]+Tabulka15[[#This Row],[Hledanost Seznam]] -> 109 | D86: =AVERAGE(Tabulka15[[#This Row],[Konkurence Google]],Tabulka15[[#This Row],[Konkurence Seznam]]) -> 8.478 | E86: 1 | F86: 90 | G86: 19 | H86: 14.672 | I86: 2.284 | J86: 6.22 | K86: 5.263158 | L86: 100 | M86: 100 | N86: - | O86: - | P86: Neexistuje | Q86: 197000 | R86: 77381 | S86: nástěnné | T86: Ikea
B87: nástěnné hodiny prim | C87: =Tabulka15[[#This Row],[Hledanost Google]]+Tabulka15[[#This Row],[Hledanost Seznam]] -> 109 | D87: =AVERAGE(Tabulka15[[#This Row],[Konkurence Google]],Tabulka15[[#This Row],[Konkurence Seznam]]) -> 13.091 | E87: 5 | F87: 70 | G87: 39 | H87: 22.956 | I87: 3.226 | J87: 5.57 | K87: 3.41 | L87: 100 | M87: 100 | N87: - | O87: - | P87: Neexistuje | Q87: 636000 | R87: 490039 | S87: nástěnné | T87: Prim
B88: nástěnné hodiny tichý chod | C88: =Tabulka15[[#This Row],[Hledanost Google]]+Tabulka15[[#This Row],[Hledanost Seznam]] -> 109 | D88: =AVERAGE(Tabulka15[[#This Row],[Konkurence Google]],Tabulka15[[#This Row],[Konkurence Seznam]]) -> 7.495 | E88: 4 | F88: 50 | G88: 59 | H88: 12.347 | I88: 2.643 | J88: 0 | K88: 4.2125 | L88: 100 | M88: 100 | N88: - | O88: - | P88: Neexistuje | Q88: 572000 | R88: 64855 | S88: nástěnné | X88: tiché
B89: dámské hodiny | C89: =Tabulka15[[#This Row],[Hledanost Google]]+Tabulka15[[#This Row],[Hledanost Seznam]] -> 106 | D89: =AVERAGE(Tabulka15[[#This Row],[Konkurence Google]],Tabulka15[[#This Row],[Konkurence Seznam]]) -> 10.6315 | E89: 3 | F89: 90 | G89: 16 | H89: 19.037 | I89: 2.226 | J89: 9.65 | K89: 0 | L89: 54 | M89: 100 | N89: https://www.example.cz/stranka | O89: - | P89: https://www.example.cz/stranka | Q89: 833000 | R89: 11427455
B90: hodiny na plochu zdarma | C90: =Tabulka15[[#This Row],[Hledanost Google]]+Tabulka15[[#This Row],[Hledanost Seznam]] -> 106 | D90: =AVERAGE(Tabulka15[[#This Row],[Konkurence Google]],Tabulka15[[#This Row],[Konkurence Seznam]]) -> 6.9425 | E90: 3 | F90: 50 | G90: 56 | H90: 11.862 | I90: 2.023 | J90: 0 | K90: 0 | L90: 100 | M90: 100 | N90: - | O90: - | P90: Neexistuje | Q90: 546000 | R90: 2479262
B91: hodiny s projektorem | C91: =Tabulka15[[#This Row],[Hledanost Google]]+Tabulka15[[#This Row],[Hledanost Seznam]] -> 106 | D91: =AVERAGE(Tabulka15[[#This Row],[Konkurence Google]],Tabulka15[[#This Row],[Konkurence Seznam]]) -> 9.406 | E91: 3 | F91: 30 | G91: 76 | H91: 15.232 | I91: 3.58 | J91: 5.14 | K91: 3.70625 | L91: 100 | M91: 100 | N91: - | O91: - | P91: Neexistuje | Q91: 272000 | R91: 4611765
B92: zahradní hodiny | C92: =Tabulka15[[#This Row],[Hledanost Google]]+Tabulka15[[#This Row],[Hledanost Seznam]] -> 106 | D92: =AVERAGE(Tabulka15[[#This Row],[Konkurence Google]],Tabulka15[[#This Row],[Konkurence Seznam]]) -> 11.09 | E92: 1 | F92: 50 | G92: 56 | H92: 18.687 | I92: 3.493 | J92: 3 | K92: 0.9 | L92: 100 | M92: 100 | N92: - | O92: - | P92: Neexistuje | Q92: 1760000 | R92: 11536510 | X92: na zahradu
B93: elektrické hodiny | C93: =Tabulka15[[#This Row],[Hledanost Google]]+Tabulka15[[#This Row],[Hledanost Seznam]] -> 105 | D93: =AVERAGE(Tabulka15[[#This Row],[Konkurence Google]],Tabulka15[[#This Row],[Konkurence Seznam]]) -> 12.6395 | E93: 4 | F93: 50 | G93: 55 | H93: 21.223 | I93: 4.056 | J93: 3.22 | K93: 1.644 | L93: 100 | M93: 100 | N93: - | O93: - | P93: Neexistuje | Q93: 1120000 | R93: 11151416 | U93: elektro
B94: binární hodiny | C94: =Tabulka15[[#This Row],[Hledanost Google]]+Tabulka15[[#This Row],[Hledanost Seznam]] -> 104 | D94: =AVERAGE(Tabulka15[[#This Row],[Konkurence Google]],Tabulka15[[#This Row],[Konkurence Seznam]]) -> 11.9805 | E94: 3 | F94: 90 | G94: 14 | H94: 18.762 | I94: 5.199 | J94: 4.29 | K94: 0 | L94: 100 | M94: 100 | N94: - | O94: - | P94: Neexistuje | Q94: 296000 | R94: 219017
B95: nástěnné hodiny s teploměrem | C95: =Tabulka15[[#This Row],[Hledanost Google]]+Tabulka15[[#This Row],[Hledanost Seznam]] -> 104 | D95: =AVERAGE(Tabulka15[[#This Row],[Konkurence Google]],Tabulka15[[#This Row],[Konkurence Seznam]]) -> 12.4555 | E95: 4 | F95: 30 | G95: 74 | H95: 21.78 | I95: 3.131 | J95: 0 | K95: 4.8272726 | L95: 100 | M95: 100 | N95: - | O95: - | P95: Neexistuje | Q95: 218000 | R95: 2300030 | S95: nástěnné | X95: s teploměrem
B96: retro hodiny na zeď | C96: =Tabulka15[[#This Row],[Hledanost Google]]+Tabulka15[[#This Row],[Hledanost Seznam]] -> 104 | D96: =AVERAGE(Tabulka15[[#This Row],[Konkurence Google]],Tabulka15[[#This Row],[Konkurence Seznam]]) -> 8.661 | E96: 5 | F96: 40 | G96: 64 | H96: 14.544 | I96: 2.778 | J96: 4.72 | K96: 4.3 | L96: 100 | M96: 100 | N96: - | O96: - | P96: Neexistuje | Q96: 355000 | R96: 1003883 | S96: na zeď | V96: retro
B97: nástěnné hodiny do koupelny | C97: =Tabulka15[[#This Row],[Hledanost Google]]+Tabulka15[[#This Row],[Hledanost Seznam]] -> 101 | D97: =AVERAGE(Tabulka15[[#This Row],[Konkurence Google]],Tabulka15[[#This Row],[Konkurence Seznam]]) -> 11.949 | E97: 3 | F97: 10 | G97: 91 | H97: 21.259 | I97: 2.639 | J97: 0 | K97: 4.1027026 | L97: 100 | M97: 100 | N97: - | O97: - | P97: Neexistuje | Q97: 201000 | R97: 3464156 | S97: nástěnné | X97: do koupleny
B98: nástěnné hodiny s fotorámečky | C98: =Tabulka15[[#This Row],[Hledanost Google]]+Tabulka15[[#This Row],[Hledanost Seznam]] -> 101 | D98: =AVERAGE(Tabulka15[[#This Row],[Konkurence Google]],Tabulka15[[#This Row],[Konkurence Seznam]]) -> 12.096 | E98: 5 | F98: 40 | G98: 61 | H98: 20.023 | I98: 4.169 | J98: 4.72 | K98: 4.4627908 | L98: 100 | M98: 100 | N98: - | O98: - | P98: Neexistuje | Q98: 478000 | R98: 1789831 | S98: nástěnné
B99: nástěnné hodiny quartz | C99: =Tabulka15[[#This Row],[Hledanost Google]]+Tabulka15[[#This Row],[Hledanost Seznam]] -> 100 | D99: =AVERAGE(Tabulka15[[#This Row],[Konkurence Google]],Tabulka15[[#This Row],[Konkurence Seznam]]) -> 10.352 | E99: 5 | F99: 20 | G99: 80 | H99: 17.826 | I99: 2.878 | J99: 6 | K99: 6.2 | L99: 100 | M99: 100 | N99: - | O99: - | P99: Neexistuje | Q99: 700000 | R99: 328647 | S99: nástěnné | U99: quartz
B100: hodiny do obývacího pokoje | C100: =Tabulka15[[#This Row],[Hledanost Google]]+Tabulka15[[#This Row],[Hledanost Seznam]] -> 99 | D100: =AVERAGE(Tabulka15[[#This Row],[Konkurence Google]],Tabulka15[[#This Row],[Konkurence Seznam]]) -> 10.7885 | E100: 5 | F100: 70 | G100: 29 | H100: 17.59 | I100: 3.987 | J100: 4.93 | K100: 1.9555556 | L100: 100 | M100: 100 | N100: - | O100: - | P100: Neexistuje | Q100: 665000 | R100: 5742303 | X100: do obýváku
B101: přesýpací hodiny na čištění zubů | C101: =Tabulka15[[#This Row],[Hledanost Google]]+Tabulka15[[#This Row],[Hledanost Seznam]] -> 98 | D101: =AVERAGE(Tabulka15[[#This Row],[Konkurence Google]],Tabulka15[[#This Row],[Konkurence Seznam]]) -> 11.494 | E101: 1 | F101: 40 | G101: 58 | H101: 18.867 | I101: 4.121 | J101: 7.72 | K101: 4.155 | L101: 100 | M101: 100 | N101: - | O101: - | P101: Neexistuje | Q101: 13900 | R101: 10538 | S101: přesýpací
B102: hodiny s kukackou | C102: =Tabulka15[[#This Row],[Hledanost Google]]+Tabulka15[[#This Row],[Hledanost Seznam]] -> 96 | D102: =AVERAGE(Tabulka15[[#This Row],[Konkurence Google]],Tabulka15[[#This Row],[Konkurence Seznam]]) -> 14.923 | E102: 5 | F102: 90 | G102: 6 | H102: 24.443 | I102: 5.403 | J102: 4.07 | K102: 1.9 | L102: 100 | M102: 100 | N102: - | O102: - | P102: Neexistuje | Q102: 61600 | R102: 12149 | S102: kukačky
B103: jak se naučit hodiny | C103: =Tabulka15[[#This Row],[Hledanost Google]]+Tabulka15[[#This Row],[Hledanost Seznam]] -> 94 | D103: =AVERAGE(Tabulka15[[#This Row],[Konkurence Google]],Tabulka15[[#This Row],[Konkurence Seznam]]) -> 6.5365 | E103: 3 | F103: 70 | G103: 24 | H103: 11.353 | I103: 1.72 | J103: 21.44 | K103: 0 | L103: 100 | M103: 100 | N103: - | O103: - | P103: Neexistuje | Q103: 972000 | R103: 1452203
B104: nástěnné hodiny design | C104: =Tabulka15[[#This Row],[Hledanost Google]]+Tabulka15[[#This Row],[Hledanost Seznam]] -> 93 | D104: =AVERAGE(Tabulka15[[#This Row],[Konkurence Google]],Tabulka15[[#This Row],[Konkurence Seznam]]) -> 7.3625 | E104: 5 | F104: 90 | G104: 3 | H104: 12.752 | I104: 1.973 | J104: 9.22 | K104: 0 | L104: 100 | M104: 100 | N104: - | O104: - | P104: Neexistuje | Q104: 422000 | R104: 2106593 | S104: nástěnné | V104: design
B105: stare hodiny | C105: =Tabulka15[[#This Row],[Hledanost Google]]+Tabulka15[[#This Row],[Hledanost Seznam]] -> 93 | D105: =AVERAGE(Tabulka15[[#This Row],[Konkurence Google]],Tabulka15[[#This Row],[Konkurence Seznam]]) -> 15.4505 | E105: 3 | F105: 70 | G105: 23 | H105: 26.066 | I105: 4.835 | J105: 0 | K105: 1.27 | L105: 100 | M105: 100 | N105: - | O105: - | P105: Neexistuje | Q105: 25900000 | R105: 14445992
B106: venkovní hodiny na zahradu | C106: =Tabulka15[[#This Row],[Hledanost Google]]+Tabulka15[[#This Row],[Hledanost Seznam]] -> 93 | D106: =AVERAGE(Tabulka15[[#This Row],[Konkurence Google]],Tabulka15[[#This Row],[Konkurence Seznam]]) -> 6.815 | E106: 1 | F106: 90 | G106: 3 | H106: 11.728 | I106: 1.902 | J106: 5.57 | K106: 4.1 | L106: 100 | M106: 100 | N106: - | O106: - | P106: Neexistuje | Q106: 706000 | R106: 6489793 | S106: venkovní | X106: na zahradu
B107: hodiny řízené radiovým signálem | C107: =Tabulka15[[#This Row],[Hledanost Google]]+Tabulka15[[#This Row],[Hledanost Seznam]] -> 91 | D107: =AVERAGE(Tabulka15[[#This Row],[Konkurence Google]],Tabulka15[[#This Row],[Konkurence Seznam]]) -> 9.5955 | E107: 3 | F107: 70 | G107: 21 | H107: 16.815 | I107: 2.376 | J107: 5.57 | K107: 0 | L107: 100 | M107: 100 | N107: - | O107: - | P107: Neexistuje | Q107: 125000 | R107: 117766
B108: velké hodiny na stěnu | C108: =Tabulka15[[#This Row],[Hledanost Google]]+Tabulka15[[#This Row],[Hledanost Seznam]] -> 91 | D108: =AVERAGE(Tabulka15[[#This Row],[Konkurence Google]],Tabulka15[[#This Row],[Konkurence Seznam]]) -> 7.809 | E108: 4 | F108: 70 | G108: 21 | H108: 13.201 | I108: 2.417 | J108: 5.79 | K108: 3.875862 | L108: 100 | M108: 100 | N108: - | O108: - | P108: Neexistuje | Q108: 499000 | R108: 2483644 | W108: velké
B109: designove-hodiny | C109: =Tabulka15[[#This Row],[Hledanost Google]]+Tabulka15[[#This Row],[Hledanost Seznam]] -> 90 | D109: =AVERAGE(Tabulka15[[#This Row],[Konkurence Google]],Tabulka15[[#This Row],[Konkurence Seznam]]) -> 7.748 | E109: 4 | F109: 90 | G109: 0 | H109: 13.312 | I109: 2.184 | J109: 10.93 | K109: 0 | L109: 100 | M109: 100 | N109: - | O109: - | P109: Neexistuje | Q109: 918000 | R109: 5563446 | V109: design
B110: hodiny jdoucí pozpátku | C110: =Tabulka15[[#This Row],[Hledanost Google]]+Tabulka15[[#This Row],[Hledanost Seznam]] -> 89 | D110: =AVERAGE(Tabulka15[[#This Row],[Konkurence Google]],Tabulka15[[#This Row],[Konkurence Seznam]]) -> 14.517 | E110: 3 | F110: 20 | G110: 69 | H110: 24.101 | I110: 4.933 | J110: 0 | K110: 1.88 | L110: 100 | M110: 100 | N110: - | O110: - | P110: Neexistuje | Q110: 9100 | R110: 29828
B111: nástěnné hodiny karlsson | C111: =Tabulka15[[#This Row],[Hledanost Google]]+Tabulka15[[#This Row],[Hledanost Seznam]] -> 89 | D111: =AVERAGE(Tabulka15[[#This Row],[Konkurence Google]],Tabulka15[[#This Row],[Konkurence Seznam]]) -> 11.1405 | E111: 5 | F111: 40 | G111: 49 | H111: 19.67 | I111: 2.611 | J111: 11.15 | K111: 5.6136365 | L111: 100 | M111: 100 | N111: - | O111: - | P111: Neexistuje | Q111: 356000 | R111: 248061 | S111: nástěnné | T111: Karlsson
B112: pánské hodiny | C112: =Tabulka15[[#This Row],[Hledanost Google]]+Tabulka15[[#This Row],[Hledanost Seznam]] -> 88 | D112: =AVERAGE(Tabulka15[[#This Row],[Konkurence Google]],Tabulka15[[#This Row],[Konkurence Seznam]]) -> 7.902 | E112: 3 | F112: 70 | G112: 18 | H112: 13.364 | I112: 2.44 | J112: 9.43 | K112: 1.9 | L112: 45 | M112: 100 | N112: https://www.example.cz/stranka | O112: - | P112: https://www.example.cz/stranka | Q112: 1540000 | R112: 10976145
B113: venkovní oboustranné hodiny | C113: =Tabulka15[[#This Row],[Hledanost Google]]+Tabulka15[[#This Row],[Hledanost Seznam]] -> 87 | D113: =AVERAGE(Tabulka15[[#This Row],[Konkurence Google]],Tabulka15[[#This Row],[Konkurence Seznam]]) -> 6.763 | E113: 1 | F113: 0 | G113: 87 | H113: 11.356 | I113: 2.17 | J113: 0 | K113: 0 | L113: 100 | M113: 100 | N113: - | O113: - | P113: Neexistuje | Q113: 476000 | R113: 512415 | S113: venkovní | X113: oboustranné
B114: krbové hodiny aukro | C114: =Tabulka15[[#This Row],[Hledanost Google]]+Tabulka15[[#This Row],[Hledanost Seznam]] -> 86 | D114: =AVERAGE(Tabulka15[[#This Row],[Konkurence Google]],Tabulka15[[#This Row],[Konkurence Seznam]]) -> 5.6125 | E114: 1 | F114: 0 | G114: 86 | H114: 9.015 | I114: 2.21 | J114: 0 | K114: 0 | L114: 100 | M114: 100 | N114: - | O114: - | P114: Neexistuje | Q114: 59300 | R114: 31614 | T114: Aukro
B115: fialové hodiny | C115: =Tabulka15[[#This Row],[Hledanost Google]]+Tabulka15[[#This Row],[Hledanost Seznam]] -> 85 | D115: =AVERAGE(Tabulka15[[#This Row],[Konkurence Google]],Tabulka15[[#This Row],[Konkurence Seznam]]) -> 14.365 | E115: 3 | F115: 30 | G115: 55 | H115: 24.352 | I115: 4.378 | J115: 4.07 | K115: 1.1 | L115: 100 | M115: 100 | N115: - | O115: - | P115: Neexistuje | Q115: 653000 | R115: 3513562 | Y115: fialové
B116: hodiny venkovní | C116: =Tabulka15[[#This Row],[Hledanost Google]]+Tabulka15[[#This Row],[Hledanost Seznam]] -> 83 | D116: =AVERAGE(Tabulka15[[#This Row],[Konkurence Google]],Tabulka15[[#This Row],[Konkurence Seznam]]) -> 8.56 | E116: 1 | F116: 30 | G116: 53 | H116: 14.85 | I116: 2.27 | J116: 7.07 | K116: 6.1 | L116: 100 | M116: 100 | N116: - | O116: - | P116: Neexistuje | Q116: 834000 | R116: 9918781 | S116: venkovní
B117: kyvadlové nástěnné hodiny | C117: =Tabulka15[[#This Row],[Hledanost Google]]+Tabulka15[[#This Row],[Hledanost Seznam]] -> 83 | D117: =AVERAGE(Tabulka15[[#This Row],[Konkurence Google]],Tabulka15[[#This Row],[Konkurence Seznam]]) -> 9.837 | E117: 5 | F117: 30 | G117: 53 | H117: 17.791 | I117: 1.883 | J117: 6.65 | K117: 5.514286 | L117: 100 | M117: 100 | N117: - | O117: - | P117: Neexistuje | Q117: 122000 | R117: 412027 | S117: nástěnné | U117: kyvadlový
B118: nástěnné hodiny dřevo | C118: =Tabulka15[[#This Row],[Hledanost Google]]+Tabulka15[[#This Row],[Hledanost Seznam]] -> 83 | D118: =AVERAGE(Tabulka15[[#This Row],[Konkurence Google]],Tabulka15[[#This Row],[Konkurence Seznam]]) -> 5.293 | E118: 5 | F118: 20 | G118: 63 | H118: 8.09 | I118: 2.496 | J118: 4.93 | K118: 6.133333 | L118: 100 | M118: 100 | N118: - | O118: - | P118: Neexistuje | Q118: 384000 | R118: 2184812 | S118: nástěnné | Z118: dřevo
B119: hodiny na zeď velké | C119: =Tabulka15[[#This Row],[Hledanost Google]]+Tabulka15[[#This Row],[Hledanost Seznam]] -> 82 | D119: =AVERAGE(Tabulka15[[#This Row],[Konkurence Google]],Tabulka15[[#This Row],[Konkurence Seznam]]) -> 7.508 | E119: 4 | F119: 70 | G119: 12 | H119: 12.946 | I119: 2.07 | J119: 5.36 | K119: 0 | L119: 100 | M119: 100 | N119: - | O119: - | P119: Neexistuje | Q119: 364000 | R119: 2589167 | S119: nástěnné | W119: velké
B120: hodiny pragotron | C120: =Tabulka15[[#This Row],[Hledanost Google]]+Tabulka15[[#This Row],[Hledanost Seznam]] -> 81 | D120: =AVERAGE(Tabulka15[[#This Row],[Konkurence Google]],Tabulka15[[#This Row],[Konkurence Seznam]]) -> 14.5155 | E120: 3 | F120: 50 | G120: 31 | H120: 24.578 | I120: 4.453 | J120: 0 | K120: 0.6 | L120: 100 | M120: 100 | N120: - | O120: - | P120: Neexistuje | Q120: 19200 | R120: 7038
B121: hodinový strojek s kyvadlem | C121: =Tabulka15[[#This Row],[Hledanost Google]]+Tabulka15[[#This Row],[Hledanost Seznam]] -> 79 | D121: =AVERAGE(Tabulka15[[#This Row],[Konkurence Google]],Tabulka15[[#This Row],[Konkurence Seznam]]) -> 7.9895 | E121: 3 | F121: 40 | G121: 39 | H121: 13.106 | I121: 2.873 | J121: 2.57 | K121: 0.7142857 | L121: 100 | M121: 100 | N121: - | O121: - | P121: Neexistuje | Q121: 29500 | R121: 108662 | S121: hodinové strojky | U121: kyvadlový
B122: hodiny ročky | C122: =Tabulka15[[#This Row],[Hledanost Google]]+Tabulka15[[#This Row],[Hledanost Seznam]] -> 79 | D122: =AVERAGE(Tabulka15[[#This Row],[Konkurence Google]],Tabulka15[[#This Row],[Konkurence Seznam]]) -> 14.5805 | E122: 5 | F122: 30 | G122: 49 | H122: 24.237 | I122: 4.924 | J122: 3.43 | K122: 0 | L122: 100 | M122: 100 | N122: - | O122: - | P122: Neexistuje | Q122: 382000 | R122: 17697 | X122: ročky
B123: nástěnné hodiny zelené | C123: =Tabulka15[[#This Row],[Hledanost Google]]+Tabulka15[[#This Row],[Hledanost Seznam]] -> 79 | D123: =AVERAGE(Tabulka15[[#This Row],[Konkurence Google]],Tabulka15[[#This Row],[Konkurence Seznam]]) -> 9.351 | E123: 3 | F123: 30 | G123: 49 | H123: 15.903 | I123: 2.799 | J123: 5.79 | K123: 6.27 | L123: 100 | M123: 100 | N123: - | O123: - | P123: Neexistuje | Q123: 311000 | R123: 1798475 | S123: nástěnné | Y123: zelené
B124: přesný čas atomové hodiny | C124: =Tabulka15[[#This Row],[Hledanost Google]]+Tabulka15[[#This Row],[Hledanost Seznam]] -> 78 | D124: =AVERAGE(Tabulka15[[#This Row],[Konkurence Google]],Tabulka15[[#This Row],[Konkurence Seznam]]) -> 6.6165 | E124: 1 | F124: 40 | G124: 38 | H124: 11.262 | I124: 1.971 | J124: 0 | K124: 0 | L124: 100 | M124: 100 | N124: - | O124: - | P124: Neexistuje | Q124: 264000 | R124: 107388 | S124: přesýpací
B125: tiché hodiny | C125: =Tabulka15[[#This Row],[Hledanost Google]]+Tabulka15[[#This Row],[Hledanost Seznam]] -> 77 | D125: =AVERAGE(Tabulka15[[#This Row],[Konkurence Google]],Tabulka15[[#This Row],[Konkurence Seznam]]) -> 13.2785 | E125: 3 | F125: 50 | G125: 27 | H125: 22.771 | I125: 3.786 | J125: 4.72 | K125: 2.275 | L125: 100 | M125: 100 | N125: - | O125: - | P125: Neexistuje | Q125: 519000 | R125: 1305851 | X125: tiché
B126: hodiny rhythm | C126: =Tabulka15[[#This Row],[Hledanost Google]]+Tabulka15[[#This Row],[Hledanost Seznam]] -> 76 | D126: =AVERAGE(Tabulka15[[#This Row],[Konkurence Google]],Tabulka15[[#This Row],[Konkurence Seznam]]) -> 14.007 | E126: 3 | F126: 30 | G126: 46 | H126: 23.284 | I126: 4.73 | J126: 6.86 | K126: 3.925 | L126: 100 | M126: 100 | N126: - | O126: - | P126: Neexistuje | Q126: 743000 | R126: 152338
B127: opakující se čísla na hodinách | C127: =Tabulka15[[#This Row],[Hledanost Google]]+Tabulka15[[#This Row],[Hledanost Seznam]] -> 76 | D127: =AVERAGE(Tabulka15[[#This Row],[Konkurence Google]],Tabulka15[[#This Row],[Konkurence Seznam]]) -> 6.173 | E127: 3 | F127: 40 | G127: 36 | H127: 10.656 | I127: 1.69 | J127: 0 | K127: 0 | L127: 100 | M127: 100 | N127: - | O127: - | P127: Neexistuje | Q127: 250000 | R127: 34014
B128: sloupové hodiny | C128: =Tabulka15[[#This Row],[Hledanost Google]]+Tabulka15[[#This Row],[Hledanost Seznam]] -> 76 | D128: =AVERAGE(Tabulka15[[#This Row],[Konkurence Google]],Tabulka15[[#This Row],[Konkurence Seznam]]) -> 15.02 | E128: 3 | F128: 40 | G128: 36 | H128: 24.722 | I128: 5.318 | J128: 6.86 | K128: 1.5416667 | L128: 100 | M128: 100 | N128: - | O128: - | P128: Neexistuje | Q128: 570000 | R128: 800801
B129: červené hodiny | C129: =Tabulka15[[#This Row],[Hledanost Google]]+Tabulka15[[#This Row],[Hledanost Seznam]] -> 75 | D129: =AVERAGE(Tabulka15[[#This Row],[Konkurence Google]],Tabulka15[[#This Row],[Konkurence Seznam]]) -> 14.5915 | E129: 3 | F129: 40 | G129: 35 | H129: 25.165 | I129: 4.018 | J129: 4.93 | K129: 0 | L129: 100 | M129: 100 | N129: - | O129: - | P129: Neexistuje | Q129: 3230000 | R129: 11905280 | Y129: červené
B130: nástěnné kyvadlové hodiny do obýváku | C130: =Tabulka15[[#This Row],[Hledanost Google]]+Tabulka15[[#This Row],[Hledanost Seznam]] -> 75 | D130: =AVERAGE(Tabulka15[[#This Row],[Konkurence Google]],Tabulka15[[#This Row],[Konkurence Seznam]]) -> 6.8045 | E130: 5 | F130: 0 | G130: 75 | H130: 11.312 | I130: 2.297 | J130: 0 | K130: 4.45 | L130: 100 | M130: 100 | N130: - | O130: - | P130: Neexistuje | Q130: 7740 | R130: 7811 | S130: nástěnné | U130: kyvadlový | X130: do obýváku
B131: bílé nástěnné hodiny | C131: =Tabulka15[[#This Row],[Hledanost Google]]+Tabulka15[[#This Row],[Hledanost Seznam]] -> 73 | D131: =AVERAGE(Tabulka15[[#This Row],[Konkurence Google]],Tabulka15[[#This Row],[Konkurence Seznam]]) -> 10.38 | E131: 3 | F131: 40 | G131: 33 | H131: 17.942 | I131: 2.818 | J131: 7.29 | K131: 7.1625 | L131: 100 | M131: 100 | N131: - | O131: - | P131: Neexistuje | Q131: 301000 | R131: 3859750 | S131: nástěnné | Y131: bílé
B132: netikající hodiny | C132: =Tabulka15[[#This Row],[Hledanost Google]]+Tabulka15[[#This Row],[Hledanost Seznam]] -> 73 | D132: =AVERAGE(Tabulka15[[#This Row],[Konkurence Google]],Tabulka15[[#This Row],[Konkurence Seznam]]) -> 8.36 | E132: 3 | F132: 50 | G132: 23 | H132: 14.119 | I132: 2.601 | J132: 4.5 | K132: 1.5 | L132: 100 | M132: 100 | N132: - | O132: - | P132: Neexistuje | Q132: 21700 | R132: 15364
B133: andělská čísla na hodinách 21:21 | C133: =Tabulka15[[#This Row],[Hledanost Google]]+Tabulka15[[#This Row],[Hledanost Seznam]] -> 72 | D133: =AVERAGE(Tabulka15[[#This Row],[Konkurence Google]],Tabulka15[[#This Row],[Konkurence Seznam]]) -> 6.185 | E133: 1 | F133: 0 | G133: 72 | H133: 10.555 | I133: 1.815 | J133: 0 | K133: 0 | L133: 100 | M133: 100 | N133: - | O133: - | P133: Neexistuje | Q133: 22800 | R133: 449
B134: kukačky hodiny kyvadlové mechanické | C134: =Tabulka15[[#This Row],[Hledanost Google]]+Tabulka15[[#This Row],[Hledanost Seznam]] -> 72 | D134: =AVERAGE(Tabulka15[[#This Row],[Konkurence Google]],Tabulka15[[#This Row],[Konkurence Seznam]]) -> 5.2625 | E134: 4 | F134: 0 | G134: 72 | H134: 8.81 | I134: 1.715 | J134: 0 | K134: 4.51 | L134: 100 | M134: 100 | N134: - | O134: - | P134: Neexistuje | Q134: 24600 | R134: 77678 | S134: kukačky | U134: kyvadlový
B135: staré nástěnné hodiny | C135: =Tabulka15[[#This Row],[Hledanost Google]]+Tabulka15[[#This Row],[Hledanost Seznam]] -> 72 | D135: =AVERAGE(Tabulka15[[#This Row],[Konkurence Google]],Tabulka15[[#This Row],[Konkurence Seznam]]) -> 7.7915 | E135: 3 | F135: 50 | G135: 22 | H135: 12.558 | I135: 3.025 | J135: 9.86 | K135: 5.8846155 | L135: 100 | M135: 100 | N135: - | O135: - | P135: Neexistuje | Q135: 214000 | R135: 422326 | S135: nástěnné
B136: starožitné hodiny nástěnné | C136: =Tabulka15[[#This Row],[Hledanost Google]]+Tabulka15[[#This Row],[Hledanost Seznam]] -> 71 | D136: =AVERAGE(Tabulka15[[#This Row],[Konkurence Google]],Tabulka15[[#This Row],[Konkurence Seznam]]) -> 6.7845 | E136: 2 | F136: 70 | G136: 1 | H136: 11.688 | I136: 1.881 | J136: 6.65 | K136: 0 | L136: 100 | M136: 100 | N136: - | O136: - | P136: Neexistuje | Q136: 159000 | R136: 99564 | S136: nástěnné | V136: starožitné
B137: starožitné hodiny pendlovky | C137: =Tabulka15[[#This Row],[Hledanost Google]]+Tabulka15[[#This Row],[Hledanost Seznam]] -> 71 | D137: =AVERAGE(Tabulka15[[#This Row],[Konkurence Google]],Tabulka15[[#This Row],[Konkurence Seznam]]) -> 4.913 | E137: 2 | F137: 70 | G137: 1 | H137: 8.118 | I137: 1.708 | J137: 8.15 | K137: 7.033333 | L137: 100 | M137: 100 | N137: - | O137: - | P137: Neexistuje | Q137: 32200 | R137: 26184 | V137: starožitné | X137: pendlové
B138: hodiny kienzle | C138: =Tabulka15[[#This Row],[Hledanost Google]]+Tabulka15[[#This Row],[Hledanost Seznam]] -> 70 | D138: =AVERAGE(Tabulka15[[#This Row],[Konkurence Google]],Tabulka15[[#This Row],[Konkurence Seznam]]) -> 14.515 | E138: 4 | F138: 40 | G138: 30 | H138: 25.134 | I138: 3.896 | J138: 3.64 | K138: 1 | L138: 100 | M138: 100 | N138: - | O138: - | P138: Neexistuje | Q138: 387000 | R138: 27175 | T138: Kienzle
B139: luxusní nástěnné hodiny | C139: =Tabulka15[[#This Row],[Hledanost Google]]+Tabulka15[[#This Row],[Hledanost Seznam]] -> 70 | D139: =AVERAGE(Tabulka15[[#This Row],[Konkurence Google]],Tabulka15[[#This Row],[Konkurence Seznam]]) -> 11.1865 | E139: 5 | F139: 30 | G139: 40 | H139: 19.306 | I139: 3.067 | J139: 19.29 | K139: 4.65 | L139: 100 | M139: 100 | N139: - | O139: - | P139: Neexistuje | Q139: 268000 | R139: 1307357 | S139: nástěnné | X139: luxusní
B140: mechanické hodiny | C140: =Tabulka15[[#This Row],[Hledanost Google]]+Tabulka15[[#This Row],[Hledanost Seznam]] -> 70 | D140: =AVERAGE(Tabulka15[[#This Row],[Konkurence Google]],Tabulka15[[#This Row],[Konkurence Seznam]]) -> 14.251 | E140: 3 | F140: 50 | G140: 20 | H140: 25.643 | I140: 2.859 | J140: 6.65 | K140: 1.0425 | L140: 100 | M140: 100 | N140: - | O140: - | P140: Neexistuje | Q140: 1030000 | R140: 4025537
B141: nástěnné hodiny vintage | C141: =Tabulka15[[#This Row],[Hledanost Google]]+Tabulka15[[#This Row],[Hledanost Seznam]] -> 70 | D141: =AVERAGE(Tabulka15[[#This Row],[Konkurence Google]],Tabulka15[[#This Row],[Konkurence Seznam]]) -> 10.81 | E141: 5 | F141: 40 | G141: 30 | H141: 18.307 | I141: 3.313 | J141: 5.79 | K141: 6.6 | L141: 100 | M141: 100 | N141: - | O141: - | P141: Neexistuje | Q141: 183000 | R141: 639778 | S141: nástěnné | V141: vintage
B142: hodiny s projekcí času | C142: =Tabulka15[[#This Row],[Hledanost Google]]+Tabulka15[[#This Row],[Hledanost Seznam]] -> 69 | D142: =AVERAGE(Tabulka15[[#This Row],[Konkurence Google]],Tabulka15[[#This Row],[Konkurence Seznam]]) -> 8.21 | E142: 3 | F142: 40 | G142: 29 | H142: 13.127 | I142: 3.293 | J142: 6.65 | K142: 1.8844444 | L142: 100 | M142: 100 | N142: - | O142: - | P142: Neexistuje | Q142: 589000 | R142: 457937
B143: hodiny řízené signálem | C143: =Tabulka15[[#This Row],[Hledanost Google]]+Tabulka15[[#This Row],[Hledanost Seznam]] -> 68 | D143: =AVERAGE(Tabulka15[[#This Row],[Konkurence Google]],Tabulka15[[#This Row],[Konkurence Seznam]]) -> 8.089 | E143: 3 | F143: 30 | G143: 38 | H143: 14.075 | I143: 2.103 | J143: 0 | K143: 1.5 | L143: 100 | M143: 100 | N143: - | O143: - | P143: Neexistuje | Q143: 327000 | R143: 219351
B144: nástěnné hodiny 60 cm | C144: =Tabulka15[[#This Row],[Hledanost Google]]+Tabulka15[[#This Row],[Hledanost Seznam]] -> 68 | D144: =AVERAGE(Tabulka15[[#This Row],[Konkurence Google]],Tabulka15[[#This Row],[Konkurence Seznam]]) -> 9.5005 | E144: 4 | F144: 20 | G144: 48 | H144: 17.145 | I144: 1.856 | J144: 4.93 | K144: 5.488889 | L144: 100 | M144: 100 | N144: - | O144: - | P144: Neexistuje | Q144: 365000 | R144: 2153120 | S144: nástěnné | W144: počet cm
B145: nástěnné hodiny s teploměrem a vlhkoměrem | C145: =Tabulka15[[#This Row],[Hledanost Google]]+Tabulka15[[#This Row],[Hledanost Seznam]] -> 68 | D145: =AVERAGE(Tabulka15[[#This Row],[Konkurence Google]],Tabulka15[[#This Row],[Konkurence Seznam]]) -> 9.6015 | E145: 4 | F145: 10 | G145: 58 | H145: 16.406 | I145: 2.797 | J145: 5.14 | K145: 4.8115384 | L145: 100 | M145: 100 | N145: - | O145: - | P145: Neexistuje | Q145: 79100 | R145: 404074 | S145: nástěnné | X145: s teploměrem
B146: světelné hodiny | C146: =Tabulka15[[#This Row],[Hledanost Google]]+Tabulka15[[#This Row],[Hledanost Seznam]] -> 68 | D146: =AVERAGE(Tabulka15[[#This Row],[Konkurence Google]],Tabulka15[[#This Row],[Konkurence Seznam]]) -> 10.654 | E146: 3 | F146: 30 | G146: 38 | H146: 18.272 | I146: 3.036 | J146: 5.36 | K146: 1.05 | L146: 100 | M146: 100 | N146: - | O146: - | P146: Neexistuje | Q146: 1050000 | R146: 4368591
B147: dřevěné kyvadlové hodiny bicí | C147: =Tabulka15[[#This Row],[Hledanost Google]]+Tabulka15[[#This Row],[Hledanost Seznam]] -> 67 | D147: =AVERAGE(Tabulka15[[#This Row],[Konkurence Google]],Tabulka15[[#This Row],[Konkurence Seznam]]) -> 7.2745 | E147: 4 | F147: 0 | G147: 67 | H147: 12.076 | I147: 2.473 | J147: 0 | K147: 3.1946 | L147: 100 | M147: 100 | N147: - | O147: - | P147: Neexistuje | Q147: 18200 | R147: 11658 | S147: bicí | U147: kyvadlový | Z147: dřevo
B148: hodiny nástěnné kočky | C148: =Tabulka15[[#This Row],[Hledanost Google]]+Tabulka15[[#This Row],[Hledanost Seznam]] -> 67 | D148: =AVERAGE(Tabulka15[[#This Row],[Konkurence Google]],Tabulka15[[#This Row],[Konkurence Seznam]]) -> 6.8865 | E148: 5 | F148: 0 | G148: 67 | H148: 11.738 | I148: 2.035 | J148: 0 | K148: 0 | L148: 100 | M148: 100 | N148: - | O148: - | P148: Neexistuje | Q148: 260000 | R148: 942011 | S148: nástěnné
B149: hodiny s kamerou | C149: =Tabulka15[[#This Row],[Hledanost Google]]+Tabulka15[[#This Row],[Hledanost Seznam]] -> 67 | D149: =AVERAGE(Tabulka15[[#This Row],[Konkurence Google]],Tabulka15[[#This Row],[Konkurence Seznam]]) -> 10.028 | E149: 1 | F149: 20 | G149: 47 | H149: 17.137 | I149: 2.919 | J149: 4.93 | K149: 2.2055556 | L149: 100 | M149: 100 | N149: - | O149: - | P149: Neexistuje | Q149: 901000 | R149: 2060587 | V149: americké | X149: s kamerou
B150: aukro hodiny | C150: =Tabulka15[[#This Row],[Hledanost Google]]+Tabulka15[[#This Row],[Hledanost Seznam]] -> 65 | D150: =AVERAGE(Tabulka15[[#This Row],[Konkurence Google]],Tabulka15[[#This Row],[Konkurence Seznam]]) -> 9.511 | E150: 1 | F150: 30 | G150: 35 | H150: 15.797 | I150: 3.225 | J150: 2.57 | K150: 0 | L150: 100 | M150: 100 | N150: - | O150: - | P150: Neexistuje | Q150: 1010000 | R150: 932379 | T150: Aukro
B151: hodiny kyvadlove nastenne quartz | C151: =Tabulka15[[#This Row],[Hledanost Google]]+Tabulka15[[#This Row],[Hledanost Seznam]] -> 64 | D151: =AVERAGE(Tabulka15[[#This Row],[Konkurence Google]],Tabulka15[[#This Row],[Konkurence Seznam]]) -> 5.733 | E151: 5 | F151: 0 | G151: 64 | H151: 9.702 | I151: 1.764 | J151: 0 | K151: 0 | L151: 100 | M151: 100 | N151: - | O151: - | P151: Neexistuje | Q151: 17100 | R151: 111177 | S151: nástěnné | U151: quartz
B152: rustikální hodiny | C152: =Tabulka15[[#This Row],[Hledanost Google]]+Tabulka15[[#This Row],[Hledanost Seznam]] -> 63 | D152: =AVERAGE(Tabulka15[[#This Row],[Konkurence Google]],Tabulka15[[#This Row],[Konkurence Seznam]]) -> 13.2035 | E152: 3 | F152: 30 | G152: 33 | H152: 22.158 | I152: 4.249 | J152: 4.29 | K152: 1.7132 | L152: 100 | M152: 100 | N152: - | O152: - | P152: Neexistuje | Q152: 233000 | R152: 1100800
B153: sloupkové hodiny | C153: =Tabulka15[[#This Row],[Hledanost Google]]+Tabulka15[[#This Row],[Hledanost Seznam]] -> 63 | D153: =AVERAGE(Tabulka15[[#This Row],[Konkurence Google]],Tabulka15[[#This Row],[Konkurence Seznam]]) -> 13.6935 | E153: 3 | F153: 30 | G153: 33 | H153: 23.295 | I153: 4.092 | J153: 4.93 | K153: 2.275 | L153: 100 | M153: 100 | N153: - | O153: - | P153: Neexistuje | Q153: 356000 | R153: 354307 | X153: sloupkové
B154: nástěnné hodiny seiko | C154: =Tabulka15[[#This Row],[Hledanost Google]]+Tabulka15[[#This Row],[Hledanost Seznam]] -> 62 | D154: =AVERAGE(Tabulka15[[#This Row],[Konkurence Google]],Tabulka15[[#This Row],[Konkurence Seznam]]) -> 8.8255 | E154: 5 | F154: 30 | G154: 32 | H154: 14.843 | I154: 2.808 | J154: 7.72 | K154: 5.05 | L154: 100 | M154: 100 | N154: - | O154: - | P154: Neexistuje | Q154: 281000 | R154: 355224 | S154: nástěnné
B155: hodinový ciferník | C155: =Tabulka15[[#This Row],[Hledanost Google]]+Tabulka15[[#This Row],[Hledanost Seznam]] -> 59 | D155: =AVERAGE(Tabulka15[[#This Row],[Konkurence Google]],Tabulka15[[#This Row],[Konkurence Seznam]]) -> 13.673 | E155: 3 | F155: 30 | G155: 29 | H155: 24.395 | I155: 2.951 | J155: 0.43 | K155: 0 | L155: 100 | M155: 100 | N155: - | O155: - | P155: Neexistuje | Q155: 201000 | R155: 794096
B156: hodiny na plochu pc | C156: =Tabulka15[[#This Row],[Hledanost Google]]+Tabulka15[[#This Row],[Hledanost Seznam]] -> 59 | D156: =AVERAGE(Tabulka15[[#This Row],[Konkurence Google]],Tabulka15[[#This Row],[Konkurence Seznam]]) -> 8.5115 | E156: 3 | F156: 30 | G156: 29 | H156: 13.096 | I156: 3.927 | J156: 0 | K156: 0.7 | L156: 100 | M156: 100 | N156: - | O156: - | P156: Neexistuje | Q156: 250000 | R156: 1608945
B157: nástěnné hodiny bentime | C157: =Tabulka15[[#This Row],[Hledanost Google]]+Tabulka15[[#This Row],[Hledanost Seznam]] -> 59 | D157: =AVERAGE(Tabulka15[[#This Row],[Konkurence Google]],Tabulka15[[#This Row],[Konkurence Seznam]]) -> 10.1305 | E157: 5 | F157: 20 | G157: 39 | H157: 17.28 | I157: 2.981 | J157: 0 | K157: 6.771429 | L157: 100 | M157: 100 | N157: - | O157: - | P157: Neexistuje | Q157: 233000 | R157: 130076 | S157: nástěnné | T157: bentime
B158: svatební hodiny | C158: =Tabulka15[[#This Row],[Hledanost Google]]+Tabulka15[[#This Row],[Hledanost Seznam]] -> 59 | D158: =AVERAGE(Tabulka15[[#This Row],[Konkurence Google]],Tabulka15[[#This Row],[Konkurence Seznam]]) -> 12.3465 | E158: 3 | F158: 40 | G158: 19 | H158: 19.444 | I158: 5.249 | J158: 5.36 | K158: 1.15 | L158: 100 | M158: 100 | N158: - | O158: - | P158: Neexistuje | Q158: 1770000 | R158: 3393864
B159: význam času na hodinách | C159: =Tabulka15[[#This Row],[Hledanost Google]]+Tabulka15[[#This Row],[Hledanost Seznam]] -> 59 | D159: =AVERAGE(Tabulka15[[#This Row],[Konkurence Google]],Tabulka15[[#This Row],[Konkurence Seznam]]) -> 7.13 | E159: 3 | F159: 40 | G159: 19 | H159: 11.968 | I159: 2.292 | J159: 0 | K159: 0 | L159: 100 | M159: 100 | N159: - | O159: - | P159: Neexistuje | Q159: 718000 | R159: 1334104
B160: závěsné hodiny | C160: =Tabulka15[[#This Row],[Hledanost Google]]+Tabulka15[[#This Row],[Hledanost Seznam]] -> 59 | D160: =AVERAGE(Tabulka15[[#This Row],[Konkurence Google]],Tabulka15[[#This Row],[Konkurence Seznam]]) -> 13.0875 | E160: 5 | F160: 30 | G160: 29 | H160: 22.176 | I160: 3.999 | J160: 7.5 | K160: 2.21 | L160: 100 | M160: 100 | N160: - | O160: - | P160: Neexistuje | Q160: 755000 | R160: 6401146 | S160: závěsné
B161: hermle hodiny | C161: =Tabulka15[[#This Row],[Hledanost Google]]+Tabulka15[[#This Row],[Hledanost Seznam]] -> 57 | D161: =AVERAGE(Tabulka15[[#This Row],[Konkurence Google]],Tabulka15[[#This Row],[Konkurence Seznam]]) -> 8.934 | E161: 3 | F161: 20 | G161: 37 | H161: 15.12 | I161: 2.748 | J161: 2.36 | K161: 0 | L161: 100 | M161: 100 | N161: - | O161: - | P161: Neexistuje | Q161: 431000 | R161: 63614
B162: nástěnné hodiny nextime | C162: =Tabulka15[[#This Row],[Hledanost Google]]+Tabulka15[[#This Row],[Hledanost Seznam]] -> 57 | D162: =AVERAGE(Tabulka15[[#This Row],[Konkurence Google]],Tabulka15[[#This Row],[Konkurence Seznam]]) -> 10.7845 | E162: 2 | F162: 20 | G162: 37 | H162: 18.279 | I162: 3.29 | J162: 0 | K162: 4.2830768 | L162: 100 | M162: 100 | N162: - | O162: - | P162: Neexistuje | Q162: 375000 | R162: 248983 | S162: nástěnné | T162: Nextime
B163: nástěnné hodiny pro děti | C163: =Tabulka15[[#This Row],[Hledanost Google]]+Tabulka15[[#This Row],[Hledanost Seznam]] -> 57 | D163: =AVERAGE(Tabulka15[[#This Row],[Konkurence Google]],Tabulka15[[#This Row],[Konkurence Seznam]]) -> 8.05 | E163: 5 | F163: 10 | G163: 47 | H163: 13.881 | I163: 2.219 | J163: 7.93 | K163: 5.833333 | L163: 100 | M163: 100 | N163: - | O163: - | P163: Neexistuje | Q163: 788000 | R163: 3964729 | S163: nástěnné
B164: nástěnné hodiny provence | C164: =Tabulka15[[#This Row],[Hledanost Google]]+Tabulka15[[#This Row],[Hledanost Seznam]] -> 57 | D164: =AVERAGE(Tabulka15[[#This Row],[Konkurence Google]],Tabulka15[[#This Row],[Konkurence Seznam]]) -> 8.8535 | E164: 4 | F164: 30 | G164: 27 | H164: 15.959 | I164: 1.748 | J164: 9.65 | K164: 3.2834784 | L164: 100 | M164: 100 | N164: - | O164: - | P164: Neexistuje | Q164: 314000 | R164: 523603 | S164: nástěnné | V164: provence
B165: nástěnné kyvadlové hodiny pendlovky starožitné | C165: =Tabulka15[[#This Row],[Hledanost Google]]+Tabulka15[[#This Row],[Hledanost Seznam]] -> 57 | D165: =AVERAGE(Tabulka15[[#This Row],[Konkurence Google]],Tabulka15[[#This Row],[Konkurence Seznam]]) -> 5.5595 | E165: 2 | F165: 0 | G165: 57 | H165: 9.508 | I165: 1.611 | J165: 0 | K165: 5.6826227 | L165: 100 | M165: 100 | N165: - | O165: - | P165: Neexistuje | Q165: 3250 | R165: 1418 | S165: nástěnné | U165: kyvadlový | V165: starožitné | X165: pendlové
B166: stylové hodiny | C166: =Tabulka15[[#This Row],[Hledanost Google]]+Tabulka15[[#This Row],[Hledanost Seznam]] -> 56 | D166: =AVERAGE(Tabulka15[[#This Row],[Konkurence Google]],Tabulka15[[#This Row],[Konkurence Seznam]]) -> 15.685 | E166: 3 | F166: 40 | G166: 16 | H166: 26.633 | I166: 4.737 | J166: 12 | K166: 2.5 | L166: 100 | M166: 100 | N166: - | O166: - | P166: Neexistuje | Q166: 827000 | R166: 2641630
B167: dědečkovy hodiny třebíč račerovická | C167: =Tabulka15[[#This Row],[Hledanost Google]]+Tabulka15[[#This Row],[Hledanost Seznam]] -> 55 | D167: =AVERAGE(Tabulka15[[#This Row],[Konkurence Google]],Tabulka15[[#This Row],[Konkurence Seznam]]) -> 3.91 | E167: 5 | F167: 0 | G167: 55 | H167: 6.216 | I167: 1.604 | J167: 0 | K167: 0 | L167: 100 | M167: 100 | N167: - | O167: - | P167: Neexistuje | Q167: 41 | R167: 4133 | Z167: kov
B168: empírové hodiny | C168: =Tabulka15[[#This Row],[Hledanost Google]]+Tabulka15[[#This Row],[Hledanost Seznam]] -> 55 | D168: =AVERAGE(Tabulka15[[#This Row],[Konkurence Google]],Tabulka15[[#This Row],[Konkurence Seznam]]) -> 14.658 | E168: 3 | F168: 30 | G168: 25 | H168: 25.311 | I168: 4.005 | J168: 0 | K168: 1.2625 | L168: 100 | M168: 100 | N168: - | O168: - | P168: Neexistuje | Q168: 66100 | R168: 30824
B169: jak vyrobit hodiny | C169: =Tabulka15[[#This Row],[Hledanost Google]]+Tabulka15[[#This Row],[Hledanost Seznam]] -> 55 | D169: =AVERAGE(Tabulka15[[#This Row],[Konkurence Google]],Tabulka15[[#This Row],[Konkurence Seznam]]) -> 7.8355 | E169: 3 | F169: 40 | G169: 15 | H169: 12.989 | I169: 2.682 | J169: 0.21 | K169: 0 | L169: 100 | M169: 100 | N169: - | O169: - | P169: Neexistuje | Q169: 743000 | R169: 9853077
B170: kuchyňské hodiny na zeď | C170: =Tabulka15[[#This Row],[Hledanost Google]]+Tabulka15[[#This Row],[Hledanost Seznam]] -> 55 | D170: =AVERAGE(Tabulka15[[#This Row],[Konkurence Google]],Tabulka15[[#This Row],[Konkurence Seznam]]) -> 7.1615 | E170: 5 | F170: 0 | G170: 55 | H170: 12.06 | I170: 2.263 | J170: 6 | K170: 4.262236 | L170: 100 | M170: 100 | N170: - | O170: - | P170: Neexistuje | Q170: 364000 | R170: 2462555 | S170: nástěnné | X170: kuchyňské
B171: nástěnné hodiny pendlovky | C171: =Tabulka15[[#This Row],[Hledanost Google]]+Tabulka15[[#This Row],[Hledanost Seznam]] -> 54 | D171: =AVERAGE(Tabulka15[[#This Row],[Konkurence Google]],Tabulka15[[#This Row],[Konkurence Seznam]]) -> 7.9825 | E171: 5 | F171: 20 | G171: 34 | H171: 13.564 | I171: 2.401 | J171: 5.79 | K171: 6.833333 | L171: 100 | M171: 100 | N171: - | O171: - | P171: Neexistuje | Q171: 30400 | R171: 51046 | S171: nástěnné | X171: pendlové
B172: pendlovky gustav becker | C172: =Tabulka15[[#This Row],[Hledanost Google]]+Tabulka15[[#This Row],[Hledanost Seznam]] -> 54 | D172: =AVERAGE(Tabulka15[[#This Row],[Konkurence Google]],Tabulka15[[#This Row],[Konkurence Seznam]]) -> 8.0135 | E172: 2 | F172: 20 | G172: 34 | H172: 12.796 | I172: 3.231 | J172: 6.22 | K172: 0 | L172: 100 | M172: 100 | N172: - | O172: - | P172: Neexistuje | Q172: 3480 | R172: 2169 | T172: Gustav Becker | X172: pendlové
B173: levné hodiny | C173: =Tabulka15[[#This Row],[Hledanost Google]]+Tabulka15[[#This Row],[Hledanost Seznam]] -> 53 | D173: =AVERAGE(Tabulka15[[#This Row],[Konkurence Google]],Tabulka15[[#This Row],[Konkurence Seznam]]) -> 14.261 | E173: 3 | F173: 40 | G173: 13 | H173: 23.418 | I173: 5.104 | J173: 5.79 | K173: 0 | L173: 100 | M173: 100 | N173: - | O173: - | P173: Neexistuje | Q173: 1010000 | R173: 8868136
B174: lihýřové hodiny návod | C174: =Tabulka15[[#This Row],[Hledanost Google]]+Tabulka15[[#This Row],[Hledanost Seznam]] -> 53 | D174: =AVERAGE(Tabulka15[[#This Row],[Konkurence Google]],Tabulka15[[#This Row],[Konkurence Seznam]]) -> 6.694 | E174: 1 | F174: 20 | G174: 33 | H174: 11.534 | I174: 1.854 | J174: 0.43 | K174: 0 | L174: 100 | M174: 100 | N174: - | O174: - | P174: Neexistuje | Q174: 645 | R174: 149 | S174: lihýřové
B175: nástěnné hodiny moderní | C175: =Tabulka15[[#This Row],[Hledanost Google]]+Tabulka15[[#This Row],[Hledanost Seznam]] -> 53 | D175: =AVERAGE(Tabulka15[[#This Row],[Konkurence Google]],Tabulka15[[#This Row],[Konkurence Seznam]]) -> 8.557 | E175: 5 | F175: 10 | G175: 43 | H175: 14.865 | I175: 2.249 | J175: 6.22 | K175: 0 | L175: 100 | M175: 100 | N175: - | O175: - | P175: Neexistuje | Q175: 397000 | R175: 1941847 | S175: nástěnné
B176: starožitné pendlové hodiny prodej | C176: =Tabulka15[[#This Row],[Hledanost Google]]+Tabulka15[[#This Row],[Hledanost Seznam]] -> 53 | D176: =AVERAGE(Tabulka15[[#This Row],[Konkurence Google]],Tabulka15[[#This Row],[Konkurence Seznam]]) -> 3.2755 | E176: 2 | F176: 0 | G176: 53 | H176: 4.798 | I176: 1.753 | J176: 0 | K176: 2.6833334 | L176: 100 | M176: 100 | N176: - | O176: - | P176: Neexistuje | Q176: 3880 | R176: 24884 | V176: starožitné | X176: pendlové
B177: nástěnné hodiny rhythm | C177: =Tabulka15[[#This Row],[Hledanost Google]]+Tabulka15[[#This Row],[Hledanost Seznam]] -> 52 | D177: =AVERAGE(Tabulka15[[#This Row],[Konkurence Google]],Tabulka15[[#This Row],[Konkurence Seznam]]) -> 6.9495 | E177: 5 | F177: 10 | G177: 42 | H177: 12.266 | I177: 1.633 | J177: 0 | K177: 5.5 | L177: 100 | M177: 100 | N177: - | O177: - | P177: Neexistuje | Q177: 51 | R177: 43705 | S177: nástěnné
B178: hodiny s vlastní fotkou | C178: =Tabulka15[[#This Row],[Hledanost Google]]+Tabulka15[[#This Row],[Hledanost Seznam]] -> 51 | D178: =AVERAGE(Tabulka15[[#This Row],[Konkurence Google]],Tabulka15[[#This Row],[Konkurence Seznam]]) -> 7.954 | E178: 3 | F178: 30 | G178: 21 | H178: 12.923 | I178: 2.985 | J178: 8.15 | K178: 1.3125 | L178: 100 | M178: 100 | N178: - | O178: - | P178: Neexistuje | Q178: 605000 | R178: 135139
B179: hodiny svítící ve tmě | C179: =Tabulka15[[#This Row],[Hledanost Google]]+Tabulka15[[#This Row],[Hledanost Seznam]] -> 51 | D179: =AVERAGE(Tabulka15[[#This Row],[Konkurence Google]],Tabulka15[[#This Row],[Konkurence Seznam]]) -> 7.392 | E179: 3 | F179: 0 | G179: 51 | H179: 12.514 | I179: 2.27 | J179: 0 | K179: 0.8 | L179: 100 | M179: 100 | N179: - | O179: - | P179: Neexistuje | Q179: 172000 | R179: 314906 | X179: svítící
B180: starožitné hodiny cena | C180: =Tabulka15[[#This Row],[Hledanost Google]]+Tabulka15[[#This Row],[Hledanost Seznam]] -> 51 | D180: =AVERAGE(Tabulka15[[#This Row],[Konkurence Google]],Tabulka15[[#This Row],[Konkurence Seznam]]) -> 6.59 | E180: 2 | F180: 50 | G180: 1 | H180: 11.179 | I180: 2.001 | J180: 12.22 | K180: 0 | L180: 100 | M180: 100 | N180: - | O180: - | P180: Neexistuje | Q180: 342000 | R180: 374937 | V180: starožitné | X180: cena
B181: výkup starých hodin | C181: =Tabulka15[[#This Row],[Hledanost Google]]+Tabulka15[[#This Row],[Hledanost Seznam]] -> 51 | D181: =AVERAGE(Tabulka15[[#This Row],[Konkurence Google]],Tabulka15[[#This Row],[Konkurence Seznam]]) -> 7.6165 | E181: 1 | F181: 30 | G181: 21 | H181: 12.788 | I181: 2.445 | J181: 0 | K181: 0.5 | L181: 100 | M181: 100 | N181: - | O181: - | P181: Neexistuje | Q181: 105000 | R181: 260572 | X181: výkup
B182: dřevěné hodiny na zeď | C182: =Tabulka15[[#This Row],[Hledanost Google]]+Tabulka15[[#This Row],[Hledanost Seznam]] -> 50 | D182: =AVERAGE(Tabulka15[[#This Row],[Konkurence Google]],Tabulka15[[#This Row],[Konkurence Seznam]]) -> 8.8175 | E182: 5 | F182: 10 | G182: 40 | H182: 14.139 | I182: 3.496 | J182: 0 | K182: 5.35 | L182: 100 | M182: 100 | N182: - | O182: - | P182: Neexistuje | Q182: 249000 | R182: 2548564 | S182: na zeď | Z182: dřevo
B183: průmyslové hodiny | C183: =Tabulka15[[#This Row],[Hledanost Google]]+Tabulka15[[#This Row],[Hledanost Seznam]] -> 50 | D183: =AVERAGE(Tabulka15[[#This Row],[Konkurence Google]],Tabulka15[[#This Row],[Konkurence Seznam]]) -> 9.405 | E183: 3 | F183: 20 | G183: 30 | H183: 15.307 | I183: 3.503 | J183: 7.72 | K183: 2.5 | L183: 100 | M183: 100 | N183: - | O183: - | P183: Neexistuje | Q183: 749000 | R183: 5390592
B184: hodiny s fotografiemi | C184: =Tabulka15[[#This Row],[Hledanost Google]]+Tabulka15[[#This Row],[Hledanost Seznam]] -> 49 | D184: =AVERAGE(Tabulka15[[#This Row],[Konkurence Google]],Tabulka15[[#This Row],[Konkurence Seznam]]) -> 7.989 | E184: 3 | F184: 30 | G184: 19 | H184: 13.167 | I184: 2.811 | J184: 4.5 | K184: 1.175 | L184: 100 | M184: 100 | N184: - | O184: - | P184: Neexistuje | Q184: 2090000 | R184: 5337164
B185: průměrný hodinový výdělek výpočet | C185: =Tabulka15[[#This Row],[Hledanost Google]]+Tabulka15[[#This Row],[Hledanost Seznam]] -> 49 | D185: =AVERAGE(Tabulka15[[#This Row],[Konkurence Google]],Tabulka15[[#This Row],[Konkurence Seznam]]) -> 6.2975 | E185: 3 | F185: 10 | G185: 39 | H185: 10.951 | I185: 1.644 | J185: 0 | K185: 0 | L185: 100 | M185: 100 | N185: - | O185: - | P185: Neexistuje | Q185: 11300 | R185: 17332
B186: originální nástěnné hodiny | C186: =Tabulka15[[#This Row],[Hledanost Google]]+Tabulka15[[#This Row],[Hledanost Seznam]] -> 48 | D186: =AVERAGE(Tabulka15[[#This Row],[Konkurence Google]],Tabulka15[[#This Row],[Konkurence Seznam]]) -> 10.087 | E186: 5 | F186: 20 | G186: 28 | H186: 17.179 | I186: 2.995 | J186: 0 | K186: 7.183333 | L186: 100 | M186: 100 | N186: - | O186: - | P186: Neexistuje | Q186: 260000 | R186: 1326438 | S186: nástěnné
B187: deska gramofonova hodiny | C187: =Tabulka15[[#This Row],[Hledanost Google]]+Tabulka15[[#This Row],[Hledanost Seznam]] -> 47 | D187: =AVERAGE(Tabulka15[[#This Row],[Konkurence Google]],Tabulka15[[#This Row],[Konkurence Seznam]]) -> 6.71 | E187: 3 | F187: 0 | G187: 47 | H187: 11.656 | I187: 1.764 | J187: 0 | K187: 0 | L187: 100 | M187: 100 | N187: - | O187: - | P187: Neexistuje | Q187: 351000 | R187: 135821
B188: elektronické hodiny | C188: =Tabulka15[[#This Row],[Hledanost Google]]+Tabulka15[[#This Row],[Hledanost Seznam]] -> 47 | D188: =AVERAGE(Tabulka15[[#This Row],[Konkurence Google]],Tabulka15[[#This Row],[Konkurence Seznam]]) -> 10.967 | E188: 4 | F188: 20 | G188: 27 | H188: 19.106 | I188: 2.828 | J188: 4.29 | K188: 2.5666666 | L188: 100 | M188: 100 | N188: - | O188: - | P188: Neexistuje | Q188: 1510000 | R188: 15164579 | U188: elektro
B189: nextime hodiny | C189: =Tabulka15[[#This Row],[Hledanost Google]]+Tabulka15[[#This Row],[Hledanost Seznam]] -> 47 | D189: =AVERAGE(Tabulka15[[#This Row],[Konkurence Google]],Tabulka15[[#This Row],[Konkurence Seznam]]) -> 6.7265 | E189: 2 | F189: 40 | G189: 7 | H189: 11.119 | I189: 2.334 | J189: 16.08 | K189: 0 | L189: 100 | M189: 100 | N189: - | O189: - | P189: Neexistuje | Q189: 166000 | R189: 363000 | T189: Nextime
B190: stolní hodiny pod sklem | C190: =Tabulka15[[#This Row],[Hledanost Google]]+Tabulka15[[#This Row],[Hledanost Seznam]] -> 47 | D190: =AVERAGE(Tabulka15[[#This Row],[Konkurence Google]],Tabulka15[[#This Row],[Konkurence Seznam]]) -> 7.8235 | E190: 5 | F190: 0 | G190: 47 | H190: 12.942 | I190: 2.705 | J190: 0 | K190: 6.2 | L190: 100 | M190: 100 | N190: - | O190: - | P190: Neexistuje | Q190: 273000 | R190: 217272 | S190: stolní
B191: dekorační hodiny | C191: =Tabulka15[[#This Row],[Hledanost Google]]+Tabulka15[[#This Row],[Hledanost Seznam]] -> 46 | D191: =AVERAGE(Tabulka15[[#This Row],[Konkurence Google]],Tabulka15[[#This Row],[Konkurence Seznam]]) -> 15.5215 | E191: 3 | F191: 30 | G191: 16 | H191: 26.462 | I191: 4.581 | J191: 3.43 | K191: 0.6 | L191: 100 | M191: 100 | N191: - | O191: - | P191: Neexistuje | Q191: 725000 | R191: 5436728
B192: do kolika hodin vsadit sportku | C192: =Tabulka15[[#This Row],[Hledanost Google]]+Tabulka15[[#This Row],[Hledanost Seznam]] -> 46 | D192: =AVERAGE(Tabulka15[[#This Row],[Konkurence Google]],Tabulka15[[#This Row],[Konkurence Seznam]]) -> 6.7245 | E192: 3 | F192: 20 | G192: 26 | H192: 11.334 | I192: 2.115 | J192: 15.86 | K192: 2.2 | L192: 100 | M192: 100 | N192: - | O192: - | P192: Neexistuje | Q192: 227000 | R192: 926
B193: hodiny do pergoly | C193: =Tabulka15[[#This Row],[Hledanost Google]]+Tabulka15[[#This Row],[Hledanost Seznam]] -> 46 | D193: =AVERAGE(Tabulka15[[#This Row],[Konkurence Google]],Tabulka15[[#This Row],[Konkurence Seznam]]) -> 9.4155 | E193: 3 | F193: 20 | G193: 26 | H193: 15.39 | I193: 3.441 | J193: 0.64 | K193: 4.95 | L193: 100 | M193: 100 | N193: - | O193: - | P193: Neexistuje | Q193: 174000 | R193: 1722131
B194: luxusní hodiny | C194: =Tabulka15[[#This Row],[Hledanost Google]]+Tabulka15[[#This Row],[Hledanost Seznam]] -> 46 | D194: =AVERAGE(Tabulka15[[#This Row],[Konkurence Google]],Tabulka15[[#This Row],[Konkurence Seznam]]) -> 15.879 | E194: 5 | F194: 30 | G194: 16 | H194: 27.471 | I194: 4.287 | J194: 36.44 | K194: 1.9 | L194: 21 | M194: 34 | N194: https://www.example.cz/stranka | O194: https://www.example.cz/stranka | P194: https://www.example.cz/stranka | Q194: 893000 | R194: 8386517 | X194: luxusní
B195: moderní designové nástěnné hodiny | C195: =Tabulka15[[#This Row],[Hledanost Google]]+Tabulka15[[#This Row],[Hledanost Seznam]] -> 46 | D195: =AVERAGE(Tabulka15[[#This Row],[Konkurence Google]],Tabulka15[[#This Row],[Konkurence Seznam]]) -> 6.7175 | E195: 5 | F195: 0 | G195: 46 | H195: 11.399 | I195: 2.036 | J195: 0 | K195: 6.2 | L195: 100 | M195: 100 | N195: - | O195: - | P195: Neexistuje | Q195: 285000 | R195: 1289497 | S195: nástěnné | V195: design
B196: rustikální nástěnné hodiny | C196: =Tabulka15[[#This Row],[Hledanost Google]]+Tabulka15[[#This Row],[Hledanost Seznam]] -> 46 | D196: =AVERAGE(Tabulka15[[#This Row],[Konkurence Google]],Tabulka15[[#This Row],[Konkurence Seznam]]) -> 8.15 | E196: 5 | F196: 10 | G196: 36 | H196: 13.73 | I196: 2.57 | J196: 0 | K196: 5.633333 | L196: 100 | M196: 100 | N196: - | O196: - | P196: Neexistuje | Q196: 129000 | R196: 666661 | S196: nástěnné
B197: hodiny na zeď do kuchyně | C197: =Tabulka15[[#This Row],[Hledanost Google]]+Tabulka15[[#This Row],[Hledanost Seznam]] -> 45 | D197: =AVERAGE(Tabulka15[[#This Row],[Konkurence Google]],Tabulka15[[#This Row],[Konkurence Seznam]]) -> 7.162 | E197: 5 | F197: 0 | G197: 45 | H197: 12.049 | I197: 2.275 | J197: 0 | K197: 4.608 | L197: 100 | M197: 100 | N197: - | O197: - | P197: Neexistuje | Q197: 243000 | R197: 3376940 | S197: nástěnné | X197: kuchyňské
B198: keramické nástěnné hodiny | C198: =Tabulka15[[#This Row],[Hledanost Google]]+Tabulka15[[#This Row],[Hledanost Seznam]] -> 45 | D198: =AVERAGE(Tabulka15[[#This Row],[Konkurence Google]],Tabulka15[[#This Row],[Konkurence Seznam]]) -> 9.5635 | E198: 5 | F198: 10 | G198: 35 | H198: 16.672 | I198: 2.455 | J198: 0 | K198: 4.5 | L198: 100 | M198: 100 | N198: - | O198: - | P198: Neexistuje | Q198: 460000 | R198: 1491786 | S198: nástěnné | Z198: keramika
B199: nástěnné hodiny levandule | C199: =Tabulka15[[#This Row],[Hledanost Google]]+Tabulka15[[#This Row],[Hledanost Seznam]] -> 45 | D199: =AVERAGE(Tabulka15[[#This Row],[Konkurence Google]],Tabulka15[[#This Row],[Konkurence Seznam]]) -> 10.6095 | E199: 5 | F199: 10 | G199: 35 | H199: 18.85 | I199: 2.369 | J199: 3.86 | K199: 5.0592593 | L199: 100 | M199: 100 | N199: - | O199: - | P199: Neexistuje | Q199: 111000 | R199: 258670 | S199: nástěnné
B200: svítící hodiny na zeď | C200: =Tabulka15[[#This Row],[Hledanost Google]]+Tabulka15[[#This Row],[Hledanost Seznam]] -> 45 | D200: =AVERAGE(Tabulka15[[#This Row],[Konkurence Google]],Tabulka15[[#This Row],[Konkurence Seznam]]) -> 6.9745 | E200: 3 | F200: 30 | G200: 15 | H200: 11.927 | I200: 2.022 | J200: 4.5 | K200: 2.84 | L200: 100 | M200: 100 | N200: - | O200: - | P200: Neexistuje | Q200: 601000 | R200: 463543 | S200: na zeď | X200: svítící
... 4300 more rows

Sheet Trendy hledanosti Google
A1: Klíčové slovo | B1: Hledanost Google | C1: CPC Adwords | D1: Leden | E1: Únor | F1: Březen | G1: Duben | H1: Květen | I1: Červen | J1: Červenec | K1: Srpen | L1: Září | M1: Říjen | N1: Listopad | O1: Prosinec | P1: Trend
A2: hodiny | B2: 9930 | C2: 7.93 | D2: 12140 | E2: 12140 | F2: 9930 | G2: 12140 | H2: 9930 | I2: 8120 | J2: 8120 | K2: 8120 | L2: 8120 | M2: 8120 | N2: 9930 | O2: 9930
A3: nástěnné hodiny | B3: 3170 | C3: 8.36 | D3: 3870 | E3: 2580 | F3: 2580 | G3: 3170 | H3: 2580 | I3: 1700 | J3: 2580 | K3: 3170 | L3: 3170 | M3: 3170 | N3: 4760 | O3: 5810
A4: atomové hodiny | B4: 2140 | C4: 11.36 | D4: 2140 | E4: 2140 | F4: 2140 | G4: 2140 | H4: 1770 | I4: 1400 | J4: 1180 | K4: 960 | L4: 2660 | M4: 2140 | N4: 2140 | O4: 3250
A5: přesýpací hodiny | B5: 1010 | C5: 5.14 | D5: 1240 | E5: 1010 | F5: 1240 | G5: 1010 | H5: 1010 | I5: 780 | J5: 680 | K5: 780 | L5: 1240 | M5: 1240 | N5: 1480 | O5: 1480
A6: hodinový strojek | B6: 720 | C6: 3 | D6: 820 | E6: 720 | F6: 720 | G6: 720 | H6: 590 | I6: 590 | J6: 720 | K6: 590 | L6: 720 | M6: 720 | N6: 820 | O6: 820
A7: hodiny anglicky | B7: 420 | C7: 29.8 | D7: 520 | E7: 520 | F7: 420 | G7: 420 | H7: 520 | I7: 280 | J7: 180 | K7: 280 | L7: 520 | M7: 770 | N7: 630 | O7: 340
A8: retro hodiny | B8: 360 | C8: 6.65 | D8: 360 | E8: 360 | F8: 300 | G8: 300 | H8: 240 | I8: 190 | J8: 300 | K8: 360 | L8: 240 | M8: 300 | N8: 360 | O8: 540
A9: stolní hodiny | B9: 340 | C9: 5.57 | D9: 340 | E9: 280 | F9: 340 | G9: 280 | H9: 220 | I9: 180 | J9: 280 | K9: 280 | L9: 220 | M9: 340 | N9: 410 | O9: 580
A10: anglické hodiny | B10: 260 | C10: 7.72 | D10: 320 | E10: 390 | F10: 320 | G10: 260 | H10: 260 | I10: 170 | J10: 90 | K10: 110 | L10: 260 | M10: 390 | N10: 320 | O10: 210
A11: hodiny do kuchyně | B11: 260 | C11: 6.43 | D11: 320 | E11: 320 | F11: 170 | G11: 170 | H11: 140 | I11: 140 | J11: 210 | K11: 320 | L11: 210 | M11: 210 | N11: 390 | O11: 390
A12: ikea hodiny | B12: 260 | C12: 3.43 | D12: 210 | E12: 210 | F12: 260 | G12: 210 | H12: 170 | I12: 210 | J12: 210 | K12: 320 | L12: 260 | M12: 320 | N12: 390 | O12: 320
A13: liturgie hodin | B13: 260 | C13: 0 | D13: 260 | E13: 260 | F13: 260 | G13: 320 | H13: 260 | I13: 260 | J13: 260 | K13: 260 | L13: 260 | M13: 260 | N13: 320 | O13: 210
A14: hodiny s fotorámečky | B14: 210 | C14: 4.07 | D14: 140 | E14: 140 | F14: 110 | G14: 110 | H14: 140 | I14: 50 | J14: 170 | K14: 140 | L14: 210 | M14: 260 | N14: 590 | O14: 590
A15: jvd hodiny | B15: 210 | C15: 3.86 | D15: 210 | E15: 170 | F15: 140 | G15: 170 | H15: 140 | I15: 170 | J15: 170 | K15: 210 | L15: 170 | M15: 210 | N15: 320 | O15: 480
A16: hodiny na stěnu | B16: 190 | C16: 6.65 | D16: 150 | E16: 130 | F16: 130 | G16: 130 | H16: 70 | I16: 80 | J16: 190 | K16: 190 | L16: 350 | M16: 400 | N16: 350 | O16: 190
A17: kukačkové hodiny | B17: 190 | C17: 4.29 | D17: 190 | E17: 190 | F17: 150 | G17: 190 | H17: 150 | I17: 130 | J17: 150 | K17: 150 | L17: 150 | M17: 190 | N17: 290 | O17: 230
A18: starožitné hodiny | B18: 190 | C18: 8.79 | D18: 230 | E18: 230 | F18: 190 | G18: 190 | H18: 150 | I18: 150 | J18: 150 | K18: 190 | L18: 190 | M18: 190 | N18: 230 | O18: 230
A19: nástěnné hodiny velké | B19: 180 | C19: 6.43 | D19: 270 | E19: 220 | F19: 120 | G19: 120 | H19: 150 | I19: 100 | J19: 120 | K19: 220 | L19: 180 | M19: 270 | N19: 220 | O19: 270
A20: andělská čísla na hodinách | B20: 170 | C20: 12.43 | D20: 170 | E20: 140 | F20: 210 | G20: 110 | H20: 210 | I20: 320 | J20: 260 | K20: 110 | L20: 140 | M20: 140 | N20: 170 | O20: 110
A21: bící hodiny | B21: 170 | C21: 6 | D21: 170 | E21: 140 | F21: 110 | G21: 110 | H21: 90 | I21: 70 | J21: 90 | K21: 50 | L21: 110 | M21: 140 | N21: 590 | O21: 260
A22: designové nástěnné hodiny | B22: 170 | C22: 8.36 | D22: 140 | E22: 170 | F22: 210 | G22: 140 | H22: 110 | I22: 110 | J22: 140 | K22: 170 | L22: 140 | M22: 260 | N22: 320 | O22: 210
A23: hodiny kukačky | B23: 170 | C23: 4.5 | D23: 210 | E23: 170 | F23: 140 | G23: 170 | H23: 140 | I23: 110 | J23: 210 | K23: 170 | L23: 170 | M23: 210 | N23: 210 | O23: 210
A24: hodiny v angličtině | B24: 170 | C24: 17.36 | D24: 210 | E24: 260 | F24: 210 | G24: 170 | H24: 170 | I24: 90 | J24: 40 | K24: 70 | L24: 170 | M24: 260 | N24: 210 | O24: 90
A25: překlápěcí hodiny | B25: 170 | C25: 4.93 | D25: 170 | E25: 170 | F25: 140 | G25: 170 | H25: 140 | I25: 70 | J25: 90 | K25: 140 | L25: 110 | M25: 170 | N25: 320 | O25: 210
A26: strojek do hodin | B26: 170 | C26: 2.14 | D26: 210 | E26: 170 | F26: 170 | G26: 170 | H26: 140 | I26: 140 | J26: 110 | K26: 110 | L26: 140 | M26: 170 | N26: 170 | O26: 170
A27: vodní hodiny | B27: 170 | C27: 6.86 | D27: 170 | E27: 170 | F27: 170 | G27: 170 | H27: 210 | I27: 140 | J27: 50 | K27: 40 | L27: 260 | M27: 210 | N27: 110 | O27: 140
A28: hodinové strojky | B28: 150 | C28: 3.86 | D28: 190 | E28: 150 | F28: 150 | G28: 190 | H28: 120 | I28: 100 | J28: 100 | K28: 120 | L28: 120 | M28: 120 | N28: 190 | O28: 150
A29: hodiny odbily | B29: 150 | C29: 0 | D29: 190 | E29: 120 | F29: 120 | G29: 100 | H29: 120 | I29: 80 | J29: 40 | K29: 40 | L29: 120 | M29: 190 | N29: 340 | O29: 230
A30: nástěnné hodiny do kuchyně | B30: 150 | C30: 9.65 | D30: 120 | E30: 100 | F30: 120 | G30: 150 | H30: 100 | I30: 80 | J30: 120 | K30: 150 | L30: 120 | M30: 230 | N30: 230 | O30: 120
A31: nástěnné hodiny svítící | B31: 150 | C31: 0 | D31: 150 | E31: 140 | F31: 120 | G31: 150 | H31: 120 | I31: 110 | J31: 120 | K31: 150 | L31: 150 | M31: 200 | N31: 180 | O31: 150
A32: atomové hodiny online | B32: 140 | C32: 0 | D32: 70 | E32: 110 | F32: 260 | G32: 170 | H32: 110 | I32: 70 | J32: 70 | K32: 50 | L32: 140 | M32: 210 | N32: 110 | O32: 140
A33: hodiny karlsson | B33: 140 | C33: 10.29 | D33: 170 | E33: 110 | F33: 170 | G33: 90 | H33: 50 | I33: 110 | J33: 140 | K33: 140 | L33: 170 | M33: 170 | N33: 140 | O33: 210
A34: hodiny s projekcí | B34: 140 | C34: 4.72 | D34: 210 | E34: 110 | F34: 110 | G34: 90 | H34: 70 | I34: 40 | J34: 90 | K34: 140 | L34: 110 | M34: 140 | N34: 320 | O34: 320
A35: levné nástěnné hodiny | B35: 140 | C35: 6.86 | D35: 170 | E35: 210 | F35: 170 | G35: 210 | H35: 110 | I35: 110 | J35: 50 | K35: 90 | L35: 140 | M35: 110 | N35: 140 | O35: 170
A36: moderní hodiny | B36: 140 | C36: 6.22 | D36: 140 | E36: 170 | F36: 140 | G36: 70 | H36: 110 | I36: 70 | J36: 90 | K36: 90 | L36: 110 | M36: 110 | N36: 210 | O36: 170
A37: nádražní hodiny | B37: 140 | C37: 4.29 | D37: 140 | E37: 140 | F37: 110 | G37: 110 | H37: 170 | I37: 170 | J37: 170 | K37: 170 | L37: 170 | M37: 110 | N37: 170 | O37: 170
A38: nastene hodiny | B38: 140 | C38: 7.72 | D38: 210 | E38: 110 | F38: 140 | G38: 110 | H38: 90 | I38: 90 | J38: 110 | K38: 140 | L38: 110 | M38: 170 | N38: 170 | O38: 260
A39: nástěnné hodiny retro | B39: 140 | C39: 7.07 | D39: 140 | E39: 90 | F39: 110 | G39: 90 | H39: 70 | I39: 70 | J39: 90 | K39: 170 | L39: 140 | M39: 140 | N39: 210 | O39: 170
A40: opakující se čísla na hodinách | B40: 140 | C40: 0 | D40: 140 | E40: 140 | F40: 170 | G40: 110 | H40: 210 | I40: 110 | J40: 110 | K40: 140 | L40: 110 | M40: 110 | N40: 110 | O40: 140
A41: přesípací hodiny | B41: 140 | C41: 6.22 | D41: 140 | E41: 90 | F41: 140 | G41: 140 | H41: 140 | I41: 110 | J41: 90 | K41: 70 | L41: 140 | M41: 140 | N41: 170 | O41: 140
A42: rádiem řízené hodiny | B42: 140 | C42: 4.5 | D42: 210 | E42: 110 | F42: 210 | G42: 90 | H42: 110 | I42: 70 | J42: 70 | K42: 90 | L42: 90 | M42: 140 | N42: 110 | O42: 210
A43: ručičkové hodiny | B43: 140 | C43: 9.22 | D43: 140 | E43: 140 | F43: 140 | G43: 170 | H43: 170 | I43: 140 | J43: 110 | K43: 110 | L43: 90 | M43: 170 | N43: 140 | O43: 110
A44: stojací hodiny | B44: 140 | C44: 5.57 | D44: 170 | E44: 90 | F44: 110 | G44: 140 | H44: 140 | I44: 110 | J44: 90 | K44: 90 | L44: 140 | M44: 140 | N44: 210 | O44: 210
A45: pendlovky | B45: 130 | C45: 4.07 | D45: 130 | E45: 160 | F45: 130 | G45: 110 | H45: 130 | I45: 110 | J45: 130 | K45: 290 | L45: 110 | M45: 130 | N45: 160 | O45: 160
A46: význam čísel na hodinách | B46: 130 | C46: 0 | D46: 90 | E46: 110 | F46: 200 | G46: 200 | H46: 240 | I46: 290 | J46: 160 | K46: 110 | L46: 60 | M46: 40 | N46: 70 | O46: 60
A47: hodiny na motorku | B47: 110 | C47: 3.22 | D47: 30 | E47: 50 | F47: 110 | G47: 170 | H47: 170 | I47: 170 | J47: 140 | K47: 110 | L47: 70 | M47: 70 | N47: 110 | O47: 90
A48: hodiny s fotkou | B48: 110 | C48: 6.43 | D48: 50 | E48: 50 | F48: 50 | G48: 40 | H48: 70 | I48: 90 | J48: 70 | K48: 110 | L48: 70 | M48: 140 | N48: 260 | O48: 210
A49: hodiny s kukackou | B49: 110 | C49: 4.07 | D49: 140 | E49: 110 | F49: 110 | G49: 90 | H49: 90 | I49: 110 | J49: 70 | K49: 110 | L49: 70 | M49: 110 | N49: 140 | O49: 110
A50: projekční hodiny | B50: 110 | C50: 5.14 | D50: 140 | E50: 110 | F50: 110 | G50: 90 | H50: 140 | I50: 40 | J50: 90 | K50: 70 | L50: 90 | M50: 110 | N50: 170 | O50: 260
A51: selské hodiny | B51: 110 | C51: 4.72 | D51: 90 | E51: 140 | F51: 170 | G51: 140 | H51: 170 | I51: 110 | J51: 90 | K51: 90 | L51: 40 | M51: 70 | N51: 90 | O51: 110
A52: svítící hodiny | B52: 110 | C52: 4.29 | D52: 170 | E52: 110 | F52: 110 | G52: 90 | H52: 50 | I52: 40 | J52: 90 | K52: 90 | L52: 90 | M52: 140 | N52: 170 | O52: 320
A53: velké hodiny | B53: 110 | C53: 6 | D53: 140 | E53: 110 | F53: 170 | G53: 90 | H53: 110 | I53: 90 | J53: 110 | K53: 110 | L53: 110 | M53: 110 | N53: 170 | O53: 170
A54: venkovní hodiny na zahradu | B54: 110 | C54: 5.57 | D54: 50 | E54: 40 | F54: 140 | G54: 140 | H54: 140 | I54: 260 | J54: 170 | K54: 140 | L54: 90 | M54: 70 | N54: 70 | O54: 70
A55: výpočet čisté hodinové mzdy | B55: 110 | C55: 1.93 | D55: 140 | E55: 140 | F55: 110 | G55: 90 | H55: 110 | I55: 110 | J55: 90 | K55: 110 | L55: 170 | M55: 170 | N55: 110 | O55: 90
A56: bentime | B56: 100 | C56: 4.07 | D56: 100 | E56: 100 | F56: 90 | G56: 70 | H56: 60 | I56: 70 | J56: 70 | K56: 70 | L56: 90 | M56: 90 | N56: 130 | O56: 240
A57: dcf hodiny | B57: 90 | C57: 4.5 | D57: 140 | E57: 110 | F57: 110 | G57: 50 | H57: 50 | I57: 70 | J57: 70 | K57: 70 | L57: 90 | M57: 90 | N57: 110 | O57: 110
A58: druhy hodin | B58: 90 | C58: 3.64 | D58: 110 | E58: 110 | F58: 90 | G58: 110 | H58: 110 | I58: 70 | J58: 30 | K58: 20 | L58: 110 | M58: 140 | N58: 90 | O58: 40
A59: dřevené hodiny | B59: 90 | C59: 8.36 | D59: 90 | E59: 70 | F59: 70 | G59: 90 | H59: 40 | I59: 50 | J59: 90 | K59: 90 | L59: 70 | M59: 140 | N59: 140 | O59: 110
A60: fotohodiny | B60: 90 | C60: 2.57 | D60: 70 | E60: 30 | F60: 40 | G60: 40 | H60: 70 | I60: 50 | J60: 40 | K60: 50 | L60: 50 | M60: 110 | N60: 320 | O60: 260
A61: hodiny prim | B61: 90 | C61: 3.22 | D61: 90 | E61: 70 | F61: 90 | G61: 70 | H61: 70 | I61: 70 | J61: 70 | K61: 70 | L61: 90 | M61: 90 | N61: 110 | O61: 110
A62: hodiny rizené rádiem | B62: 90 | C62: 6 | D62: 170 | E62: 50 | F62: 70 | G62: 10 | H62: 50 | I62: 20 | J62: 40 | K62: 70 | L62: 50 | M62: 90 | N62: 210 | O62: 170
A63: hodiny s fotkami | B63: 90 | C63: 4.07 | D63: 110 | E63: 90 | F63: 70 | G63: 30 | H63: 30 | I63: 50 | J63: 20 | K63: 30 | L63: 30 | M63: 40 | N63: 110 | O63: 390
A64: jak se naučit hodiny | B64: 90 | C64: 21.44 | D64: 90 | E64: 110 | F64: 110 | G64: 90 | H64: 70 | I64: 50 | J64: 40 | K64: 70 | L64: 70 | M64: 90 | N64: 90 | O64: 70
A65: kovové hodiny | B65: 90 | C65: 7.29 | D65: 90 | E65: 110 | F65: 70 | G65: 50 | H65: 50 | I65: 50 | J65: 140 | K65: 70 | L65: 70 | M65: 70 | N65: 110 | O65: 70
A66: kuchýňské hodiny | B66: 90 | C66: 8.79 | D66: 70 | E66: 70 | F66: 110 | G66: 90 | H66: 70 | I66: 70 | J66: 110 | K66: 110 | L66: 90 | M66: 70 | N66: 140 | O66: 140
A67: nástěnné hodiny ikea | B67: 90 | C67: 6.22 | D67: 70 | E67: 50 | F67: 90 | G67: 70 | H67: 70 | I67: 70 | J67: 70 | K67: 110 | L67: 140 | M67: 110 | N67: 140 | O67: 90
A68: nástěnne hodiny rizene radiovym signálem | B68: 90 | C68: 9.43 | D68: 170 | E68: 110 | F68: 110 | G68: 70 | H68: 50 | I68: 40 | J68: 50 | K68: 170 | L68: 40 | M68: 40 | N68: 30 | O68: 170
A69: nástěnné hodiny řízené rádiovým signálem | B69: 90 | C69: 9.43 | D69: 170 | E69: 110 | F69: 110 | G69: 70 | H69: 50 | I69: 40 | J69: 50 | K69: 170 | L69: 40 | M69: 40 | N69: 30 | O69: 170
A70: tatvicke hodiny | B70: 90 | C70: 0 | D70: 90 | E70: 90 | F70: 170 | G70: 110 | H70: 110 | I70: 110 | J70: 90 | K70: 90 | L70: 90 | M70: 70 | N70: 70 | O70: 70
A71: vintage hodiny | B71: 90 | C71: 10.5 | D71: 110 | E71: 90 | F71: 70 | G71: 70 | H71: 70 | I71: 40 | J71: 110 | K71: 90 | L71: 50 | M71: 110 | N71: 70 | O71: 110
A72: vinylové hodiny | B72: 90 | C72: 6 | D72: 110 | E72: 90 | F72: 50 | G72: 90 | H72: 70 | I72: 50 | J72: 40 | K72: 70 | L72: 50 | M72: 50 | N72: 110 | O72: 210
A73: hodiny ná zeď | B73: 80 | C73: 5.79 | D73: 80 | E73: 70 | F73: 80 | G73: 100 | H73: 100 | I73: 50 | J73: 40 | K73: 50 | L73: 50 | M73: 40 | N73: 100 | O73: 100
A74: hodiny na zed´ | B74: 80 | C74: 5.79 | D74: 80 | E74: 70 | F74: 80 | G74: 100 | H74: 100 | I74: 50 | J74: 40 | K74: 50 | L74: 50 | M74: 40 | N74: 100 | O74: 100
A75: binární hodiny | B75: 70 | C75: 4.29 | D75: 140 | E75: 50 | F75: 90 | G75: 50 | H75: 50 | I75: 40 | J75: 70 | K75: 50 | L75: 70 | M75: 70 | N75: 110 | O75: 110
A76: dámské hodiny | B76: 70 | C76: 9.65 | D76: 70 | E76: 40 | F76: 40 | G76: 40 | H76: 50 | I76: 70 | J76: 70 | K76: 50 | L76: 50 | M76: 110 | N76: 140 | O76: 170
A77: designové hodiny na zeď | B77: 70 | C77: 5.79 | D77: 70 | E77: 50 | F77: 70 | G77: 70 | H77: 70 | I77: 50 | J77: 70 | K77: 50 | L77: 40 | M77: 70 | N77: 70 | O77: 110
A78: docházkové hodiny | B78: 70 | C78: 16.29 | D78: 40 | E78: 50 | F78: 320 | G78: 30 | H78: 70 | I78: 70 | J78: 50 | K78: 50 | L78: 50 | M78: 50 | N78: 70 | O78: 30
A79: hodinové ručičky | B79: 70 | C79: 4.29 | D79: 110 | E79: 90 | F79: 70 | G79: 70 | H79: 70 | I79: 40 | J79: 50 | K79: 50 | L79: 50 | M79: 50 | N79: 110 | O79: 70
A80: hodiny do obývacího pokoje | B80: 70 | C80: 4.93 | D80: 70 | E80: 30 | F80: 50 | G80: 20 | H80: 10 | I80: 20 | J80: 50 | K80: 90 | L80: 90 | M80: 90 | N80: 210 | O80: 90
A81: hodiny do obývaku | B81: 70 | C81: 5.79 | D81: 70 | E81: 70 | F81: 90 | G81: 110 | H81: 50 | I81: 50 | J81: 70 | K81: 70 | L81: 50 | M81: 90 | N81: 90 | O81: 70
A82: hodiny na zeď velké | B82: 70 | C82: 5.36 | D82: 70 | E82: 140 | F82: 50 | G82: 70 | H82: 50 | I82: 30 | J82: 40 | K82: 70 | L82: 90 | M82: 90 | N82: 110 | O82: 140
A83: hodiny provence | B83: 70 | C83: 6.22 | D83: 70 | E83: 70 | F83: 50 | G83: 70 | H83: 50 | I83: 30 | J83: 50 | K83: 140 | L83: 50 | M83: 70 | N83: 90 | O83: 110
A84: hodiny s kyvadlem | B84: 70 | C84: 4.93 | D84: 90 | E84: 70 | F84: 90 | G84: 50 | H84: 40 | I84: 20 | J84: 20 | K84: 70 | L84: 50 | M84: 40 | N84: 90 | O84: 90
A85: hodiny s tichým chodem | B85: 70 | C85: 4.29 | D85: 110 | E85: 50 | F85: 70 | G85: 50 | H85: 40 | I85: 70 | J85: 40 | K85: 90 | L85: 110 | M85: 90 | N85: 110 | O85: 90
A86: keramické hodiny | B86: 70 | C86: 4.29 | D86: 90 | E86: 70 | F86: 50 | G86: 70 | H86: 90 | I86: 50 | J86: 50 | K86: 50 | L86: 50 | M86: 40 | N86: 70 | O86: 70
A87: krbové hodiny | B87: 70 | C87: 4.29 | D87: 70 | E87: 90 | F87: 70 | G87: 50 | H87: 70 | I87: 50 | J87: 90 | K87: 70 | L87: 70 | M87: 90 | N87: 140 | O87: 70
A88: křtící hodiny | B88: 70 | C88: 3.43 | D88: 50 | E88: 70 | F88: 50 | G88: 140 | H88: 140 | I88: 70 | J88: 40 | K88: 50 | L88: 70 | M88: 110 | N88: 50 | O88: 50
A89: kuchyňské hodiny na zeď | B89: 70 | C89: 6 | D89: 90 | E89: 70 | F89: 30 | G89: 90 | H89: 50 | I89: 70 | J89: 90 | K89: 40 | L89: 70 | M89: 90 | N89: 110 | O89: 90
A90: kývadlové hodiny | B90: 70 | C90: 5.14 | D90: 90 | E90: 50 | F90: 70 | G90: 50 | H90: 50 | I90: 70 | J90: 90 | K90: 40 | L90: 30 | M90: 90 | N90: 70 | O90: 70
A91: mechanické hodiny | B91: 70 | C91: 6.65 | D91: 70 | E91: 70 | F91: 50 | G91: 70 | H91: 110 | I91: 40 | J91: 30 | K91: 30 | L91: 70 | M91: 70 | N91: 70 | O91: 50
A92: nástěnné hodiny design | B92: 70 | C92: 9.22 | D92: 70 | E92: 70 | F92: 30 | G92: 70 | H92: 30 | I92: 40 | J92: 40 | K92: 110 | L92: 70 | M92: 40 | N92: 70 | O92: 140
A93: nástěnné hodiny dřevěné | B93: 70 | C93: 6.86 | D93: 110 | E93: 90 | F93: 90 | G93: 50 | H93: 40 | I93: 20 | J93: 40 | K93: 50 | L93: 50 | M93: 50 | N93: 110 | O93: 140
A94: nástěnné hodiny jvd | B94: 70 | C94: 7.5 | D94: 70 | E94: 70 | F94: 90 | G94: 50 | H94: 20 | I94: 30 | J94: 40 | K94: 70 | L94: 40 | M94: 90 | N94: 90 | O94: 110
A95: nástěnné hodiny prim | B95: 70 | C95: 5.57 | D95: 70 | E95: 70 | F95: 70 | G95: 50 | H95: 90 | I95: 50 | J95: 90 | K95: 50 | L95: 90 | M95: 70 | N95: 110 | O95: 70
A96: nástěnné hodiny řízené rádiem | B96: 70 | C96: 7.72 | D96: 50 | E96: 30 | F96: 70 | G96: 140 | H96: 50 | I96: 50 | J96: 20 | K96: 30 | L96: 50 | M96: 110 | N96: 210 | O96: 90
A97: pánské hodiny | B97: 70 | C97: 9.43 | D97: 40 | E97: 50 | F97: 50 | G97: 20 | H97: 70 | I97: 40 | J97: 50 | K97: 40 | L97: 70 | M97: 70 | N97: 140 | O97: 140
A98: skleneně hodiny | B98: 70 | C98: 5.36 | D98: 50 | E98: 50 | F98: 40 | G98: 70 | H98: 50 | I98: 50 | J98: 70 | K98: 90 | L98: 50 | M98: 70 | N98: 70 | O98: 50
A99: staré nástěnné hodiny | B99: 70 | C99: 9.86 | D99: 70 | E99: 70 | F99: 70 | G99: 70 | H99: 50 | I99: 40 | J99: 70 | K99: 40 | L99: 40 | M99: 50 | N99: 70 | O99: 70
A100: starožitné hodiny nástěnné | B100: 70 | C100: 6.65 | D100: 50 | E100: 50 | F100: 90 | G100: 70 | H100: 70 | I100: 110 | J100: 110 | K100: 40 | L100: 40 | M100: 40 | N100: 50 | O100: 50
A101: starožitné hodiny pendlovky | B101: 70 | C101: 8.15 | D101: 70 | E101: 70 | F101: 70 | G101: 70 | H101: 50 | I101: 50 | J101: 50 | K101: 50 | L101: 50 | M101: 70 | N101: 90 | O101: 50
A102: svatební hodiny | B102: 70 | C102: 5.36 | D102: 20 | E102: 30 | F102: 40 | G102: 50 | H102: 110 | I102: 140 | J102: 110 | K102: 110 | L102: 90 | M102: 40 | N102: 20 | O102: 10
A103: velké hodiny na stěnu | B103: 70 | C103: 5.79 | D103: 140 | E103: 90 | F103: 110 | G103: 90 | H103: 10 | I103: 30 | J103: 50 | K103: 20 | L103: 20 | M103: 50 | N103: 110 | O103: 110
A104: velké online hodiny | B104: 70 | C104: 0 | D104: 0 | E104: 0 | F104: 0 | G104: 0 | H104: 0 | I104: 0 | J104: 0 | K104: 0 | L104: 0 | M104: 0 | N104: 0 | O104: 0
A105: věžní hodiny | B105: 70 | C105: 5.57 | D105: 70 | E105: 90 | F105: 70 | G105: 40 | H105: 70 | I105: 50 | J105: 70 | K105: 50 | L105: 50 | M105: 70 | N105: 110 | O105: 50
A106: výpočet průměrné hodinové mzdy | B106: 70 | C106: 6.43 | D106: 90 | E106: 90 | F106: 70 | G106: 90 | H106: 90 | I106: 70 | J106: 70 | K106: 50 | L106: 40 | M106: 30 | N106: 20 | O106: 40
A107: zahradní hodiny | B107: 70 | C107: 3 | D107: 30 | E107: 20 | F107: 40 | G107: 90 | H107: 70 | I107: 110 | J107: 90 | K107: 110 | L107: 30 | M107: 30 | N107: 70 | O107: 30
A108: designove-hodiny | B108: 60 | C108: 10.93 | D108: 70 | E108: 70 | F108: 60 | G108: 60 | H108: 30 | I108: 30 | J108: 40 | K108: 50 | L108: 50 | M108: 60 | N108: 70 | O108: 70
A109: elektrické hodiny | B109: 50 | C109: 3.22 | D109: 50 | E109: 40 | F109: 70 | G109: 70 | H109: 50 | I109: 50 | J109: 50 | K109: 50 | L109: 50 | M109: 70 | N109: 90 | O109: 70
A110: hodinový ciferník | B110: 50 | C110: 0.43 | D110: 50 | E110: 40 | F110: 50 | G110: 70 | H110: 50 | I110: 50 | J110: 30 | K110: 70 | L110: 70 | M110: 50 | N110: 50 | O110: 50
A111: hodinový strojek velké ručičky | B111: 50 | C111: 4.07 | D111: 40 | E111: 50 | F111: 50 | G111: 50 | H111: 50 | I111: 30 | J111: 50 | K111: 40 | L111: 50 | M111: 50 | N111: 70 | O111: 30
A112: hodiny levandule | B112: 50 | C112: 4.07 | D112: 20 | E112: 40 | F112: 70 | G112: 70 | H112: 50 | I112: 30 | J112: 50 | K112: 40 | L112: 40 | M112: 30 | N112: 70 | O112: 70
A113: hodiny na plochu zdarma | B113: 50 | C113: 0 | D113: 50 | E113: 50 | F113: 50 | G113: 70 | H113: 40 | I113: 30 | J113: 50 | K113: 40 | L113: 50 | M113: 50 | N113: 50 | O113: 40
A114: hodiny pendlovky | B114: 50 | C114: 3.43 | D114: 50 | E114: 40 | F114: 50 | G114: 50 | H114: 40 | I114: 40 | J114: 70 | K114: 40 | L114: 40 | M114: 50 | N114: 70 | O114: 50
A115: hodiny pragotron | B115: 50 | C115: 0 | D115: 70 | E115: 40 | F115: 70 | G115: 50 | H115: 40 | I115: 40 | J115: 40 | K115: 30 | L115: 40 | M115: 40 | N115: 70 | O115: 50
A116: hodiny rizene radiovym signalem | B116: 50 | C116: 5.57 | D116: 30 | E116: 70 | F116: 170 | G116: 70 | H116: 50 | I116: 30 | J116: 30 | K116: 40 | L116: 40 | M116: 30 | N116: 50 | O116: 40
A117: hodiny řízené radiovým signálem | B117: 50 | C117: 5.57 | D117: 30 | E117: 70 | F117: 170 | G117: 70 | H117: 50 | I117: 30 | J117: 30 | K117: 40 | L117: 40 | M117: 30 | N117: 50 | O117: 40
A118: hodiny s teploměrem | B118: 50 | C118: 5.79 | D118: 90 | E118: 50 | F118: 30 | G118: 30 | H118: 30 | I118: 70 | J118: 40 | K118: 70 | L118: 70 | M118: 50 | N118: 90 | O118: 90
A119: kyvadlove hodiny princip | B119: 50 | C119: 3.64 | D119: 90 | E119: 70 | F119: 90 | G119: 90 | H119: 50 | I119: 40 | J119: 30 | K119: 30 | L119: 40 | M119: 50 | N119: 50 | O119: 70
A120: lihýřové hodiny | B120: 50 | C120: 7.07 | D120: 170 | E120: 40 | F120: 50 | G120: 30 | H120: 50 | I120: 30 | J120: 20 | K120: 20 | L120: 30 | M120: 20 | N120: 70 | O120: 70
A121: nástěnné hodiny vintage | B121: 50 | C121: 5.79 | D121: 30 | E121: 50 | F121: 40 | G121: 40 | H121: 40 | I121: 30 | J121: 50 | K121: 90 | L121: 40 | M121: 40 | N121: 50 | O121: 50
A122: netikající hodiny | B122: 50 | C122: 4.5 | D122: 70 | E122: 50 | F122: 40 | G122: 70 | H122: 50 | I122: 40 | J122: 30 | K122: 30 | L122: 30 | M122: 70 | N122: 50 | O122: 90
A123: porcelánove hodiny | B123: 50 | C123: 8.36 | D123: 50 | E123: 90 | F123: 40 | G123: 30 | H123: 70 | I123: 20 | J123: 30 | K123: 50 | L123: 40 | M123: 40 | N123: 50 | O123: 40
A124: přesýpací hodiny na čištění zubů | B124: 50 | C124: 7.72 | D124: 40 | E124: 30 | F124: 50 | G124: 10 | H124: 20 | I124: 20 | J124: 40 | K124: 40 | L124: 50 | M124: 110 | N124: 90 | O124: 40
A125: starožitné hodiny cena | B125: 50 | C125: 12.22 | D125: 40 | E125: 50 | F125: 50 | G125: 70 | H125: 70 | I125: 40 | J125: 50 | K125: 40 | L125: 70 | M125: 50 | N125: 40 | O125: 50
A126: tiché hodiny | B126: 50 | C126: 4.72 | D126: 30 | E126: 40 | F126: 50 | G126: 30 | H126: 50 | I126: 30 | J126: 30 | K126: 70 | L126: 70 | M126: 40 | N126: 50 | O126: 110
A127: červené hodiny | B127: 40 | C127: 4.93 | D127: 70 | E127: 20 | F127: 40 | G127: 30 | H127: 40 | I127: 20 | J127: 10 | K127: 20 | L127: 30 | M127: 30 | N127: 50 | O127: 90
A128: hodinový strojek na zeď | B128: 40 | C128: 3.43 | D128: 30 | E128: 30 | F128: 40 | G128: 20 | H128: 20 | I128: 20 | J128: 40 | K128: 30 | L128: 40 | M128: 90 | N128: 140 | O128: 30
A129: hodinový strojek s kyvadlem | B129: 40 | C129: 2.57 | D129: 50 | E129: 40 | F129: 50 | G129: 50 | H129: 50 | I129: 20 | J129: 30 | K129: 40 | L129: 30 | M129: 40 | N129: 70 | O129: 40
A130: hodinový strojek s ručičkami | B130: 40 | C130: 3 | D130: 50 | E130: 40 | F130: 30 | G130: 30 | H130: 20 | I130: 30 | J130: 40 | K130: 70 | L130: 40 | M130: 30 | N130: 30 | O130: 40
A131: hodiny design | B131: 40 | C131: 7.93 | D131: 30 | E131: 30 | F131: 40 | G131: 20 | H131: 40 | I131: 30 | J131: 30 | K131: 20 | L131: 70 | M131: 40 | N131: 40 | O131: 50
A132: hodiny do kuchyně¨ | B132: 40 | C132: 7.93 | D132: 40 | E132: 50 | F132: 50 | G132: 40 | H132: 50 | I132: 40 | J132: 20 | K132: 20 | L132: 30 | M132: 40 | N132: 70 | O132: 50
A133: hodiny kienzle | B133: 40 | C133: 3.64 | D133: 40 | E133: 40 | F133: 50 | G133: 30 | H133: 40 | I133: 30 | J133: 40 | K133: 20 | L133: 30 | M133: 40 | N133: 70 | O133: 20
A134: hodiny kukačky prodej | B134: 40 | C134: 4.93 | D134: 50 | E134: 50 | F134: 40 | G134: 50 | H134: 20 | I134: 50 | J134: 40 | K134: 50 | L134: 40 | M134: 20 | N134: 50 | O134: 40
A135: hodiny z gramofonové desky | B135: 40 | C135: 4.5 | D135: 90 | E135: 30 | F135: 10 | G135: 10 | H135: 30 | I135: 20 | J135: 50 | K135: 40 | L135: 50 | M135: 40 | N135: 40 | O135: 70
A136: jak vyrobit hodiny | B136: 40 | C136: 0.21 | D136: 50 | E136: 50 | F136: 50 | G136: 40 | H136: 40 | I136: 20 | J136: 10 | K136: 20 | L136: 20 | M136: 40 | N136: 40 | O136: 50
A137: luxusní nástěnné hodiny | B137: 40 | C137: 19.29 | D137: 70 | E137: 20 | F137: 50 | G137: 20 | H137: 10 | I137: 10 | J137: 50 | K137: 50 | L137: 30 | M137: 40 | N137: 70 | O137: 20
A138: nástěnné hodiny karlsson | B138: 40 | C138: 11.15 | D138: 50 | E138: 20 | F138: 30 | G138: 30 | H138: 20 | I138: 20 | J138: 40 | K138: 50 | L138: 30 | M138: 50 | N138: 50 | O138: 90
A139: nástěnné hodiny s fotorámečky | B139: 40 | C139: 4.72 | D139: 30 | E139: 30 | F139: 20 | G139: 10 | H139: 30 | I139: 10 | J139: 10 | K139: 30 | L139: 50 | M139: 40 | N139: 110 | O139: 110
A140: nástěnné hodiny s kyvadlem | B140: 40 | C140: 6.43 | D140: 30 | E140: 70 | F140: 30 | G140: 10 | H140: 10 | I140: 30 | J140: 40 | K140: 40 | L140: 20 | M140: 70 | N140: 50 | O140: 50
A141: nextime hodiny | B141: 40 | C141: 16.08 | D141: 40 | E141: 30 | F141: 40 | G141: 50 | H141: 20 | I141: 20 | J141: 50 | K141: 70 | L141: 30 | M141: 20 | N141: 40 | O141: 30
A142: přesný čas atomové hodiny | B142: 40 | C142: 0 | D142: 70 | E142: 50 | F142: 50 | G142: 20 | H142: 30 | I142: 10 | J142: 30 | K142: 10 | L142: 20 | M142: 70 | N142: 40 | O142: 50
A143: rádio s hodinami | B143: 40 | C143: 6 | D143: 30 | E143: 10 | F143: 30 | G143: 70 | H143: 10 | I143: 10 | J143: 10 | K143: 30 | L143: 30 | M143: 30 | N143: 70 | O143: 70
A144: retro hodiny na zeď | B144: 40 | C144: 4.72 | D144: 40 | E144: 40 | F144: 50 | G144: 70 | H144: 30 | I144: 20 | J144: 40 | K144: 70 | L144: 30 | M144: 50 | N144: 70 | O144: 30
A145: sloupkové hodiny | B145: 40 | C145: 4.93 | D145: 30 | E145: 40 | F145: 40 | G145: 40 | H145: 30 | I145: 20 | J145: 30 | K145: 30 | L145: 30 | M145: 40 | N145: 90 | O145: 40
A146: sloupové hodiny | B146: 40 | C146: 6.86 | D146: 30 | E146: 30 | F146: 30 | G146: 30 | H146: 10 | I146: 20 | J146: 30 | K146: 50 | L146: 50 | M146: 40 | N146: 30 | O146: 50
A147: starožitné hodiny stolní | B147: 40 | C147: 16.08 | D147: 50 | E147: 40 | F147: 40 | G147: 30 | H147: 50 | I147: 40 | J147: 40 | K147: 30 | L147: 30 | M147: 20 | N147: 50 | O147: 30
A148: stylové hodiny | B148: 40 | C148: 12 | D148: 70 | E148: 30 | F148: 20 | G148: 50 | H148: 10 | I148: 20 | J148: 30 | K148: 40 | L148: 30 | M148: 30 | N148: 40 | O148: 50
A149: stylove-hodiny | B149: 40 | C149: 12 | D149: 70 | E149: 30 | F149: 20 | G149: 50 | H149: 10 | I149: 20 | J149: 30 | K149: 40 | L149: 30 | M149: 30 | N149: 40 | O149: 50
A150: svítící hodiny na zeď | B150: 40 | C150: 4.5 | D150: 20 | E150: 40 | F150: 20 | G150: 50 | H150: 20 | I150: 10 | J150: 20 | K150: 40 | L150: 30 | M150: 50 | N150: 50 | O150: 70
A151: tiché nástěnné hodiny | B151: 40 | C151: 5.57 | D151: 50 | E151: 40 | F151: 40 | G151: 20 | H151: 10 | I151: 10 | J151: 20 | K151: 50 | L151: 70 | M151: 30 | N151: 50 | O151: 110
A152: venkovní hodiny s teploměrem | B152: 40 | C152: 8.15 | D152: 40 | E152: 20 | F152: 50 | G152: 40 | H152: 50 | I152: 90 | J152: 20 | K152: 50 | L152: 20 | M152: 20 | N152: 30 | O152: 40
A153: bílé nástěnné hodiny | B153: 30 | C153: 7.29 | D153: 70 | E153: 40 | F153: 10 | G153: 30 | H153: 70 | I153: 20 | J153: 20 | K153: 10 | L153: 30 | M153: 20 | N153: 20 | O153: 50
A154: časové hodiny | B154: 30 | C154: 4.72 | D154: 30 | E154: 20 | F154: 30 | G154: 30 | H154: 40 | I154: 50 | J154: 40 | K154: 20 | L154: 30 | M154: 10 | N154: 30 | O154: 50
A155: designové hodiny na stěnu | B155: 30 | C155: 6.65 | D155: 10 | E155: 20 | F155: 10 | G155: 20 | H155: 10 | I155: 20 | J155: 20 | K155: 50 | L155: 30 | M155: 20 | N155: 40 | O155: 40
A156: drevene hodiny pro deti | B156: 30 | C156: 4.93 | D156: 20 | E156: 30 | F156: 50 | G156: 20 | H156: 30 | I156: 10 | J156: 10 | K156: 10 | L156: 20 | M156: 30 | N156: 70 | O156: 40
A157: drevene hodiny pro děti | B157: 30 | C157: 4.93 | D157: 20 | E157: 30 | F157: 50 | G157: 20 | H157: 30 | I157: 10 | J157: 10 | K157: 10 | L157: 20 | M157: 30 | N157: 70 | O157: 40
A158: empírové hodiny | B158: 30 | C158: 0 | D158: 20 | E158: 70 | F158: 30 | G158: 50 | H158: 10 | I158: 10 | J158: 10 | K158: 20 | L158: 40 | M158: 30 | N158: 30 | O158: 30
A159: fialové hodiny | B159: 30 | C159: 4.07 | D159: 30 | E159: 20 | F159: 30 | G159: 20 | H159: 20 | I159: 10 | J159: 20 | K159: 50 | L159: 20 | M159: 10 | N159: 20 | O159: 40
A160: historické hodiny | B160: 30 | C160: 6 | D160: 20 | E160: 40 | F160: 40 | G160: 50 | H160: 20 | I160: 10 | J160: 20 | K160: 10 | L160: 20 | M160: 20 | N160: 30 | O160: 20
A161: hodinový strojek řízený radiem | B161: 30 | C161: 2.79 | D161: 10 | E161: 20 | F161: 40 | G161: 40 | H161: 30 | I161: 20 | J161: 30 | K161: 30 | L161: 50 | M161: 20 | N161: 40 | O161: 40
A162: hodiny do pokoje | B162: 30 | C162: 6 | D162: 30 | E162: 20 | F162: 10 | G162: 10 | H162: 10 | I162: 10 | J162: 20 | K162: 50 | L162: 20 | M162: 20 | N162: 50 | O162: 50
A163: hodiny na plochu pc | B163: 30 | C163: 0 | D163: 20 | E163: 40 | F163: 40 | G163: 50 | H163: 40 | I163: 30 | J163: 20 | K163: 20 | L163: 30 | M163: 40 | N163: 70 | O163: 30
A164: hodiny rhythm | B164: 30 | C164: 6.86 | D164: 30 | E164: 50 | F164: 30 | G164: 10 | H164: 20 | I164: 10 | J164: 10 | K164: 10 | L164: 30 | M164: 30 | N164: 40 | O164: 50
A165: hodiny ročky | B165: 30 | C165: 3.43 | D165: 20 | E165: 40 | F165: 70 | G165: 30 | H165: 50 | I165: 20 | J165: 20 | K165: 20 | L165: 40 | M165: 20 | N165: 70 | O165: 40
A166: hodiny s fotografiemi | B166: 30 | C166: 4.5 | D166: 10 | E166: 40 | F166: 20 | G166: 10 | H166: 20 | I166: 30 | J166: 10 | K166: 20 | L166: 20 | M166: 40 | N166: 70 | O166: 40
A167: hodiny s projekci casu | B167: 30 | C167: 6.65 | D167: 40 | E167: 30 | F167: 50 | G167: 70 | H167: 30 | I167: 10 | J167: 10 | K167: 10 | L167: 40 | M167: 30 | N167: 10 | O167: 70
A168: hodiny s projekcí času | B168: 30 | C168: 6.65 | D168: 40 | E168: 30 | F168: 50 | G168: 70 | H168: 30 | I168: 10 | J168: 10 | K168: 10 | L168: 40 | M168: 30 | N168: 10 | O168: 70
A169: hodiny s projekcí na stenu | B169: 30 | C169: 4.93 | D169: 10 | E169: 10 | F169: 10 | G169: 10 | H169: 10 | I169: 10 | J169: 10 | K169: 20 | L169: 20 | M169: 70 | N169: 140 | O169: 50
A170: hodiny s projektorem | B170: 30 | C170: 5.14 | D170: 50 | E170: 30 | F170: 10 | G170: 20 | H170: 20 | I170: 10 | J170: 20 | K170: 30 | L170: 10 | M170: 40 | N170: 50 | O170: 70
A171: hodiny s vlastní fotkou | B171: 30 | C171: 8.15 | D171: 20 | E171: 20 | F171: 10 | G171: 20 | H171: 10 | I171: 20 | J171: 10 | K171: 30 | L171: 20 | M171: 40 | N171: 70 | O171: 90
A172: hodiny se svítícím displejem | B172: 30 | C172: 3.64 | D172: 30 | E172: 30 | F172: 20 | G172: 30 | H172: 10 | I172: 20 | J172: 10 | K172: 10 | L172: 30 | M172: 40 | N172: 50 | O172: 30
A173: hodiny venkovní | B173: 30 | C173: 7.07 | D173: 10 | E173: 10 | F173: 50 | G173: 30 | H173: 40 | I173: 40 | J173: 50 | K173: 30 | L173: 30 | M173: 10 | N173: 20 | O173: 30
A174: hodiny-venkovni | B174: 30 | C174: 7.07 | D174: 10 | E174: 10 | F174: 50 | G174: 30 | H174: 40 | I174: 40 | J174: 50 | K174: 30 | L174: 30 | M174: 10 | N174: 20 | O174: 30
A175: kuchyňské hodiny nástěnné | B175: 30 | C175: 17.58 | D175: 30 | E175: 70 | F175: 20 | G175: 30 | H175: 50 | I175: 20 | J175: 10 | K175: 30 | L175: 10 | M175: 10 | N175: 10 | O175: 110
A176: kukačkové hodiny levné | B176: 30 | C176: 3.86 | D176: 30 | E176: 20 | F176: 20 | G176: 40 | H176: 40 | I176: 20 | J176: 30 | K176: 30 | L176: 30 | M176: 40 | N176: 90 | O176: 10
A177: kyvadlové nástěnné hodiny | B177: 30 | C177: 6.65 | D177: 30 | E177: 20 | F177: 40 | G177: 10 | H177: 10 | I177: 30 | J177: 20 | K177: 20 | L177: 20 | M177: 50 | N177: 20 | O177: 70
A178: levné hodiny | B178: 30 | C178: 5.79 | D178: 30 | E178: 20 | F178: 20 | G178: 30 | H178: 10 | I178: 20 | J178: 20 | K178: 30 | L178: 20 | M178: 40 | N178: 50 | O178: 50
A179: luxusní hodiny | B179: 30 | C179: 36.44 | D179: 40 | E179: 30 | F179: 70 | G179: 20 | H179: 20 | I179: 20 | J179: 20 | K179: 40 | L179: 30 | M179: 30 | N179: 30 | O179: 30
A180: nastěnné dřevěné hodiny s kyvadlem | B180: 30 | C180: 6.86 | D180: 30 | E180: 40 | F180: 30 | G180: 10 | H180: 10 | I180: 10 | J180: 30 | K180: 30 | L180: 20 | M180: 50 | N180: 50 | O180: 30
A181: nástěnné hodiny cerne | B181: 30 | C181: 7.29 | D181: 30 | E181: 10 | F181: 40 | G181: 40 | H181: 40 | I181: 10 | J181: 30 | K181: 30 | L181: 20 | M181: 30 | N181: 70 | O181: 30
A182: nástěnné hodiny červené | B182: 30 | C182: 8.15 | D182: 40 | E182: 20 | F182: 40 | G182: 30 | H182: 20 | I182: 10 | J182: 30 | K182: 20 | L182: 30 | M182: 10 | N182: 50 | O182: 70
A183: nástěnné hodiny provence | B183: 30 | C183: 9.65 | D183: 30 | E183: 30 | F183: 30 | G183: 30 | H183: 20 | I183: 30 | J183: 30 | K183: 30 | L183: 40 | M183: 20 | N183: 50 | O183: 40
A184: nástěnné hodiny rádiem rizene | B184: 30 | C184: 6.65 | D184: 10 | E184: 50 | F184: 10 | G184: 70 | H184: 10 | I184: 40 | J184: 20 | K184: 30 | L184: 20 | M184: 20 | N184: 30 | O184: 10
A185: nástěnné hodiny rádiové řízené | B185: 30 | C185: 9.22 | D185: 90 | E185: 20 | F185: 40 | G185: 10 | H185: 40 | I185: 10 | J185: 20 | K185: 10 | L185: 20 | M185: 20 | N185: 10 | O185: 40
A186: nástěnné hodiny s fotkami | B186: 30 | C186: 4.72 | D186: 10 | E186: 20 | F186: 20 | G186: 20 | H186: 30 | I186: 40 | J186: 10 | K186: 20 | L186: 10 | M186: 20 | N186: 70 | O186: 70
A187: nastěnné hodiny s tichým chodem | B187: 30 | C187: 10.72 | D187: 50 | E187: 30 | F187: 20 | G187: 20 | H187: 30 | I187: 20 | J187: 20 | K187: 30 | L187: 20 | M187: 20 | N187: 50 | O187: 40
A188: nástěnné hodiny zelené | B188: 30 | C188: 5.79 | D188: 20 | E188: 30 | F188: 40 | G188: 30 | H188: 10 | I188: 40 | J188: 10 | K188: 50 | L188: 30 | M188: 40 | N188: 40 | O188: 50
A189: nastenne hodiny-cerne | B189: 30 | C189: 7.29 | D189: 30 | E189: 10 | F189: 40 | G189: 40 | H189: 40 | I189: 10 | J189: 30 | K189: 30 | L189: 20 | M189: 30 | N189: 70 | O189: 30
A190: nixie hodiny | B190: 30 | C190: 0.64 | D190: 30 | E190: 30 | F190: 20 | G190: 20 | H190: 30 | I190: 10 | J190: 40 | K190: 20 | L190: 20 | M190: 20 | N190: 50 | O190: 40
A191: originální hodiny | B191: 30 | C191: 6.86 | D191: 30 | E191: 20 | F191: 10 | G191: 20 | H191: 20 | I191: 10 | J191: 20 | K191: 30 | L191: 20 | M191: 40 | N191: 40 | O191: 40
A192: pendlovky gustav becker | B192: 30 | C192: 6.22 | D192: 20 | E192: 30 | F192: 30 | G192: 20 | H192: 10 | I192: 10 | J192: 20 | K192: 30 | L192: 30 | M192: 30 | N192: 40 | O192: 50
A193: pendlovky starožitné | B193: 30 | C193: 6.65 | D193: 30 | E193: 40 | F193: 50 | G193: 20 | H193: 20 | I193: 20 | J193: 30 | K193: 40 | L193: 40 | M193: 10 | N193: 20 | O193: 20
A194: počítadlo provozních hodin | B194: 30 | C194: 8.36 | D194: 50 | E194: 30 | F194: 30 | G194: 30 | H194: 50 | I194: 40 | J194: 20 | K194: 40 | L194: 40 | M194: 30 | N194: 30 | O194: 30
A195: promítací hodiny | B195: 30 | C195: 5.36 | D195: 30 | E195: 40 | F195: 30 | G195: 20 | H195: 40 | I195: 20 | J195: 10 | K195: 40 | L195: 20 | M195: 40 | N195: 70 | O195: 70
A196: rustikální hodiny | B196: 30 | C196: 4.29 | D196: 30 | E196: 40 | F196: 30 | G196: 40 | H196: 30 | I196: 10 | J196: 20 | K196: 40 | L196: 30 | M196: 30 | N196: 30 | O196: 30
A197: seřízení kyvadlových hodin | B197: 30 | C197: 1.07 | D197: 50 | E197: 30 | F197: 40 | G197: 50 | H197: 20 | I197: 20 | J197: 50 | K197: 20 | L197: 20 | M197: 20 | N197: 30 | O197: 40
A198: starozitne krbove hodiny | B198: 30 | C198: 0 | D198: 50 | E198: 70 | F198: 70 | G198: 70 | H198: 10 | I198: 20 | J198: 20 | K198: 10 | L198: 10 | M198: 10 | N198: 10 | O198: 0
A199: stolní hodiny dřevěné | B199: 30 | C199: 4.29 | D199: 20 | E199: 20 | F199: 50 | G199: 10 | H199: 20 | I199: 10 | J199: 40 | K199: 20 | L199: 20 | M199: 20 | N199: 50 | O199: 30
A200: světelné hodiny | B200: 30 | C200: 5.36 | D200: 30 | E200: 30 | F200: 40 | G200: 20 | H200: 30 | I200: 20 | J200: 20 | K200: 10 | L200: 20 | M200: 40 | N200: 20 | O200: 40
... 4300 more rows

Sheet Trendy hledanosti Seznam
A1: Klíčové slovo | B1: Hledanost Seznam | C1: CPC Sklik | D1: Leden | E1: Únor | F1: Březen | G1: Duben | H1: Květen | I1: Červen | J1: Červenec | K1: Srpen | L1: Září | M1: Říjen | N1: Listopad | O1: Prosinec | P1: Trend
A2: nástěnné hodiny | B2: 4761 | C2: 7.0734845 | D2: 4354 | E2: 3484 | F2: 6128 | G2: 3958 | H2: 2903 | I2: 3573 | J2: 3690 | K2: 4076 | L2: 4721 | M2: 5320 | N2: 8532 | O2: 6388
A3: hodiny | B3: 1137 | C3: 4.1843436 | D3: 960 | E3: 846 | F3: 1274 | G3: 839 | H3: 768 | I3: 657 | J3: 881 | K3: 989 | L3: 1171 | M3: 1656 | N3: 1753 | O3: 1847
A4: stolní hodiny | B4: 535 | C4: 2.63 | D4: 384 | E4: 512 | F4: 266 | G4: 413 | H4: 604 | I4: 262 | J4: 686 | K4: 689 | L4: 521 | M4: 492 | N4: 780 | O4: 813
A5: hodinový strojek | B5: 390 | C5: 1.8166667 | D5: 538 | E5: 345 | F5: 528 | G5: 316 | H5: 309 | I5: 279 | J5: 340 | K5: 235 | L5: 295 | M5: 330 | N5: 580 | O5: 582
A6: atomové hodiny | B6: 315 | C6: 2.9 | D6: 227 | E6: 468 | F6: 1071 | G6: 354 | H6: 310 | I6: 195 | J6: 87 | K6: 76 | L6: 101 | M6: 200 | N6: 316 | O6: 378
A7: starožitné hodiny | B7: 286 | C7: 1.9720653 | D7: 289 | E7: 262 | F7: 240 | G7: 134 | H7: 81 | I7: 66 | J7: 511 | K7: 489 | L7: 303 | M7: 348 | N7: 387 | O7: 323
A8: bentime | B8: 270 | C8: 4.3669232 | D8: 252 | E8: 161 | F8: 160 | G8: 114 | H8: 115 | I8: 119 | J8: 297 | K8: 292 | L8: 307 | M8: 327 | N8: 444 | O8: 654
A9: kuchyňské hodiny nástěnné | B9: 242 | C9: 0 | D9: 264 | E9: 198 | F9: 207 | G9: 183 | H9: 95 | I9: 117 | J9: 282 | K9: 223 | L9: 342 | M9: 280 | N9: 334 | O9: 379
A10: andělská čísla na hodinách | B10: 240 | C10: 0 | D10: 189 | E10: 176 | F10: 265 | G10: 277 | H10: 182 | I10: 203 | J10: 364 | K10: 346 | L10: 238 | M10: 157 | N10: 262 | O10: 215
A11: přesýpací hodiny | B11: 218 | C11: 3.1682654 | D11: 207 | E11: 172 | F11: 227 | G11: 185 | H11: 155 | I11: 111 | J11: 183 | K11: 103 | L11: 218 | M11: 237 | N11: 377 | O11: 438
A12: význam čísel na hodinách | B12: 197 | C12: 0 | D12: 125 | E12: 125 | F12: 206 | G12: 225 | H12: 234 | I12: 161 | J12: 216 | K12: 260 | L12: 186 | M12: 226 | N12: 222 | O12: 172
A13: atomové hodiny online | B13: 183 | C13: 0 | D13: 145 | E13: 36 | F13: 84 | G13: 58 | H13: 129 | I13: 116 | J13: 262 | K13: 235 | L13: 209 | M13: 588 | N13: 132 | O13: 202
A14: pendlovky | B14: 182 | C14: 2.6470587 | D14: 264 | E14: 124 | F14: 183 | G14: 159 | H14: 106 | I14: 47 | J14: 129 | K14: 208 | L14: 122 | M14: 229 | N14: 307 | O14: 301
A15: kukačkové hodiny | B15: 150 | C15: 1.5810527 | D15: 117 | E15: 155 | F15: 147 | G15: 71 | H15: 67 | I15: 73 | J15: 124 | K15: 100 | L15: 113 | M15: 262 | N15: 360 | O15: 205
A16: hodiny s fotorámečky | B16: 143 | C16: 3.4310345 | D16: 125 | E16: 76 | F16: 52 | G16: 30 | H16: 57 | I16: 45 | J16: 120 | K16: 41 | L16: 89 | M16: 284 | N16: 497 | O16: 304
A17: retro hodiny | B17: 143 | C17: 3.1277777 | D17: 112 | E17: 46 | F17: 137 | G17: 226 | H17: 49 | I17: 57 | J17: 169 | K17: 176 | L17: 155 | M17: 127 | N17: 268 | O17: 193
A18: nastene hodiny | B18: 131 | C18: 3.1222223 | D18: 113 | E18: 155 | F18: 82 | G18: 44 | H18: 29 | I18: 29 | J18: 112 | K18: 144 | L18: 212 | M18: 348 | N18: 176 | O18: 128
A19: keramické hodiny | B19: 125 | C19: 1.65 | D19: 99 | E19: 82 | F19: 186 | G19: 82 | H19: 119 | I19: 56 | J19: 108 | K19: 141 | L19: 116 | M19: 133 | N19: 236 | O19: 137
A20: hodiny kukačky | B20: 123 | C20: 2.8358334 | D20: 105 | E20: 114 | F20: 351 | G20: 130 | H20: 125 | I20: 125 | J20: 54 | K20: 79 | L20: 26 | M20: 82 | N20: 125 | O20: 160
A21: kovové nástěnné hodiny | B21: 121 | C21: 5.346667 | D21: 312 | E21: 55 | F21: 131 | G21: 42 | H21: 74 | I21: 80 | J21: 112 | K21: 81 | L21: 127 | M21: 36 | N21: 228 | O21: 177
A22: nástěnné hodiny řízené rádiovým signálem | B22: 119 | C22: 4.923421 | D22: 39 | E22: 96 | F22: 184 | G22: 58 | H22: 24 | I22: 160 | J22: 133 | K22: 64 | L22: 118 | M22: 123 | N22: 237 | O22: 192
A23: hodiny do kuchyně | B23: 117 | C23: 3.6406152 | D23: 67 | E23: 62 | F23: 70 | G23: 40 | H23: 54 | I23: 53 | J23: 181 | K23: 242 | L23: 179 | M23: 77 | N23: 213 | O23: 167
A24: nástěnné hodiny řízené rádiem | B24: 107 | C24: 4.8477777 | D24: 119 | E24: 70 | F24: 275 | G24: 90 | H24: 90 | I24: 27 | J24: 8 | K24: 7 | L24: 3 | M24: 120 | N24: 299 | O24: 181
A25: nástěnné hodiny do kuchyně | B25: 95 | C25: 5.211772 | D25: 147 | E25: 29 | F25: 93 | G25: 32 | H25: 44 | I25: 37 | J25: 135 | K25: 78 | L25: 55 | M25: 174 | N25: 199 | O25: 118
A26: nádražní hodiny | B26: 93 | C26: 1.6888235 | D26: 36 | E26: 43 | F26: 104 | G26: 107 | H26: 132 | I26: 104 | J26: 107 | K26: 146 | L26: 49 | M26: 110 | N26: 89 | O26: 85
A27: meteoradar aktuálně po hodině | B27: 92 | C27: 0 | D27: 5 | E27: 2 | F27: 6 | G27: 19 | H27: 14 | I27: 5 | J27: 474 | K27: 362 | L27: 122 | M27: 58 | N27: 22 | O27: 11
A28: hodiny s projekcí | B28: 84 | C28: 0.65 | D28: 95 | E28: 41 | F28: 58 | G28: 13 | H28: 46 | I28: 19 | J28: 39 | K28: 100 | L28: 105 | M28: 162 | N28: 176 | O28: 151
A29: hodinové strojky | B29: 83 | C29: 1.3390625 | D29: 96 | E29: 69 | F29: 144 | G29: 75 | H29: 73 | I29: 101 | J29: 32 | K29: 33 | L29: 32 | M29: 111 | N29: 169 | O29: 62
A30: nástěnné hodiny dřevěné | B30: 83 | C30: 4.2429413 | D30: 117 | E30: 31 | F30: 119 | G30: 61 | H30: 148 | I30: 76 | J30: 86 | K30: 94 | L30: 16 | M30: 120 | N30: 74 | O30: 59
A31: projekční hodiny | B31: 83 | C31: 3.2885715 | D31: 69 | E31: 84 | F31: 72 | G31: 82 | H31: 48 | I31: 39 | J31: 43 | K31: 43 | L31: 38 | M31: 87 | N31: 194 | O31: 194
A32: vinylové hodiny | B32: 82 | C32: 1.7727272 | D32: 10 | E32: 30 | F32: 163 | G32: 33 | H32: 63 | I32: 60 | J32: 91 | K32: 9 | L32: 98 | M32: 58 | N32: 139 | O32: 225
A33: hodiny na stěnu | B33: 81 | C33: 3.906889 | D33: 55 | E33: 53 | F33: 78 | G33: 53 | H33: 28 | I33: 29 | J33: 79 | K33: 57 | L33: 125 | M33: 128 | N33: 187 | O33: 95
A34: designové nástěnné hodiny | B34: 80 | C34: 7.323077 | D34: 58 | E34: 130 | F34: 81 | G34: 19 | H34: 52 | I34: 24 | J34: 145 | K34: 137 | L34: 55 | M34: 33 | N34: 72 | O34: 153
A35: nástěnné hodiny jvd | B35: 78 | C35: 4.717451 | D35: 106 | E35: 71 | F35: 84 | G35: 59 | H35: 21 | I35: 33 | J35: 50 | K35: 44 | L35: 34 | M35: 66 | N35: 157 | O35: 214
A36: stojací hodiny | B36: 78 | C36: 1.515 | D36: 94 | E36: 31 | F36: 116 | G36: 78 | H36: 64 | I36: 36 | J36: 13 | K36: 60 | L36: 79 | M36: 120 | N36: 128 | O36: 122
A37: kuchyňské hodiny na zeď | B37: 77 | C37: 4.262236 | D37: 17 | E37: 43 | F37: 23 | G37: 41 | H37: 95 | I37: 84 | J37: 76 | K37: 49 | L37: 75 | M37: 124 | N37: 249 | O37: 51
A38: svítící hodiny | B38: 74 | C38: 1.2642857 | D38: 55 | E38: 18 | F38: 51 | G38: 40 | H38: 32 | I38: 57 | J38: 106 | K38: 115 | L38: 104 | M38: 84 | N38: 139 | O38: 82
A39: deska gramofonova hodiny | B39: 71 | C39: 0 | D39: 4 | E39: 81 | F39: 61 | G39: 27 | H39: 21 | I39: 29 | J39: 72 | K39: 52 | L39: 67 | M39: 22 | N39: 345 | O39: 76
A40: hodiny s kyvadlem | B40: 70 | C40: 1.4118182 | D40: 60 | E40: 52 | F40: 137 | G40: 29 | H40: 97 | I40: 53 | J40: 144 | K40: 64 | L40: 16 | M40: 19 | N40: 102 | O40: 68
A41: hodiny na motorku | B41: 68 | C41: 1.5 | D41: 28 | E41: 27 | F41: 36 | G41: 110 | H41: 131 | I41: 77 | J41: 81 | K41: 78 | L41: 51 | M41: 56 | N41: 115 | O41: 31
A42: opakující se čísla na hodinách | B42: 64 | C42: 0 | D42: 59 | E42: 29 | F42: 120 | G42: 96 | H42: 51 | I42: 89 | J42: 40 | K42: 40 | L42: 51 | M42: 70 | N42: 47 | O42: 80
A43: hodiny kyvadlove nastenne quartz | B43: 61 | C43: 0 | D43: 35 | E43: 74 | F43: 67 | G43: 30 | H43: 0 | I43: 12 | J43: 4 | K43: 128 | L43: 31 | M43: 80 | N43: 135 | O43: 135
A44: krbové hodiny aukro | B44: 60 | C44: 0 | D44: 41 | E44: 30 | F44: 56 | G44: 51 | H44: 58 | I44: 8 | J44: 138 | K44: 41 | L44: 9 | M44: 33 | N44: 159 | O44: 99
A45: nástěnné hodiny quartz | B45: 60 | C45: 6.2 | D45: 53 | E45: 12 | F45: 146 | G45: 69 | H45: 32 | I45: 15 | J45: 110 | K45: 22 | L45: 120 | M45: 37 | N45: 88 | O45: 12
A46: nástěnné hodiny tichý chod | B46: 59 | C46: 4.2125 | D46: 41 | E46: 9 | F46: 20 | G46: 87 | H46: 7 | I46: 20 | J46: 7 | K46: 11 | L46: 37 | M46: 159 | N46: 151 | O46: 156
A47: nástěnné hodiny červené | B47: 58 | C47: 6.38 | D47: 51 | E47: 42 | F47: 30 | G47: 10 | H47: 37 | I47: 64 | J47: 117 | K47: 81 | L47: 112 | M47: 32 | N47: 60 | O47: 62
A48: hodiny jdoucí pozpátku | B48: 56 | C48: 1.88 | D48: 43 | E48: 21 | F48: 78 | G48: 36 | H48: 22 | I48: 51 | J48: 67 | K48: 107 | L48: 79 | M48: 65 | N48: 53 | O48: 54
A49: červené hodiny | B49: 55 | C49: 0 | D49: 153 | E49: 40 | F49: 123 | G49: 15 | H49: 21 | I49: 8 | J49: 11 | K49: 17 | L49: 75 | M49: 74 | N49: 58 | O49: 69
A50: hermle hodiny | B50: 55 | C50: 0 | D50: 42 | E50: 91 | F50: 77 | G50: 96 | H50: 18 | I50: 65 | J50: 52 | K50: 83 | L50: 2 | M50: 1 | N50: 122 | O50: 14
A51: hodiny nástěnné kočky | B51: 54 | C51: 0 | D51: 49 | E51: 18 | F51: 38 | G51: 13 | H51: 10 | I51: 10 | J51: 60 | K51: 41 | L51: 43 | M51: 166 | N51: 112 | O51: 84
A52: fotohodiny | B52: 53 | C52: 3.8 | D52: 22 | E52: 84 | F52: 14 | G52: 14 | H52: 23 | I52: 17 | J52: 26 | K52: 13 | L52: 56 | M52: 90 | N52: 180 | O52: 99
A53: hodiny levandule | B53: 53 | C53: 4.325 | D53: 36 | E53: 21 | F53: 15 | G53: 34 | H53: 43 | I53: 21 | J53: 44 | K53: 56 | L53: 71 | M53: 41 | N53: 179 | O53: 78
A54: hodiny s teploměrem | B54: 53 | C54: 2.0333333 | D54: 47 | E54: 53 | F54: 52 | G54: 25 | H54: 18 | I54: 59 | J54: 56 | K54: 20 | L54: 75 | M54: 19 | N54: 87 | O54: 121
A55: venkovní hodiny do pergoly | B55: 53 | C55: 1.62 | D55: 16 | E55: 13 | F55: 30 | G55: 16 | H55: 30 | I55: 18 | J55: 126 | K55: 149 | L55: 80 | M55: 58 | N55: 63 | O55: 32
A56: zahradní hodiny | B56: 53 | C56: 0.9 | D56: 1 | E56: 16 | F56: 9 | G56: 73 | H56: 106 | I56: 103 | J56: 60 | K56: 58 | L56: 36 | M56: 67 | N56: 92 | O56: 16
A57: hodiny odbily | B57: 52 | C57: 0 | D57: 28 | E57: 17 | F57: 18 | G57: 13 | H57: 25 | I57: 15 | J57: 5 | K57: 8 | L57: 77 | M57: 128 | N57: 203 | O57: 87
A58: hodiny s projektorem | B58: 51 | C58: 3.70625 | D58: 42 | E58: 31 | F58: 54 | G58: 65 | H58: 51 | I58: 23 | J58: 26 | K58: 33 | L58: 30 | M58: 36 | N58: 61 | O58: 157
A59: přesýpací hodiny na čištění zubů | B59: 51 | C59: 4.155 | D59: 71 | E59: 47 | F59: 46 | G59: 49 | H59: 36 | I59: 11 | J59: 30 | K59: 78 | L59: 75 | M59: 39 | N59: 74 | O59: 50
A60: hodiny provence | B60: 50 | C60: 1.7266667 | D60: 21 | E60: 49 | F60: 43 | G60: 6 | H60: 14 | I60: 15 | J60: 30 | K60: 56 | L60: 80 | M60: 134 | N60: 76 | O60: 81
A61: hodiny rhythm | B61: 50 | C61: 3.925 | D61: 13 | E61: 5 | F61: 52 | G61: 91 | H61: 55 | I61: 76 | J61: 25 | K61: 3 | L61: 4 | M61: 76 | N61: 51 | O61: 154
A62: překlápěcí hodiny | B62: 49 | C62: 4.078125 | D62: 69 | E62: 30 | F62: 54 | G62: 6 | H62: 22 | I62: 43 | J62: 55 | K62: 32 | L62: 29 | M62: 64 | N62: 80 | O62: 104
A63: docházkové hodiny | B63: 48 | C63: 10.542858 | D63: 34 | E63: 41 | F63: 35 | G63: 64 | H63: 111 | I63: 27 | J63: 56 | K63: 53 | L63: 44 | M63: 33 | N63: 26 | O63: 49
A64: nástěnné hodiny zelené | B64: 48 | C64: 6.27 | D64: 4 | E64: 32 | F64: 10 | G64: 46 | H64: 5 | I64: 4 | J64: 16 | K64: 46 | L64: 132 | M64: 91 | N64: 82 | O64: 106
A65: dcf hodinovy strojek | B65: 47 | C65: 0 | D65: 20 | E65: 20 | F65: 60 | G65: 29 | H65: 11 | I65: 5 | J65: 25 | K65: 45 | L65: 45 | M65: 116 | N65: 133 | O65: 53
A66: nástěnné hodiny s kyvadlem | B66: 47 | C66: 3.3290625 | D66: 43 | E66: 14 | F66: 65 | G66: 35 | H66: 65 | I66: 18 | J66: 45 | K66: 26 | L66: 25 | M66: 41 | N66: 114 | O66: 70
A67: přesípací hodiny | B67: 47 | C67: 0.6375 | D67: 43 | E67: 29 | F67: 79 | G67: 70 | H67: 66 | I67: 50 | J67: 33 | K67: 27 | L67: 42 | M67: 35 | N67: 54 | O67: 40
A68: strojek do hodin | B68: 47 | C68: 0.48666668 | D68: 37 | E68: 18 | F68: 47 | G68: 38 | H68: 85 | I68: 39 | J68: 84 | K68: 36 | L68: 45 | M68: 26 | N68: 76 | O68: 30
A69: rádiem řízené hodiny | B69: 46 | C69: 2.3975 | D69: 45 | E69: 57 | F69: 34 | G69: 32 | H69: 74 | I69: 54 | J69: 12 | K69: 16 | L69: 71 | M69: 63 | N69: 37 | O69: 55
A70: velké hodiny | B70: 45 | C70: 2.82 | D70: 59 | E70: 33 | F70: 53 | G70: 24 | H70: 27 | I70: 2 | J70: 83 | K70: 61 | L70: 51 | M70: 26 | N70: 43 | O70: 74
A71: křtící hodiny | B71: 43 | C71: 3.0473685 | D71: 8 | E71: 26 | F71: 64 | G71: 41 | H71: 15 | I71: 40 | J71: 45 | K71: 79 | L71: 63 | M71: 79 | N71: 38 | O71: 16
A72: tiché nástěnné hodiny | B72: 43 | C72: 4.0194287 | D72: 38 | E72: 20 | F72: 33 | G72: 30 | H72: 49 | I72: 38 | J72: 43 | K72: 21 | L72: 21 | M72: 40 | N72: 106 | O72: 73
A73: hodiny s tichým chodem | B73: 42 | C73: 1.8733333 | D73: 97 | E73: 61 | F73: 19 | G73: 36 | H73: 47 | I73: 5 | J73: 76 | K73: 28 | L73: 82 | M73: 3 | N73: 32 | O73: 22
A74: elektrické hodiny | B74: 41 | C74: 1.644 | D74: 36 | E74: 35 | F74: 54 | G74: 43 | H74: 42 | I74: 26 | J74: 33 | K74: 14 | L74: 25 | M74: 48 | N74: 78 | O74: 62
A75: hodiny anglicky | B75: 41 | C75: 0 | D75: 50 | E75: 37 | F75: 66 | G75: 56 | H75: 39 | I75: 24 | J75: 13 | K75: 15 | L75: 27 | M75: 65 | N75: 59 | O75: 38
A76: nástěnné hodiny s teploměrem a vlhkoměrem | B76: 41 | C76: 4.8115384 | D76: 24 | E76: 24 | F76: 47 | G76: 31 | H76: 23 | I76: 13 | J76: 37 | K76: 29 | L76: 59 | M76: 65 | N76: 46 | O76: 97
A77: nástěnné hodiny skleněné | B77: 41 | C77: 4.5 | D77: 1 | E77: 10 | F77: 2 | G77: 31 | H77: 30 | I77: 1 | J77: 11 | K77: 59 | L77: 45 | M77: 74 | N77: 199 | O77: 30
A78: kyvadlové nástěnné hodiny | B78: 40 | C78: 5.514286 | D78: 81 | E78: 60 | F78: 13 | G78: 4 | H78: 12 | I78: 7 | J78: 58 | K78: 2 | L78: 37 | M78: 98 | N78: 70 | O78: 43
A79: venkovní hodiny s teploměrem | B79: 40 | C79: 3.3935483 | D79: 10 | E79: 24 | F79: 72 | G79: 32 | H79: 97 | I79: 33 | J79: 54 | K79: 59 | L79: 38 | M79: 33 | N79: 9 | O79: 14
A80: jvd hodiny | B80: 39 | C80: 3.8411765 | D80: 9 | E80: 14 | F80: 16 | G80: 45 | H80: 132 | I80: 35 | J80: 32 | K80: 45 | L80: 35 | M80: 50 | N80: 32 | O80: 26
A81: liturgie hodin | B81: 39 | C81: 0 | D81: 37 | E81: 23 | F81: 36 | G81: 38 | H81: 32 | I81: 45 | J81: 73 | K81: 55 | L81: 34 | M81: 21 | N81: 26 | O81: 51
A82: hodiny do obývacího pokoje | B82: 38 | C82: 1.9555556 | D82: 18 | E82: 18 | F82: 16 | G82: 40 | H82: 17 | I82: 30 | J82: 8 | K82: 12 | L82: 18 | M82: 16 | N82: 162 | O82: 95
A83: designové a luxusní nástěnné hodiny | B83: 37 | C83: 5.871515 | D83: 6 | E83: 23 | F83: 4 | G83: 25 | H83: 12 | I83: 22 | J83: 52 | K83: 70 | L83: 161 | M83: 20 | N83: 28 | O83: 21
A84: hodiny pendlovky | B84: 37 | C84: 2.9860345 | D84: 43 | E84: 36 | F84: 30 | G84: 16 | H84: 19 | I84: 53 | J84: 38 | K84: 28 | L84: 34 | M84: 63 | N84: 48 | O84: 33
A85: nástěnné hodiny retro | B85: 37 | C85: 5.462857 | D85: 35 | E85: 5 | F85: 10 | G85: 51 | H85: 7 | I85: 10 | J85: 27 | K85: 14 | L85: 115 | M85: 4 | N85: 88 | O85: 74
A86: věžní hodiny | B86: 37 | C86: 2.7916666 | D86: 23 | E86: 9 | F86: 44 | G86: 27 | H86: 46 | I86: 18 | J86: 31 | K86: 56 | L86: 35 | M86: 42 | N86: 68 | O86: 39
A87: co znamenají stejná čísla na hodinách | B87: 36 | C87: 0 | D87: 18 | E87: 25 | F87: 60 | G87: 26 | H87: 40 | I87: 31 | J87: 27 | K87: 20 | L87: 52 | M87: 25 | N87: 77 | O87: 30
A88: do hodiny koupelny | B88: 36 | C88: 0 | D88: 54 | E88: 73 | F88: 55 | G88: 34 | H88: 34 | I88: 22 | J88: 17 | K88: 14 | L88: 14 | M88: 28 | N88: 29 | O88: 56
A89: hodiny na zeď do kuchyně | B89: 35 | C89: 4.608 | D89: 55 | E89: 24 | F89: 86 | G89: 37 | H89: 35 | I89: 14 | J89: 79 | K89: 22 | L89: 15 | M89: 0 | N89: 0 | O89: 56
A90: krbové hodiny | B90: 35 | C90: 2.6642856 | D90: 35 | E90: 38 | F90: 49 | G90: 33 | H90: 17 | I90: 23 | J90: 23 | K90: 26 | L90: 19 | M90: 59 | N90: 77 | O90: 25
A91: nástěnné hodiny s fotorámečky | B91: 35 | C91: 4.4627908 | D91: 10 | E91: 23 | F91: 5 | G91: 12 | H91: 32 | I91: 26 | J91: 35 | K91: 26 | L91: 51 | M91: 108 | N91: 69 | O91: 28
A92: hodinový strojek s ručičkami | B92: 34 | C92: 2.5890323 | D92: 22 | E92: 16 | F92: 27 | G92: 38 | H92: 31 | I92: 21 | J92: 14 | K92: 6 | L92: 7 | M92: 117 | N92: 88 | O92: 25
A93: hodiny v angličtině | B93: 33 | C93: 0 | D93: 42 | E93: 39 | F93: 43 | G93: 49 | H93: 45 | I93: 21 | J93: 17 | K93: 13 | L93: 34 | M93: 31 | N93: 32 | O93: 27
A94: kovové hodiny | B94: 33 | C94: 3.2975 | D94: 10 | E94: 13 | F94: 35 | G94: 13 | H94: 22 | I94: 2 | J94: 35 | K94: 111 | L94: 12 | M94: 73 | N94: 36 | O94: 31
A95: nástěnné hodiny pro děti | B95: 33 | C95: 5.833333 | D95: 49 | E95: 3 | F95: 42 | G95: 20 | H95: 13 | I95: 5 | J95: 20 | K95: 27 | L95: 24 | M95: 34 | N95: 119 | O95: 45
A96: netikající hodiny | B96: 33 | C96: 1.5 | D96: 29 | E96: 20 | F96: 14 | G96: 46 | H96: 72 | I96: 10 | J96: 14 | K96: 27 | L96: 33 | M96: 59 | N96: 41 | O96: 32
A97: starožitné pendlové hodiny prodej | B97: 33 | C97: 2.6833334 | D97: 7 | E97: 5 | F97: 17 | G97: 9 | H97: 11 | I97: 7 | J97: 78 | K97: 57 | L97: 43 | M97: 86 | N97: 55 | O97: 17
A98: anglické hodiny | B98: 32 | C98: 1.18333336 | D98: 28 | E98: 36 | F98: 68 | G98: 23 | H98: 42 | I98: 16 | J98: 22 | K98: 18 | L98: 38 | M98: 35 | N98: 32 | O98: 27
A99: dcf hodiny | B99: 31 | C99: 4.0666666 | D99: 4 | E99: 8 | F99: 18 | G99: 24 | H99: 6 | I99: 3 | J99: 29 | K99: 34 | L99: 63 | M99: 64 | N99: 61 | O99: 54
A100: hodinové úhrny srážek | B100: 31 | C100: 0 | D100: 41 | E100: 0 | F100: 16 | G100: 43 | H100: 27 | I100: 25 | J100: 71 | K100: 22 | L100: 19 | M100: 24 | N100: 41 | O100: 42
A101: nástěnné hodiny rhythm | B101: 31 | C101: 5.5 | D101: 8 | E101: 62 | F101: 19 | G101: 3 | H101: 32 | I101: 16 | J101: 28 | K101: 60 | L101: 36 | M101: 31 | N101: 16 | O101: 58
A102: luxusní nástěnné hodiny | B102: 30 | C102: 4.65 | D102: 52 | E102: 59 | F102: 8 | G102: 18 | H102: 5 | I102: 2 | J102: 17 | K102: 16 | L102: 37 | M102: 10 | N102: 109 | O102: 31
A103: nástěnné kyvadlové hodiny pendlovky starožitné | B103: 30 | C103: 5.6826227 | D103: 10 | E103: 30 | F103: 29 | G103: 14 | H103: 46 | I103: 35 | J103: 21 | K103: 33 | L103: 33 | M103: 39 | N103: 33 | O103: 32
A104: počítadlo provozních hodin | B104: 30 | C104: 4.788889 | D104: 15 | E104: 33 | F104: 49 | G104: 41 | H104: 10 | I104: 15 | J104: 37 | K104: 23 | L104: 53 | M104: 22 | N104: 27 | O104: 29
A105: výpočet čisté hodinové mzdy | B105: 30 | C105: 2.273077 | D105: 36 | E105: 29 | F105: 31 | G105: 17 | H105: 37 | I105: 66 | J105: 43 | K105: 31 | L105: 28 | M105: 9 | N105: 8 | O105: 21
A106: empírové hodiny | B106: 29 | C106: 1.2625 | D106: 25 | E106: 13 | F106: 7 | G106: 7 | H106: 36 | I106: 150 | J106: 17 | K106: 21 | L106: 37 | M106: 18 | N106: 9 | O106: 9
A107: hodinový ciferník | B107: 29 | C107: 0 | D107: 36 | E107: 67 | F107: 33 | G107: 11 | H107: 16 | I107: 20 | J107: 6 | K107: 7 | L107: 26 | M107: 61 | N107: 56 | O107: 14
A108: hodiny na plochu pc | B108: 29 | C108: 0.7 | D108: 8 | E108: 13 | F108: 40 | G108: 32 | H108: 24 | I108: 25 | J108: 38 | K108: 70 | L108: 36 | M108: 4 | N108: 11 | O108: 52
A109: hodiny ročky | B109: 29 | C109: 0 | D109: 50 | E109: 4 | F109: 8 | G109: 8 | H109: 0 | I109: 6 | J109: 10 | K109: 56 | L109: 36 | M109: 73 | N109: 64 | O109: 35
A110: nástěnné hodiny s teploměrem | B110: 29 | C110: 4.8272726 | D110: 33 | E110: 31 | F110: 43 | G110: 20 | H110: 5 | I110: 8 | J110: 2 | K110: 75 | L110: 43 | M110: 42 | N110: 25 | O110: 19
A111: starožitné stolní hodiny krbové | B111: 29 | C111: 3.8 | D111: 8 | E111: 14 | F111: 6 | G111: 15 | H111: 7 | I111: 1 | J111: 71 | K111: 45 | L111: 30 | M111: 36 | N111: 50 | O111: 66
A112: vintage hodiny | B112: 28 | C112: 3.1666666 | D112: 2 | E112: 8 | F112: 31 | G112: 31 | H112: 7 | I112: 8 | J112: 60 | K112: 39 | L112: 44 | M112: 39 | N112: 48 | O112: 18
A113: vodní hodiny | B113: 28 | C113: 3.4 | D113: 21 | E113: 23 | F113: 46 | G113: 22 | H113: 44 | I113: 14 | J113: 11 | K113: 8 | L113: 65 | M113: 31 | N113: 25 | O113: 20
A114: designové hodiny na zeď | B114: 27 | C114: 3.3 | D114: 20 | E114: 13 | F114: 17 | G114: 13 | H114: 18 | I114: 4 | J114: 74 | K114: 58 | L114: 35 | M114: 22 | N114: 28 | O114: 19
A115: dřevěné hodiny na zeď | B115: 27 | C115: 5.35 | D115: 1 | E115: 24 | F115: 4 | G115: 0 | H115: 0 | I115: 1 | J115: 59 | K115: 48 | L115: 87 | M115: 59 | N115: 23 | O115: 19
A116: nástěnné hodiny dřevo | B116: 27 | C116: 6.133333 | D116: 39 | E116: 4 | F116: 2 | G116: 0 | H116: 4 | I116: 3 | J116: 34 | K116: 21 | L116: 12 | M116: 25 | N116: 112 | O116: 62
A117: nástěnné hodiny velké | B117: 27 | C117: 8.499 | D117: 54 | E117: 35 | F117: 12 | G117: 28 | H117: 20 | I117: 4 | J117: 7 | K117: 11 | L117: 5 | M117: 80 | N117: 46 | O117: 23
A118: světelné hodiny | B118: 27 | C118: 1.05 | D118: 35 | E118: 22 | F118: 38 | G118: 15 | H118: 13 | I118: 18 | J118: 22 | K118: 23 | L118: 29 | M118: 21 | N118: 77 | O118: 16
A119: velké nástěnné hodiny kovové | B119: 27 | C119: 5.135238 | D119: 55 | E119: 47 | F119: 15 | G119: 20 | H119: 12 | I119: 12 | J119: 44 | K119: 17 | L119: 6 | M119: 33 | N119: 39 | O119: 23
A120: hodiny svítící ve tmě | B120: 26 | C120: 0.8 | D120: 13 | E120: 14 | F120: 28 | G120: 29 | H120: 18 | I120: 13 | J120: 24 | K120: 35 | L120: 26 | M120: 41 | N120: 59 | O120: 16
A121: porcelánové nástěnné hodiny | B121: 26 | C121: 3.25 | D121: 9 | E121: 14 | F121: 8 | G121: 14 | H121: 39 | I121: 22 | J121: 2 | K121: 25 | L121: 42 | M121: 46 | N121: 62 | O121: 32
A122: retro hodiny do kuchyně | B122: 26 | C122: 3.2625 | D122: 22 | E122: 32 | F122: 42 | G122: 23 | H122: 44 | I122: 7 | J122: 45 | K122: 26 | L122: 15 | M122: 17 | N122: 15 | O122: 24
A123: retro hodiny na zeď | B123: 26 | C123: 4.3 | D123: 2 | E123: 0 | F123: 2 | G123: 30 | H123: 25 | I123: 11 | J123: 23 | K123: 23 | L123: 12 | M123: 106 | N123: 76 | O123: 5
A124: selské hodiny | B124: 26 | C124: 1.283871 | D124: 19 | E124: 15 | F124: 20 | G124: 9 | H124: 22 | I124: 81 | J124: 28 | K124: 18 | L124: 14 | M124: 29 | N124: 23 | O124: 37
A125: fialové hodiny | B125: 25 | C125: 1.1 | D125: 31 | E125: 2 | F125: 51 | G125: 39 | H125: 1 | I125: 14 | J125: 17 | K125: 28 | L125: 18 | M125: 25 | N125: 23 | O125: 47
A126: nástěnné hodiny 60 cm | B126: 25 | C126: 5.488889 | D126: 56 | E126: 31 | F126: 9 | G126: 0 | H126: 3 | I126: 24 | J126: 31 | K126: 50 | L126: 15 | M126: 37 | N126: 44 | O126: 1
A127: nástěnné hodiny fialové | B127: 25 | C127: 7 | D127: 1 | E127: 47 | F127: 4 | G127: 12 | H127: 7 | I127: 22 | J127: 61 | K127: 19 | L127: 41 | M127: 33 | N127: 34 | O127: 22
A128: oboustranné závěsné hodiny nádražní | B128: 25 | C128: 1.3764706 | D128: 10 | E128: 4 | F128: 16 | G128: 27 | H128: 32 | I128: 8 | J128: 36 | K128: 61 | L128: 31 | M128: 24 | N128: 37 | O128: 10
A129: venkovní nástěnné hodiny oboustranné | B129: 25 | C129: 3.9833334 | D129: 7 | E129: 1 | F129: 8 | G129: 14 | H129: 0 | I129: 0 | J129: 43 | K129: 41 | L129: 24 | M129: 63 | N129: 81 | O129: 14
A130: hodinové ručičky | B130: 24 | C130: 0.25 | D130: 20 | E130: 6 | F130: 28 | G130: 15 | H130: 30 | I130: 7 | J130: 11 | K130: 17 | L130: 61 | M130: 27 | N130: 34 | O130: 28
A131: hodiny s fotkou | B131: 24 | C131: 1.7727272 | D131: 25 | E131: 3 | F131: 0 | G131: 4 | H131: 7 | I131: 4 | J131: 35 | K131: 53 | L131: 53 | M131: 23 | N131: 45 | O131: 37
A132: levné nástěnné hodiny | B132: 24 | C132: 4.2778378 | D132: 24 | E132: 27 | F132: 22 | G132: 16 | H132: 15 | I132: 24 | J132: 21 | K132: 28 | L132: 26 | M132: 28 | N132: 29 | O132: 22
A133: lihýřové hodiny | B133: 24 | C133: 0.2 | D133: 34 | E133: 17 | F133: 13 | G133: 27 | H133: 16 | I133: 21 | J133: 13 | K133: 16 | L133: 37 | M133: 21 | N133: 56 | O133: 18
A134: moderní hodiny do obýváku | B134: 24 | C134: 1.9 | D134: 51 | E134: 0 | F134: 2 | G134: 10 | H134: 0 | I134: 0 | J134: 19 | K134: 25 | L134: 17 | M134: 40 | N134: 99 | O134: 20
A135: nástěnné hodiny do koupelny | B135: 24 | C135: 4.1027026 | D135: 24 | E135: 21 | F135: 14 | G135: 11 | H135: 24 | I135: 19 | J135: 33 | K135: 54 | L135: 38 | M135: 13 | N135: 12 | O135: 25
A136: nástěnné hodiny pendlovky | B136: 24 | C136: 6.833333 | D136: 48 | E136: 11 | F136: 41 | G136: 35 | H136: 4 | I136: 7 | J136: 18 | K136: 16 | L136: 19 | M136: 17 | N136: 49 | O136: 21
A137: nejlevnější kukackove hodiny | B137: 24 | C137: 0 | D137: 0 | E137: 0 | F137: 0 | G137: 0 | H137: 0 | I137: 0 | J137: 0 | K137: 0 | L137: 248 | M137: 34 | N137: 0 | O137: 0
A138: staré nástěnné hodiny | B138: 24 | C138: 5.8846155 | D138: 42 | E138: 24 | F138: 23 | G138: 6 | H138: 14 | I138: 24 | J138: 6 | K138: 10 | L138: 22 | M138: 14 | N138: 31 | O138: 70
A139: starožitné hodiny pendlovky | B139: 24 | C139: 7.033333 | D139: 107 | E139: 13 | F139: 9 | G139: 67 | H139: 26 | I139: 0 | J139: 0 | K139: 1 | L139: 0 | M139: 0 | N139: 0 | O139: 64
A140: výpočet mzdy dle hodin | B140: 24 | C140: 0 | D140: 0 | E140: 0 | F140: 0 | G140: 0 | H140: 0 | I140: 1 | J140: 93 | K140: 114 | L140: 75 | M140: 6 | N140: 1 | O140: 0
A141: závěsné hodiny | B141: 24 | C141: 2.21 | D141: 19 | E141: 13 | F141: 13 | G141: 5 | H141: 9 | I141: 2 | J141: 52 | K141: 42 | L141: 15 | M141: 25 | N141: 56 | O141: 37
A142: hodiny s fotkami | B142: 23 | C142: 2.016129 | D142: 10 | E142: 39 | F142: 12 | G142: 8 | H142: 21 | I142: 24 | J142: 15 | K142: 16 | L142: 12 | M142: 30 | N142: 56 | O142: 30
A143: hodiny s projekcí času | B143: 23 | C143: 1.8844444 | D143: 60 | E143: 6 | F143: 67 | G143: 13 | H143: 30 | I143: 10 | J143: 30 | K143: 12 | L143: 1 | M143: 3 | N143: 11 | O143: 28
A144: kuchyňské hodiny řízené rádiem | B144: 23 | C144: 2.0242424 | D144: 11 | E144: 3 | F144: 16 | G144: 18 | H144: 21 | I144: 12 | J144: 11 | K144: 37 | L144: 27 | M144: 28 | N144: 47 | O144: 46
A145: kukačky hodiny kyvadlové mechanické | B145: 23 | C145: 4.51 | D145: 6 | E145: 12 | F145: 38 | G145: 14 | H145: 22 | I145: 10 | J145: 29 | K145: 35 | L145: 22 | M145: 43 | N145: 30 | O145: 18
A146: rustikální hodiny | B146: 23 | C146: 1.7132 | D146: 17 | E146: 12 | F146: 15 | G146: 7 | H146: 5 | I146: 10 | J146: 12 | K146: 36 | L146: 35 | M146: 57 | N146: 27 | O146: 44
A147: velké hodiny na stěnu | B147: 23 | C147: 3.875862 | D147: 10 | E147: 2 | F147: 71 | G147: 22 | H147: 35 | I147: 23 | J147: 7 | K147: 4 | L147: 12 | M147: 24 | N147: 45 | O147: 15
A148: aukro starožitné hodiny | B148: 22 | C148: 0.8150944 | D148: 21 | E148: 44 | F148: 60 | G148: 39 | H148: 43 | I148: 35 | J148: 4 | K148: 3 | L148: 0 | M148: 0 | N148: 4 | O148: 12
A149: dřevěné kyvadlové hodiny bicí | B149: 22 | C149: 3.1946 | D149: 28 | E149: 16 | F149: 8 | G149: 4 | H149: 10 | I149: 1 | J149: 33 | K149: 34 | L149: 16 | M149: 70 | N149: 26 | O149: 20
A150: hodiny na plochu zdarma | B150: 22 | C150: 0 | D150: 52 | E150: 5 | F150: 1 | G150: 0 | H150: 1 | I150: 2 | J150: 13 | K150: 22 | L150: 44 | M150: 63 | N150: 43 | O150: 17
A151: hodiny pragotron | B151: 22 | C151: 0.6 | D151: 2 | E151: 31 | F151: 13 | G151: 16 | H151: 8 | I151: 10 | J151: 29 | K151: 15 | L151: 31 | M151: 57 | N151: 33 | O151: 21
A152: mechanické hodiny | B152: 22 | C152: 1.0425 | D152: 17 | E152: 70 | F152: 21 | G152: 9 | H152: 34 | I152: 6 | J152: 3 | K152: 6 | L152: 16 | M152: 12 | N152: 35 | O152: 36
A153: nástěnné hodiny prim | B153: 22 | C153: 3.41 | D153: 31 | E153: 10 | F153: 25 | G153: 16 | H153: 9 | I153: 20 | J153: 25 | K153: 21 | L153: 23 | M153: 26 | N153: 36 | O153: 26
A154: nástěnné hodiny stříbrné | B154: 22 | C154: 5.24 | D154: 12 | E154: 17 | F154: 35 | G154: 14 | H154: 9 | I154: 1 | J154: 8 | K154: 40 | L154: 39 | M154: 11 | N154: 68 | O154: 11
A155: nástěnné kyvadlové hodiny do obýváku | B155: 22 | C155: 4.45 | D155: 18 | E155: 22 | F155: 11 | G155: 5 | H155: 7 | I155: 1 | J155: 46 | K155: 29 | L155: 22 | M155: 24 | N155: 48 | O155: 32
A156: odpočtové hodiny | B156: 22 | C156: 0 | D156: 14 | E156: 27 | F156: 21 | G156: 36 | H156: 24 | I156: 13 | J156: 14 | K156: 8 | L156: 11 | M156: 43 | N156: 32 | O156: 23
A157: rustikální nástěnné hodiny | B157: 22 | C157: 5.633333 | D157: 3 | E157: 8 | F157: 23 | G157: 4 | H157: 3 | I157: 7 | J157: 24 | K157: 32 | L157: 28 | M157: 49 | N157: 47 | O157: 34
A158: sloupkové hodiny | B158: 22 | C158: 2.275 | D158: 68 | E158: 10 | F158: 8 | G158: 3 | H158: 17 | I158: 17 | J158: 17 | K158: 24 | L158: 17 | M158: 25 | N158: 30 | O158: 22
A159: hodiny kienzle | B159: 21 | C159: 1 | D159: 20 | E159: 5 | F159: 45 | G159: 11 | H159: 38 | I159: 13 | J159: 25 | K159: 14 | L159: 12 | M159: 16 | N159: 19 | O159: 29
A160: hodiny venkovní | B160: 21 | C160: 6.1 | D160: 7 | E160: 5 | F160: 17 | G160: 42 | H160: 42 | I160: 7 | J160: 24 | K160: 41 | L160: 35 | M160: 16 | N160: 17 | O160: 2
A161: nástěnné hodiny provence | B161: 21 | C161: 3.2834784 | D161: 4 | E161: 12 | F161: 36 | G161: 14 | H161: 14 | I161: 9 | J161: 15 | K161: 25 | L161: 45 | M161: 25 | N161: 46 | O161: 10
A162: pendlovky gustav becker | B162: 21 | C162: 0 | D162: 7 | E162: 8 | F162: 115 | G162: 8 | H162: 6 | I162: 8 | J162: 9 | K162: 10 | L162: 19 | M162: 15 | N162: 11 | O162: 34
A163: staré dřevěné hodiny kukačky | B163: 21 | C163: 3.7768292 | D163: 10 | E163: 13 | F163: 40 | G163: 4 | H163: 9 | I163: 25 | J163: 16 | K163: 27 | L163: 16 | M163: 33 | N163: 32 | O163: 26
A164: starožitné hodiny stojací | B164: 21 | C164: 2.6733334 | D164: 17 | E164: 12 | F164: 11 | G164: 37 | H164: 14 | I164: 10 | J164: 26 | K164: 59 | L164: 11 | M164: 13 | N164: 27 | O164: 12
A165: svatební hodiny | B165: 21 | C165: 1.15 | D165: 2 | E165: 5 | F165: 15 | G165: 51 | H165: 58 | I165: 30 | J165: 29 | K165: 38 | L165: 19 | M165: 6 | N165: 0 | O165: 0
A166: časovací hodiny | B166: 20 | C166: 3.3 | D166: 13 | E166: 10 | F166: 15 | G166: 19 | H166: 28 | I166: 13 | J166: 14 | K166: 7 | L166: 7 | M166: 34 | N166: 46 | O166: 34
A167: hodinové strojky s ručičkama | B167: 20 | C167: 2.675 | D167: 4 | E167: 0 | F167: 0 | G167: 0 | H167: 0 | I167: 1 | J167: 66 | K167: 75 | L167: 89 | M167: 0 | N167: 0 | O167: 0
A168: hodiny s kamerou | B168: 20 | C168: 2.2055556 | D168: 32 | E168: 19 | F168: 13 | G168: 17 | H168: 10 | I168: 6 | J168: 10 | K168: 15 | L168: 11 | M168: 55 | N168: 7 | O168: 42
A169: nástěnné hodiny plastové | B169: 20 | C169: 0 | D169: 171 | E169: 0 | F169: 0 | G169: 0 | H169: 0 | I169: 0 | J169: 1 | K169: 1 | L169: 0 | M169: 2 | N169: 58 | O169: 1
A170: nástěnné hodiny řízené signálem | B170: 20 | C170: 4.2042105 | D170: 37 | E170: 2 | F170: 15 | G170: 5 | H170: 34 | I170: 15 | J170: 10 | K170: 27 | L170: 2 | M170: 2 | N170: 0 | O170: 85
A171: průměrný hodinový výdělek výpočet | B171: 20 | C171: 0 | D171: 14 | E171: 13 | F171: 26 | G171: 31 | H171: 12 | I171: 13 | J171: 32 | K171: 44 | L171: 27 | M171: 0 | N171: 21 | O171: 7
A172: průmyslové hodiny | B172: 20 | C172: 2.5 | D172: 6 | E172: 14 | F172: 10 | G172: 13 | H172: 8 | I172: 4 | J172: 16 | K172: 23 | L172: 23 | M172: 78 | N172: 25 | O172: 20
A173: přesný čas atomové hodiny | B173: 20 | C173: 0 | D173: 11 | E173: 15 | F173: 56 | G173: 10 | H173: 11 | I173: 10 | J173: 18 | K173: 24 | L173: 20 | M173: 40 | N173: 13 | O173: 17
A174: tatvicke hodiny | B174: 20 | C174: 1.74 | D174: 20 | E174: 9 | F174: 19 | G174: 20 | H174: 20 | I174: 42 | J174: 9 | K174: 18 | L174: 31 | M174: 17 | N174: 25 | O174: 15
A175: čajové svíčky na 8 hodin | B175: 19 | C175: 3.4 | D175: 10 | E175: 27 | F175: 2 | G175: 0 | H175: 4 | I175: 1 | J175: 16 | K175: 5 | L175: 34 | M175: 44 | N175: 72 | O175: 15
A176: čhmú hodinové úhrny srážek | B176: 19 | C176: 0 | D176: 13 | E176: 3 | F176: 17 | G176: 16 | H176: 30 | I176: 28 | J176: 37 | K176: 33 | L176: 42 | M176: 0 | N176: 1 | O176: 4
A177: hodinové strojky na baterie | B177: 19 | C177: 1.25 | D177: 0 | E177: 0 | F177: 0 | G177: 0 | H177: 0 | I177: 0 | J177: 25 | K177: 78 | L177: 60 | M177: 29 | N177: 29 | O177: 2
A178: hodinový strojek na zeď | B178: 19 | C178: 2.2 | D178: 37 | E178: 28 | F178: 21 | G178: 1 | H178: 0 | I178: 9 | J178: 0 | K178: 0 | L178: 3 | M178: 12 | N178: 66 | O178: 46
A179: hodiny z gramofonové desky | B179: 19 | C179: 0.71111115 | D179: 4 | E179: 10 | F179: 18 | G179: 10 | H179: 7 | I179: 13 | J179: 39 | K179: 48 | L179: 17 | M179: 9 | N179: 33 | O179: 22
A180: mechanické kyvadlové hodiny | B180: 19 | C180: 6.983333 | D180: 13 | E180: 3 | F180: 27 | G180: 30 | H180: 21 | I180: 2 | J180: 20 | K180: 24 | L180: 11 | M180: 15 | N180: 17 | O180: 48
A181: nástěnné kyvadlové hodiny pendlovky | B181: 19 | C181: 5.73881 | D181: 7 | E181: 30 | F181: 40 | G181: 24 | H181: 73 | I181: 18 | J181: 1 | K181: 0 | L181: 0 | M181: 5 | N181: 2 | O181: 23
A182: pendlové hodiny | B182: 19 | C182: 4 | D182: 9 | E182: 52 | F182: 15 | G182: 9 | H182: 3 | I182: 6 | J182: 7 | K182: 66 | L182: 8 | M182: 23 | N182: 18 | O182: 6
A183: sloupové hodiny | B183: 19 | C183: 1.5416667 | D183: 25 | E183: 26 | F183: 14 | G183: 17 | H183: 24 | I183: 24 | J183: 12 | K183: 5 | L183: 17 | M183: 9 | N183: 33 | O183: 17
A184: staré kuchyňské hodiny | B184: 19 | C184: 2.67 | D184: 22 | E184: 29 | F184: 26 | G184: 28 | H184: 3 | I184: 11 | J184: 10 | K184: 21 | L184: 19 | M184: 16 | N184: 23 | O184: 25
A185: stolní hodiny na baterii | B185: 19 | C185: 0 | D185: 0 | E185: 0 | F185: 4 | G185: 0 | H185: 0 | I185: 0 | J185: 37 | K185: 97 | L185: 31 | M185: 48 | N185: 6 | O185: 0
A186: strojek do nástěnných hodin | B186: 19 | C186: 1.61375 | D186: 14 | E186: 12 | F186: 34 | G186: 7 | H186: 19 | I186: 12 | J186: 26 | K186: 18 | L186: 26 | M186: 17 | N186: 26 | O186: 21
A187: druhy hodin | B187: 18 | C187: 0.7 | D187: 16 | E187: 25 | F187: 30 | G187: 23 | H187: 18 | I187: 7 | J187: 4 | K187: 5 | L187: 21 | M187: 32 | N187: 32 | O187: 8
A188: hodinový strojek pro velké ručičky | B188: 18 | C188: 1.0571429 | D188: 1 | E188: 0 | F188: 4 | G188: 1 | H188: 21 | I188: 4 | J188: 52 | K188: 46 | L188: 33 | M188: 37 | N188: 19 | O188: 2
A189: hodiny s vlastní fotografií | B189: 18 | C189: 1.7375 | D189: 5 | E189: 0 | F189: 16 | G189: 10 | H189: 12 | I189: 11 | J189: 10 | K189: 19 | L189: 25 | M189: 30 | N189: 64 | O189: 11
A190: nástěnné hodiny levandule | B190: 18 | C190: 5.0592593 | D190: 16 | E190: 4 | F190: 17 | G190: 6 | H190: 28 | I190: 7 | J190: 28 | K190: 12 | L190: 21 | M190: 12 | N190: 42 | O190: 24
A191: do kolika hodin vsadit sportku | B191: 17 | C191: 2.2 | D191: 9 | E191: 9 | F191: 18 | G191: 15 | H191: 17 | I191: 26 | J191: 37 | K191: 26 | L191: 17 | M191: 12 | N191: 9 | O191: 9
A192: nádražní nástěnné retro hodiny | B192: 17 | C192: 2.8141934 | D192: 7 | E192: 10 | F192: 22 | G192: 8 | H192: 10 | I192: 7 | J192: 31 | K192: 25 | L192: 10 | M192: 14 | N192: 47 | O192: 11
A193: nástěnné hodiny ikea | B193: 17 | C193: 5.263158 | D193: 22 | E193: 3 | F193: 6 | G193: 9 | H193: 4 | I193: 19 | J193: 25 | K193: 26 | L193: 22 | M193: 29 | N193: 22 | O193: 12
A194: nástěnné hodiny karlsson | B194: 17 | C194: 5.6136365 | D194: 8 | E194: 7 | F194: 18 | G194: 12 | H194: 15 | I194: 8 | J194: 20 | K194: 26 | L194: 8 | M194: 18 | N194: 35 | O194: 34
A195: nástěnné hodiny s kukačkou | B195: 17 | C195: 0 | D195: 15 | E195: 8 | F195: 28 | G195: 7 | H195: 0 | I195: 0 | J195: 12 | K195: 15 | L195: 21 | M195: 39 | N195: 24 | O195: 29
A196: nástěnné hodiny vintage | B196: 17 | C196: 6.6 | D196: 21 | E196: 9 | F196: 9 | G196: 10 | H196: 6 | I196: 0 | J196: 23 | K196: 25 | L196: 31 | M196: 29 | N196: 39 | O196: 3
A197: výpočet průměrné hodinové mzdy | B197: 17 | C197: 2.75 | D197: 12 | E197: 10 | F197: 18 | G197: 17 | H197: 22 | I197: 33 | J197: 2 | K197: 11 | L197: 6 | M197: 23 | N197: 29 | O197: 17
A198: dřevěné kyvadlové hodiny | B198: 16 | C198: 0 | D198: 7 | E198: 20 | F198: 2 | G198: 6 | H198: 0 | I198: 0 | J198: 1 | K198: 0 | L198: 0 | M198: 10 | N198: 46 | O198: 96
A199: hodiny prim | B199: 16 | C199: 2.1 | D199: 8 | E199: 16 | F199: 26 | G199: 13 | H199: 8 | I199: 9 | J199: 16 | K199: 13 | L199: 23 | M199: 16 | N199: 23 | O199: 20
A200: hodiny řízené radiovým signálem | B200: 16 | C200: 0 | D200: 16 | E200: 71 | F200: 2 | G200: 6 | H200: 5 | I200: 2 | J200: 0 | K200: 2 | L200: 8 | M200: 3 | N200: 22 | O200: 49
... 4300 more rows

Sheet Kategorie
B3: Kategorie | C3: Počet klíčových slov | D3: Součet z Hledanost Total | E3: Součet z Hledanost Google | F3: Součet z Hledanost Seznam | G3: Průměr z Konkurence Google | H3: Průměr z Konkurence Seznam | I3: Součet z Počet výsledků Google | J3: Součet z Počet výsledků Seznam.cz | K3: Průměr z CPC Adwords | L3: Průměr z CPC Sklik
B4: Typ hodin | C4: 5110 | D4: 28803 | E4: 12060 | F4: 16743 | G4: 9.818736204 | H4: 1.914713894 | I4: 543027266 | J4: 1864127845 | K4: 0.1063894325 | L4: 0.1850451394
B5: Značka | C5: 1228 | D5: 4137 | E5: 2340 | F5: 1797 | G5: 8.587136808 | H5: 2.018013029 | I5: 73615588 | J5: 44372770 | K5: 0.08064332248 | L5: 0.09190983607
B6: Strojek | C6: 1558 | D6: 2690 | E6: 830 | F6: 1860 | G6: 8.735056483 | H6: 1.846173941 | I6: 90050004 | J6: 188147469 | K6: 0.08131578947 | L6: 0.08520211425
B7: Styl | C7: 1657 | D7: 5377 | E7: 3050 | F7: 2327 | G7: 9.958173808 | H7: 1.927838262 | I7: 311271925 | J7: 536133077 | K7: 0.16004828 | L7: 0.1048625723
B8: Tvar-Velikost | C8: 578 | D8: 1014 | E8: 580 | F8: 434 | G8: 10.25408651 | H8: 1.861847751 | I8: 115881937 | J8: 485537318 | K8: 0.04783737024 | L8: 0.08360682163
B9: Specifikace | C9: 1810 | D9: 5673 | E9: 2400 | F9: 3273 | G9: 10.01547845 | H9: 1.877901105 | I9: 238857947 | J9: 1159122179 | K9: 0.1331270718 | L9: 0.120057978
B10: Barva | C10: 513 | D10: 698 | E10: 190 | F10: 508 | G10: 10.04005653 | H10: 1.840968811 | I10: 67445426 | J10: 332176754 | K10: 0.09947368421 | L10: 0.1373294347
B11: Materiál | C11: 1179 | D11: 2096 | E11: 780 | F11: 1316 | G11: 9.748544529 | H11: 1.836508906 | I11: 157036333 | J11: 612423145 | K11: 0.07237489398 | L11: 0.06752326478
B12: Celkem | C12: =SUM(C4:C11) -> 13633 | D12: =SUM(D4:D11) -> 50488 | E12: =SUM(E4:E11) -> 22230 | F12: =SUM(F4:F11) -> 28258 | G12: =AVERAGE(G4:G11) -> 9.644658665 | H12: =AVERAGE(H4:H11) -> 1.890495712 | I12: =SUM(I4:I11) -> 1597186426 | J12: =SUM(J4:J11) -> 5222040557 | K12: =AVERAGE(K4:K11) -> 0.09765123059 | L12: =AVERAGE(L4:L11) -> 0.1094421451

Sheet Typ hodin
B3: Popisky řádků | C3: Počet z Klíčové slovo | D3: Součet z Hledanost Google | E3: Součet z Hledanost Seznam | F3: Součet z Konkurence Google | G3: Součet z Konkurence Seznam | H3: Součet z Počet výsledků Google | I3: Součet z CPC Adwords | J3: Součet z CPC Sklik
B4: analogové | C4: 30 | D4: 0 | E4: 8 | F4: 258.872 | G4: 52.111 | H4: 2459091 | I4: 0 | J4: 0.2
B5: bicí | C5: 293 | D5: 0 | E5: 111 | F5: 2975.988 | G5: 553.899 | H5: 10827386 | I5: 0 | J5: 11.7779334
B6: figurální | C6: 8 | D6: 0 | E6: 2 | F6: 66.777 | G6: 10.029 | H6: 70544 | I6: 0 | J6: 0
B7: hodinové strojky | C7: 203 | D7: 1518 | E7: 1485 | F7: 1994.035 | G7: 371.929 | H7: 13261393 | I7: 26.57 | J7: 29.06069768
B8: kapesní | C8: 5 | D8: 0 | E8: 1 | F8: 50.627 | G8: 9.166 | H8: 301640 | I8: 0 | J8: 0
B9: kukačky | C9: 386 | D9: 822 | E9: 475 | F9: 3945.747 | G9: 730.446 | H9: 8507179 | I9: 27.44 | J9: 28.4837153
B10: lihýřové | C10: 44 | D10: 100 | E10: 108 | F10: 444.347 | G10: 79.855 | H10: 719633 | I10: 7.5 | J10: 0.6
B11: na zeď | C11: 509 | D11: 170 | E11: 408 | F11: 5222.26 | G11: 994.357 | H11: 82016163 | I11: 26.16 | J11: 44.5054874
B12: nástěnné | C12: 2397 | D12: 8140 | E12: 11925 | F12: 22732.404 | G12: 4574.272 | H12: 214448605 | I12: 381.39 | J12: 668.2931907
B13: stojací | C13: 135 | D13: 150 | E13: 224 | F13: 1352.588 | G13: 255.854 | H13: 15554998 | I13: 5.57 | J13: 19.0469049
B14: stolní | C14: 661 | D14: 570 | E14: 1226 | F14: 6721.508 | G14: 1340.312 | H14: 104767155 | I14: 25.94 | J14: 81.1866667
B15: venkovní | C15: 398 | D15: 420 | E15: 449 | F15: 4003.417 | G15: 733.548 | H15: 84671111 | I15: 27.86 | J15: 56.5438439
B16: závěsné | C16: 40 | D16: 30 | E16: 36 | F16: 396.333 | G16: 76.024 | H16: 5404268 | I16: 7.5 | J16: 5.76
B17: Celkový součet | C17: 5109 | D17: 11920 | E17: 16458 | F17: 50164.903 | G17: 9781.802 | H17: 543009166 | I17: 535.93 | J17: 945.4584399

Sheet Značka
B3: Popisky řádků | C3: Počet z Klíčové slovo | D3: Součet z Hledanost Google | E3: Součet z Hledanost Seznam | F3: Průměr z Konkurence Google | G3: Průměr z Konkurence Seznam | H3: Součet z Počet výsledků Google | I3: Průměr z CPC Adwords | J3: Průměr z CPC Sklik
B4: Adler | C4: 11 | D4: 20 | E4: 6 | F4: 10.38736364 | G4: 2.174545455 | H4: 1375215 | I4: 0 | J4: 0
B5: Alza | C5: 15 | D5: 0 | E5: 3 | F5: 8.937133333 | G5: 2.064866667 | H5: 410339 | I5: 0 | J5: 0
B6: Ams | C6: 223 | D6: 20 | E6: 63 | F6: 7.957690583 | G6: 2.325179372 | H6: 8915523 | I6: 0.033632287 | J6: 0.0310164426
B7: Asko | C7: 1 | D7: 0 | E7: 0 | F7: 11.099 | G7: 2.078 | H7: 14400 | I7: 0 | J7: 0
B8: Atlanta | C8: 11 | D8: 0 | E8: 4 | F8: 9.962727273 | G8: 2.055727273 | H8: 362878 | I8: 0 | J8: 0
B9: Aukro | C9: 33 | D9: 30 | E9: 167 | F9: 8.818818182 | G9: 1.970545455 | H9: 1535481 | I9: 0.07787878788 | J9: 0.1709119515
B10: Belmax | C10: 3 | D10: 0 | E10: 0 | F10: 4.778 | G10: 1.275333333 | H10: 82 | I10: 0 | J10: 0
B11: bentime | C11: 18 | D11: 1020 | E11: 487 | F11: 9.457611111 | G11: 2.275833333 | H11: 1527805 | I11: 0.2261111111 | J11: 0.6187973444
B12: Callea | C12: 12 | D12: 0 | E12: 1 | F12: 5.33875 | G12: 1.583083333 | H12: 7029 | I12: 0 | J12: 0
B13: Casio | C13: 6 | D13: 0 | E13: 0 | F13: 10.79916667 | G13: 1.885666667 | H13: 344975 | I13: 0 | J13: 0
B14: Conrad | C14: 12 | D14: 0 | E14: 1 | F14: 9.144083333 | G14: 2.177583333 | H14: 296516 | I14: 0 | J14: 0.2916666667
B15: DCF | C15: 96 | D15: 90 | E15: 167 | F15: 9.759479167 | G15: 2.056010417 | H15: 4822705 | I15: 0.0646875 | J15: 0.09131944375
B16: Doxa | C16: 5 | D16: 0 | E16: 0 | F16: 9.9272 | G16: 1.7522 | H16: 30914 | I16: 0 | J16: 0
B17: Dux | C17: 8 | D17: 0 | E17: 0 | F17: 7.627875 | G17: 1.699375 | H17: 593164 | I17: 0 | J17: 0
B18: Ebay | C18: 1 | D18: 0 | E18: 0 | F18: 12.246 | G18: 1.827 | H18: 11200 | I18: 0 | J18: 0
B19: Gustav Becker | C19: 17 | D19: 40 | E19: 41 | F19: 8.004294118 | G19: 1.926235294 | H19: 119732 | I19: 0.3658823529 | J19: 0.2333333294
B20: Hama | C20: 22 | D20: 0 | E20: 6 | F20: 9.727909091 | G20: 1.889363636 | H20: 52640 | I20: 0 | J20: 0.1681818182
B21: Heuréka | C21: 40 | D21: 20 | E21: 9 | F21: 9.778325 | G21: 1.866475 | H21: 5027180 | I21: 0.0375 | J21: 0.095916665
B22: Ikea | C22: 21 | D22: 350 | E22: 45 | F22: 10.86980952 | G22: 2.030571429 | H22: 2163622 | I22: 0.4595238095 | J22: 0.4863408571
B23: JVD | C23: 355 | D23: 290 | E23: 462 | F23: 7.422825352 | G23: 1.847183099 | H23: 17559876 | I23: 0.032 | J23: 0.08793510113
B24: Karlsson | C24: 70 | D24: 160 | E24: 112 | F24: 8.4602 | G24: 2.355585714 | H24: 2263155 | I24: 0.3062857143 | J24: 0.13609957
B25: Kienzle | C25: 36 | D25: 60 | E25: 70 | F25: 9.199861111 | G25: 1.942361111 | H25: 2057083 | I25: 0.1011111111 | J25: 0.05972222222
B26: Lowell | C26: 60 | D26: 0 | E26: 13 | F26: 9.346166667 | G26: 2.10195 | H26: 1153676 | I26: 0 | J26: 0
B27: Mobelix | C27: 4 | D27: 0 | E27: 0 | F27: 8.5835 | G27: 1.5615 | H27: 99280 | I27: 0 | J27: 0
B28: Nextime | C28: 53 | D28: 60 | E28: 61 | F28: 9.440226415 | G28: 1.775811321 | H28: 1571723 | I28: 0.3033962264 | J28: 0.08081276981
B29: Prim | C29: 58 | D29: 160 | E29: 69 | F29: 10.48687931 | G29: 1.954 | H29: 16883787 | I29: 0.1515517241 | J29: 0.095
B30: Remember | C30: 4 | D30: 0 | E30: 0 | F30: 9.51775 | G30: 1.353 | H30: 18105 | I30: 0 | J30: 0
B31: Sencor | C31: 20 | D31: 10 | E31: 5 | F31: 11.1687 | G31: 1.99355 | H31: 4104966 | I31: 0 | J31: 0
B32: Tescoma | C32: 13 | D32: 10 | E32: 5 | F32: 10.33215385 | G32: 1.917307692 | H32: 677491 | I32: 0 | J32: 0.1923076923
B33: Celkový součet | C33: 1228 | D33: 2340 | E33: 1797 | F33: 8.587136808 | G33: 2.018013029 | H33: 74000542 | I33: 0.08064332248 | J33: 0.09190983607

Sheet Strojek
B3: Popisky řádků | C3: Počet z Klíčové slovo | D3: Součet z Hledanost Google | E3: Součet z Hledanost Seznam | F3: Průměr z Konkurence Google | G3: Průměr z Konkurence Seznam | H3: Součet z Počet výsledků Google | I3: Průměr z CPC Adwords | J3: Průměr z CPC Sklik
B4: bateriový | C4: 38 | D4: 0 | E4: 63 | F4: 9.853921053 | G4: 1.797236842 | H4: 9634773 | I4: 0 | J4: 0.03289473684
B5: elektro | C5: 52 | D5: 90 | E5: 86 | F5: 9.98725 | G5: 1.824057692 | H5: 14347973 | I5: 0.2432692308 | J5: 0.08097435769
B6: kyvadlový | C6: 948 | D6: 300 | E6: 988 | F6: 8.886408228 | G6: 1.890998945 | H6: 38067877 | I6: 0.04160337553 | J6: 0.1065222621
B7: quartz | C7: 160 | D7: 40 | E7: 203 | F7: 8.2197 | G7: 1.7954375 | H7: 8307687 | I7: 0.067 | J7: 0.03875
B8: řízené rádiem | C8: 360 | D8: 400 | E8: 520 | F8: 8.266569444 | G8: 1.759044444 | H8: 19691694 | I8: 0.1774444444 | J8: 0.05861423028
B9: Celkový součet | C9: 1558 | D9: 830 | E9: 1860 | F9: 8.735056483 | G9: 1.846173941 | H9: 90050004 | I9: 0.08131578947 | J9: 0.08584396277

Sheet Styl
B3: Popisky řádků | C3: Počet z Klíčové slovo | D3: Součet z Hledanost Google | E3: Součet z Hledanost Seznam | F3: Průměr z Konkurence Google | G3: Průměr z Konkurence Seznam | H3: Součet z Počet výsledků Google | I3: Průměr z CPC Adwords | J3: Průměr z CPC Sklik
B4: americké | C4: 8 | D4: 20 | E4: 47 | F4: 11.13875 | G4: 1.9905 | H4: 1640880 | I4: 0.61625 | J4: 0.27569445
B5: anglické | C5: 19 | D5: 880 | E5: 151 | F5: 10.44584211 | G5: 2.211578947 | H5: 7148052 | I5: 2.888421053 | J5: 0.06228070316
B6: antik | C6: 11 | D6: 10 | E6: 17 | F6: 11.82445455 | G6: 1.901090909 | H6: 813073 | I6: 0 | J6: 0.1454545455
B7: design | C7: 557 | D7: 510 | E7: 500 | F7: 9.379229803 | G7: 2.013157989 | H7: 104205602 | I7: 0.08775583483 | J7: 0.07802739497
B8: francouzské | C8: 38 | D8: 0 | E8: 3 | F8: 9.925605263 | G8: 1.867 | H8: 6825354 | I8: 0 | J8: 0
B9: historické | C9: 13 | D9: 50 | E9: 19 | F9: 11.32238462 | G9: 1.901076923 | H9: 21141800 | I9: 0.6592307692 | J9: 0.04230769231
B10: provence | C10: 92 | D10: 110 | E10: 160 | F10: 10.31818478 | G10: 1.824369565 | H10: 12101200 | I10: 0.1725 | J10: 0.1509254902
B11: retro | C11: 462 | D11: 560 | E11: 668 | F11: 10.82029437 | G11: 1.952521645 | H11: 106596226 | I11: 0.0529004329 | J11: 0.09745100758
B12: starožitné | C12: 338 | D12: 730 | E12: 584 | F12: 9.025405325 | G12: 1.747139053 | H12: 15968332 | I12: 0.2309171598 | J12: 0.1408108527
B13: vintage | C13: 118 | D13: 150 | E13: 128 | F13: 11.11310169 | G13: 1.991161017 | H13: 34763906 | I13: 0.1798305085 | J13: 0.1141242932
B14: Celkový součet | C14: 1656 | D14: 3020 | E14: 2277 | F14: 9.949533213 | G14: 1.927078502 | H14: 311204425 | I14: 0.1550966184 | J14: 0.102034054

Sheet Tvar-velikost
B3: Popisky řádků | C3: Počet z Klíčové slovo | D3: Součet z Hledanost Google | E3: Součet z Hledanost Seznam | F3: Průměr z Konkurence Google | G3: Průměr z Konkurence Seznam | H3: Součet z Počet výsledků Google | I3: Průměr z CPC Adwords | J3: Průměr z CPC Sklik
B4: velké | C4: 497 | D4: 580 | E4: 382 | F4: 10.29367807 | G4: 1.854134809 | H4: 102302207 | I4: 0.05563380282 | J4: 0.07854576036
B5: kulaté | C5: 49 | D5: 0 | E5: 29 | F5: 9.766244898 | G5: 1.85544898 | H5: 4823525 | I5: 0 | J5: 0.1040816327
B6: malé | C6: 20 | D6: 0 | E6: 22 | F6: 11.57315 | G6: 2.08355 | H6: 8025140 | I6: 0 | J6: 0.209375
B7: čtvercové | C7: 12 | D7: 0 | E7: 1 | F7: 8.407916667 | G7: 1.837916667 | H7: 731065 | I7: 0 | J7: 0
B8: Celkový součet | C8: 578 | D8: 580 | E8: 434 | F8: 10.25408651 | G8: 1.861847751 | H8: 115881937 | I8: 0.04783737024 | J8: 0.08360682163

Sheet Specifikace
B3: Popisky řádků | C3: Počet z Klíčové slovo | D3: Součet z Hledanost Google | E3: Součet z Hledanost Seznam | F3: Průměr z Konkurence Google | G3: Průměr z Konkurence Seznam | H3: Součet z Počet výsledků Google | I3: Průměr z CPC Adwords | J3: Průměr z CPC Sklik
B4: akce | C4: 8 | D4: 0 | E4: 2 | F4: 10.210875 | G4: 1.69 | H4: 1967411 | I4: 0 | J4: 0
B5: cena | C5: 23 | D5: 80 | E5: 3 | F5: 10.41434783 | G5: 1.859130435 | H5: 1918577 | I5: 0.5313043478 | J5: 0
B6: do koupleny | C6: 89 | D6: 50 | E6: 143 | F6: 10.38266292 | G6: 1.96747191 | H6: 11257684 | I6: 0 | J6: 0.05283935506
B7: do obýváku | C7: 115 | D7: 90 | E7: 212 | F7: 10.28584348 | G7: 1.8446 | H7: 16278832 | I7: 0.3131304348 | J7: 0.1570255383
B8: kuchyňské | C8: 626 | D8: 540 | E8: 1004 | F8: 10.29338339 | G8: 1.870667732 | H8: 108232791 | I8: 0.1195047923 | J8: 0.1325394134
B9: na zahradu | C9: 31 | D9: 140 | E9: 64 | F9: 10.53725806 | G9: 1.881645161 | H9: 18367793 | I9: 0.2764516129 | J9: 0.2241935484
B10: oboustranné | C10: 156 | D10: 30 | E10: 205 | F10: 9.396782051 | G10: 1.766423077 | H10: 13065365 | I10: 0 | J10: 0.04927925769
B11: pendlové | C11: 171 | D11: 540 | E11: 618 | F11: 9.157701754 | G11: 1.92780117 | H11: 2310798 | I11: 0.2395321637 | J11: 0.2427165222
B12: ročky | C12: 19 | D12: 30 | E12: 55 | F12: 8.175578947 | G12: 2.103789474 | H12: 1011066 | I12: 0.1805263158 | J12: 0
B13: s kamerou | C13: 3 | D13: 20 | E13: 47 | F13: 11.93466667 | G13: 2.23 | H13: 912680 | I13: 1.643333333 | J13: 0.7351852
B14: s melodií | C14: 25 | D14: 0 | E14: 4 | F14: 8.49896 | G14: 1.771 | H14: 893689 | I14: 0 | J14: 0
B15: s teploměrem | C15: 169 | D15: 390 | E15: 409 | F15: 10.12993491 | G15: 1.866568047 | H15: 16392419 | I15: 0.1319526627 | J15: 0.1555992959
B16: sluneční | C16: 3 | D16: 0 | E16: 0 | F16: 9.467 | G16: 1.685333333 | H16: 290090 | I16: 0 | J16: 0
B17: svítící | C17: 157 | D17: 220 | E17: 184 | F17: 10.3017707 | G17: 1.918541401 | H17: 15330414 | I17: 0.07917197452 | J17: 0.03569608726
B18: tiché | C18: 166 | D18: 270 | E18: 292 | F18: 9.590903614 | G18: 1.874114458 | H18: 19567113 | I18: 0.1524096386 | J18: 0.08542326506
B19: vodotěsné | C19: 1 | D19: 0 | E19: 0 | F19: 11.05 | G19: 1.872 | H19: 227000 | I19: 0 | J19: 0
B20: zrcadlové | C20: 48 | D20: 0 | E20: 31 | F20: 11.10833333 | G20: 1.984854167 | H20: 10834225 | I20: 0 | J20: 0.1488782083
B21: Celkový součet | C21: 1810 | D21: 2400 | E21: 3273 | F21: 10.01547845 | G21: 1.877901105 | H21: 238857947 | I21: 0.1331270718 | J21: 0.120057978

Sheet Barva
B3: Popisky řádků | C3: Počet z Klíčové slovo | D3: Součet z Hledanost Google | E3: Součet z Hledanost Seznam | F3: Průměr z Konkurence Google | G3: Průměr z Konkurence Seznam | H3: Součet z Počet výsledků Google | I3: Průměr z CPC Adwords | J3: Průměr z CPC Sklik
B4: bílé | C4: 124 | D4: 40 | E4: 73 | F4: 10.42297581 | G4: 1.899669355 | H4: 17103595 | I4: 0.05879032258 | J4: 0.05776209677
B5: bordó | C5: 3 | D5: 0 | E5: 0 | F5: 9.811333333 | G5: 1.897333333 | H5: 121300 | I5: 0 | J5: 0
B6: černé | C6: 173 | D6: 0 | E6: 64 | F6: 9.71917341 | G6: 1.838734104 | H6: 17397713 | I6: 0.1202312139 | J6: 0
B7: červené | C7: 77 | D7: 70 | E7: 141 | F7: 10.1912987 | G7: 1.806181818 | H7: 12769206 | I7: 0.1698701299 | J7: 0.3841558442
B8: fialové | C8: 14 | D8: 40 | E8: 85 | F8: 10.24328571 | G8: 1.804428571 | H8: 2103050 | I8: 0.2907142857 | J8: 0.5785714286
B9: hnědé | C9: 16 | D9: 0 | E9: 12 | F9: 11.0343125 | G9: 1.85 | H9: 2212762 | I9: 0 | J9: 0.3875
B10: modré | C10: 32 | D10: 0 | E10: 49 | F10: 10.001 | G10: 1.825 | H10: 5301169 | I10: 0 | J10: 0
B11: oranžová | C11: 16 | D11: 0 | E11: 5 | F11: 10.1855 | G11: 1.9370625 | H11: 2046923 | I11: 0 | J11: 0
B12: zelené | C12: 27 | D12: 30 | E12: 62 | F12: 10.80237037 | G12: 1.944925926 | H12: 5095980 | I12: 0.2144444444 | J12: 0.5484259259
B13: zlatá | C13: 26 | D13: 0 | E13: 7 | F13: 8.307615385 | G13: 1.525076923 | H13: 2474602 | I13: 0 | J13: 0
B14: žluté | C14: 5 | D14: 10 | E14: 10 | F14: 10.3804 | G14: 1.9138 | H14: 819126 | I14: 0 | J14: 0.92
B15: Celkový součet | C15: 513 | D15: 190 | E15: 508 | F15: 10.04005653 | G15: 1.840968811 | H15: 67445426 | I15: 0.09947368421 | J15: 0.1373294347

Sheet Materiál
B3: Popisky řádků | C3: Počet z Klíčové slovo | D3: Součet z Hledanost Google | E3: Součet z Hledanost Seznam | F3: Průměr z Konkurence Google | G3: Průměr z Konkurence Seznam | H3: Součet z Počet výsledků Google | I3: Průměr z CPC Adwords | J3: Průměr z CPC Sklik
B4: dřevo | C4: 466 | D4: 430 | E4: 511 | F4: 9.502427039 | G4: 1.859004292 | H4: 63543585 | I4: 0.1030472103 | J4: 0.06822716202
B5: hliník | C5: 6 | D5: 0 | E5: 0 | F5: 5.4615 | G5: 1.381666667 | H5: 1120 | I5: 0 | J5: 0
B6: keramika | C6: 106 | D6: 110 | E6: 196 | F6: 10.65279245 | G6: 1.865386792 | H6: 22389835 | I6: 0.05867924528 | J6: 0.1412378498
B7: kov | C7: 313 | D7: 220 | E7: 489 | F7: 9.830549521 | G7: 1.870616613 | H7: 38598047 | I7: 0.07261980831 | J7: 0.07793884856
B8: nerez | C8: 15 | D8: 10 | E8: 7 | F8: 10.50333333 | G8: 1.895066667 | H8: 2692296 | I8: 0 | J8: 0
B9: porcelán | C9: 196 | D9: 0 | E9: 70 | F9: 10.01365306 | G9: 1.777576531 | H9: 17883375 | I9: 0.04265306122 | J9: 0.02525510204
B10: sklo | C10: 47 | D10: 10 | E10: 35 | F10: 9.455914894 | G10: 1.785319149 | H10: 9090673 | I10: 0 | J10: 0.09574468085
B11: zlato | C11: 26 | D11: 0 | E11: 7 | F11: 8.307615385 | G11: 1.525076923 | H11: 2474602 | I11: 0 | J11: 0
B12: železo | C12: 4 | D12: 0 | E12: 1 | F12: 11.456 | G12: 1.75775 | H12: 362800 | I12: 0 | J12: 0
B13: Celkový součet | C13: 1179 | D13: 780 | E13: 1316 | F13: 9.748544529 | G13: 1.836508906 | H13: 157036333 | I13: 0.07237489398 | J13: 0.0683714412

Sheet Nastaveni (hidden)
A1: Nazev tlacitka | B1: Sloupec | C1: Skrýt
A2: Sloupec C | B2: C | C2: TRUE
A3: Sloupec D | B3: D | C3: TRUE
A4: Sloupec E | B4: E | C4: TRUE
A5: Sloupec F | B5: F | C5: TRUE
A6: Sloupec G | B6: G | C6: TRUE
A7: Sloupec H | B7: H | C7: TRUE
A8: Sloupec I | B8: I | C8: TRUE
A9: Sloupec J | B9: J | C9: TRUE
A10: Sloupec K | B10: K | C10: TRUE
A11: Sloupec L | B11: L | C11: TRUE
A12: Sloupec M | B12: M | C12: TRUE
A13: Sloupec N | B13: N | C13: TRUE
A14: Sloupec O | B14: O | C14: TRUE
A15: Sloupec P | B15: P | C15: TRUE
A16: Sloupec Q | B16: Q | C16: TRUE
A17: Sloupec R | B17: R | C17: TRUE
A18: Sloupec S | B18: S | C18: TRUE
A19: Sloupec T | B19: T | C19: TRUE
A20: Sloupec U | B20: U | C20: TRUE
A21: Sloupec V | B21: V | C21: TRUE
A22: Sloupec W | B22: W | C22: TRUE
A23: Sloupec X | B23: X | C23: TRUE
A24: Sloupec Y | B24: Y | C24: TRUE
A25: Sloupec Z | B25: Z | C25: TRUE
